Workbook

Sheet Read Me
A1: NCHRP BMP Evaluation Tool V.1.0 for Windows
A2: Readme Notes
A3: 1 | B3: Tool inputs are intended to be populated sequentially (i.e., Project Location, Project Options, then Project Design).Inputs on previous tabs can later be modified by skipping backward and forward, however skipping forward as part of the initial tool parameterization will result in an undesirable user experience and potentially introduce errors.
A4: 2 | B4: Either the navigation buttons or the tabs can be used to navigate through this workbook.
A5: 3 | B5: The user is responsible for ensuring that input parameters are reasonable. Negative numbers are never reasonable for populating the Tool and will not return valid results.
A6: 4 | B6: The user should review default assumptions and confirm that they are valid for the intended site and BMP design.
A7: 5 | B7: Where dropdown boxes are available for input parameters, values must be selected from the dropdown menu. The Tool cannot accept custom inputs for these fields.
A8: 6 | B8: The Tool allows flexibility for the user to enter a wide range of input parameters representing a wide range of BMP designs and treatment options. In some cases, guidance is provided within the Tool regarding acceptable ranges of parameters. Additionally, the Guidance Manual provides some conceptual design schematics and associated typical parameters to accompany this Tool. The user is responsible for selecting reasonable input parameters.
A9: 7 | B9: It is possible to enter inputs that are outside of acceptable ranges. Please observe error messages and see the key to error messages below.
A10: 8 | B10: The Tool requires macros to be enabled. If macros are not enabled, the Tool will not function.
A11: 9 | B11: The Tool is intended to be operated with Excel set to "Auto Calculate" mode; not "Manual Calculate" mode. To change this setting, go to the "Formulas" ribbon and select "Calculation Options".
A12: 10 | B12: Please read the User's Guide before using the Tool.
A13: 11 | B13: Any changes to the structure of this workbook (tab names, inserting or deleting columns or rows, etc.) will render the Tool non-functional. Several precautions were taken to prevent this kind of action, but it is ultimately the user's responsibility to maintain a functional workbook. The user may create new worksheets for the purpose of calculations and notes, but any other structural changes must be avoided.
A14: 12 | B14: THE PASSWORD TO UNLOCK SHEETS IN THIS WORKBOOK IS "NCHRP"
A15: Key to Warning Messages
B17: The Tool produces warning messages in certain circumstances.
B19: Example Warning Message | G19: Explanation
B20: Hiding these parameters will reset all concentrations to their default values. Do you wish to continue? | G20: The tool provides the user with the ability to modify some of the default parameters. Some of these parameters should only be modified based on supporting data or best professional judgment, such as influent concentrations. In many of these cases, in addition to supplemental parameters, the user inputs are hidden. Showing the parameters opens them up to modification, while hiding resets them back to their defaults.
B21: You have selected to use the default influent concentration. Please change your selection to override this value. | G21: Once the water quality constituent influent concentrations are unhidden, the user must select each constituent that they want to modify from the default value.
A22: Key to Error Messages
B24: The Tool produces error messages in certain circumstances.
B26: Example Error Message | G26: Explanation
B27: The Impervious Area (%) can not be greater than 100% | G27: All impervious area is assumed to be directly connected within the BMP tributary area. Thus, an impervious area greater than 100% suggests an area greater than the tributary area.
B28: The Planting Media Filtration Rate is restricting the flow. Update the additional parameters if not intended. | G28: For some combinations of input parameters, the planting media filtration rate can control the performance of a bioretention BMP rather than the underlying soil infiltration rate. This warning is intended to let you know when this occurs. This is not an invalid design scenario if that is what the user intends.
B29: The Design Drawdown Time can not be less than 24 hours. | G29: Certain tools require a parameters to be within a specific range for normal functionality.
B30: Warning: Infiltration rate is too low to use this BMP. RESULTS ARE NOT ACCURATE. Reduce depth of infiltration storage or select other BMP that has a lower depth of infiltration storage; use underdrains if applicable. | G30: The Tool does not provide valid estimates when infiltration storage drawdown times are greater than 360 hours. In general, when you see this warning, the BMP design is not suitable for the soil conditions (i.e., too great of a water depth and/or too low of an infiltration rate).

Sheet Project Location
A1: NCHRP Bioretention Evaluation Tool | X1: Section | Y1: State | AA1: =VLOOKUP(C11,Y2:Z51,2,FALSE) ->  | AB1: Section | AC1: 1
A2: Project Title | C2: Test Run | X2: 7 | Y2: Alabama | Z2: AL
A3: Project Location | C3: Portland, OR | X3: X | Y3: Alaska | Z3: AK | AB3: Row Labels
A4: Company | C4: Geosyntec Consultants | X4: 2 | Y4: Arizona | Z4: AZ | AB4: Idaho
X5: 6 | Y5: Arkansas | Z5: AR | AB5: Montana
A6: Project Location and Climate Selection | X6: 2 | Y6: California | Z6: CA | AB6: Oregon
X7: 4 | Y7: Colorado | Z7: CO | AB7: Washington
A8: Step 1: Select the Region your Project is Located | O8: Step 2: Select the State your project is located and the rain gage closest to the project | X8: 10 | Y8: Connecticut | Z8: CT | AB8: Wyoming
X9: 9 | Y9: Delaware | Z9: DE | AB9: Grand Total
O10: States within Selected Region | P10: Rain Gages Available in State | X10: 7 | Y10: Florida | Z10: FL
X11: 7 | Y11: Georgia | Z11: GA
X12: X | Y12: Hawaii | Z12: HI
X13: 1 | Y13: Idaho | Z13: ID
O14: COOP ID | P14: =IF(P11="","Select Rain Gage",VLOOKUP(P11,'Rain Gage Summary'!B2:J348,9,FALSE)) -> Select Rain Gage | X14: 5 | Y14: Illinois | Z14: IL
O15: Elevation , feet | P15: =IF(P11="","Select Rain Gage",VLOOKUP(P11,'Rain Gage Summary'!B2:J348,5,FALSE)) -> Select Rain Gage | X15: 5 | Y15: Indiana | Z15: IN | AB15: # states
O16: 85th Percentile, 24-Hour Storm Depth, inches | P16: =IF(P11="","Select Rain Gage",VLOOKUP(P11,'Rain Gage Summary'!B2:J348,6,FALSE)) -> Select Rain Gage | X16: 3 | Y16: Iowa | Z16: IA | AB16: =COUNTA(AB4:AB14)-1 -> 5
O17: 95th Percentile, 24-Hour Storm Depth, inches | P17: =IF(P11="","Select Rain Gage",VLOOKUP(P11,'Rain Gage Summary'!B2:J348,7,FALSE)) -> Select Rain Gage | X17: 4 | Y17: Kansas | Z17: KS
O18: Average Annual Precipitation Depth, inches | P18: =IF(P11="","Select Rain Gage",VLOOKUP(P11,'Rain Gage Summary'!B2:J348,8,FALSE)) -> Select Rain Gage | X18: 8 | Y18: Kentucky | Z18: KY
X19: 7 | Y19: Louisiana | Z19: LA
O20: Step 3: If available, override the existing data and provide project specific rain data | X20: 10 | Y20: Maine | Z20: ME
X21: 8 | Y21: Maryland | Z21: MD
O22: Project Location 85th Percentile, 24-Hour Storm Depth (in) | P22: Select Rain Gage | X22: 10 | Y22: Massachusetts | Z22: MA
O23: Project Location Average Annual Precipitation Depth (in) | P23: Select Rain Gage | X23: 5 | Y23: Michigan | Z23: MI
X24: 3 | Y24: Minnesota | Z24: MN
O25: Note: Default precipitation statistics and the project-specific precipitation statistics are for reference and scaling purposes only; they do not imply a BMP size used for performance analysis. The user enters the BMP sizing parameters to be analyzed on the Project Design tab. | X25: 7 | Y25: Mississippi | Z25: MS
X26: 5 | Y26: Missouri | Z26: MO
X27: 1 | Y27: Montana | Z27: MT
X28: 3 | Y28: Nebraska | Z28: NE
X29: 2 | Y29: Nevada | Z29: NV
X30: 10 | Y30: New Hampshire | Z30: NH
O31: Key | X31: 9 | Y31: New Jersey | Z31: NJ
O32: User Steps | X32: 4 | Y32: New Mexico | Z32: NM
O33: Headings and Descriptions | X33: 9 | Y33: New York | Z33: NY
O34: User Entered Data | X34: 6 | Y34: North Carolina | Z34: NC
O35: Reference Data; do not edit cells | X35: 3 | Y35: North Dakota | Z35: ND
O36: Default data; editing allowed with rationale | X36: 8 | Y36: Ohio | Z36: OH
X37: 4 | Y37: Oklahoma | Z37: OK
X38: 1 | Y38: Oregon | Z38: OR
P39: `` | X39: 9 | Y39: Pennsylvania | Z39: PA
X40: 10 | Y40: Rhode Island | Z40: RI
X41: 6 | Y41: South Carolina | Z41: SC
X42: 3 | Y42: South Dakota | Z42: SD
X43: 6 | Y43: Tennessee | Z43: TN
X44: 4 | Y44: Texas | Z44: TX
X45: 2 | Y45: Utah | Z45: UT
X46: 10 | Y46: Vermont | Z46: VT
X47: 8 | Y47: Virginia | Z47: VA
X48: 1 | Y48: Washington | Z48: WA
X49: 8 | Y49: West Virginia | Z49: WV
X50: 5 | Y50: Wisconsin | Z50: WI
X51: 1 | Y51: Wyoming | Z51: WY

Sheet Project Options
A1: ='Project Location'!A1 -> NCHRP Bioretention Evaluation Tool | T1: Maintenance Options | V1: Use Default/View/edit
A2: Project Title | C2: ='Project Location'!C2:N2 -> Test Run | T2: H | V2: yes
A3: Project Location | C3: ='Project Location'!C3:N3 -> Portland, OR | T3: M | V3: no
A4: Company | C4: ='Project Location'!C4:N4 -> Geosyntec Consultants | T4: L
A6: Project Options
A7: Key
A8: User Steps | B8: Default Data (editable)
A9: Headings and Descriptions | B9: Guidance
A10: User Entered Data
A13: Step 1: View/Edit Highway Runoff Concentrations
A14: Pollutant Loads
A15: Would you like to view/edit the highway runoff concentrations for the project? | B15: no
A17: Pollutant of Concern | B17: Use Default? | C17: Influent Concentration | D17: Guidance
A18: Total Suspended Solids (mg/L) | B18: yes | C18: 138.84 | D18: Provide influent concentrations known or select "yes" to use the default influent concentrations
A19: Total Zinc (ug/L) | B19: yes | C19: 189.93
A20: Total Lead (ug/L) | B20: yes | C20: 44.08
A21: Total Copper (ug/L) | B21: yes | C21: 41.76
A22: Total Nitrogen (mg/L) | B22: TN = TKN + NO3 | C22: 3.38
A23: Total Phosphorus (mg/L) | B23: yes | C23: 0.4420194995
A24: Nitrate [NO3] (mg/L) | B24: yes | C24: 1.06
A25: Total Kjeldahl Nitrogen [TKN] (mg/L) | B25: yes | C25: 2.32
A26: Dissolved Phosphorus (mg/L) | B26: yes | C26: 0.25
A27: Fecal Coliform (col/100mL) | B27: yes | C27: 8699.89
A28: Escherichia Coli [E. Coli] (col/100mL) | B28: yes | C28: 6025.22
A31: Step 2: Select Primary Cost Inputs
A32: Cost Inputs | B32: Value | C32: Guidance
A33: Location Adjustment Factor (100 = nationwide average) | B33: 100 | C33: Enter the location scaling factor from RSMeans or other reference to adjust for local costs as a percentage of nationwide average; if not known, enter 100 | D33: http://www.rsmeansonline.com/
A34: Expected Level of Maintenance (H = High, M = Medium, L = Low) | B34: M | C34: Enter the level of maintenance expected to be provided.
A35: Design Life (years) | B35: 20 | C35: Enter the design life of the BMP in years.
A36: Discount Rate (%) | B36: 5 | C36: Enter the discount rate to be used in whole lifecycle cost analysis.
A37: Inflation Rate for labor and materials (%) | B37: 5 | C37: Enter the inflation rate to be used in whole lifecycle cost analysis.
A38: Local Sales Tax (%) | B38: 9.25 | C38: Enter the local sales tax, including state and local taxes.
A40: Would you like to view/edit the capital cost inputs? | B40: no | C40: Selecting Yes will expose the Capital Cost input tab for optional user override of default parameters.
A41: Would you like to view/edit the maintenance cost inputs? | B41: no | C41: Selecting Yes will expose the Maintenance Cost input tab for optional user override of default parameters.

Sheet Capital Costs (hidden)
A1: ='Project Location'!A1 -> NCHRP Bioretention Evaluation Tool | S1: Key
A2: Project Title | C2: ='Project Location'!C2:N2 -> Test Run | S2: User Steps | T2: Default Data (editable) | U2: Reference Data; do not edit cells
A3: Project Location | C3: ='Project Location'!C3:N3 -> Portland, OR | S3: Headings and Descriptions | T3: Default Data (not editable)
A4: Company | C4: ='Project Location'!C4:N4 -> Geosyntec Consultants | S4: User Entered Data | T4: Guidance
A6: Capital Costs | AC6: Location Factor | AD6: =RSMeans -> 100 | AE6: California - Santa Ana (926-927)
AC7: Tax | AD7: ='Project Options'!B38 -> 9.25 | AE7: California
A8: Total Facility Cost | B8: =H52 -> 107343.7576
A12: User-Entered Engineer's Estimate Costs | B12: Unit | C12: Default Baseline Unit Cost | D12: User-Entered Baseline Unit Cost | E12: Baseline Unit Cost used in Calculations | F12: Adjusted Unit Cost | G12: Default Quantity | H12: User-Entered Quantity | I12: Quantity used in Calculations | J12: Cost | K12: Guidance | M12: page | N12: Source RSMeans Building Construction Cost Data 2013
A13: Mobilization | B13: LS | C13: =0.1*SUM(J14:J29) -> 6265.504602 | E13: =IF(D13="",C13,D13) -> 6265.504602 | F13: =E13*$AD$6/100 -> 6265.504602 | G13: 1 | I13: =IF(H13="",G13,H13) -> 1 | J13: =F13*I13 -> 6265.504602 | K13: Enter project-specific values in the blue "User Entered Data" cells if applicable and the calculations will automatically update to override the default value. If a value is not provided, the default value will be used in the cost calculations.
A14: Clearing & Grubbing | B14: SY | C14: =4625/4839.963 -> 0.9555858175 | E14: =IF(D14="",C14,D14) -> 0.9555858175 | F14: 0.9555858175 | G14: ='Project Design'!W42/9 -> 389.9442588 | I14: =IF(H14="",G14,H14) -> 389.9442588 | J14: =F14*I14 -> 372.6252034 | M14: 587 | N14: Cut & Chip light trees 6" diameter (31 11 10.10 - 0020) {convert unit cost per ac to per SY)
A15: Planting Media | B15: CY | C15: =4.78/4/0.027778 -> 43.01965584 | E15: 43.01965584 | F15: 43.01965584 | G15: ='Project Design'!W39*'Project Design'!B40/27 -> 311.1111111 | I15: 311.1111111 | J15: 13383.89293 | M15: 639 | N15: Landscape Grading - Topsoil Placement and Grading, Furnish and place,truck dumped, screened, 4" deep (32 91 19.13 0700) {convert SY to CY based on assumption of 4" deep}
A16: Pea Gravel | B16: CY | C16: 129 | E16: 129 | F16: 129 | G16: ='Project Design'!W39*'Project Design'!B51/27 -> 25.92592593 | I16: 25.92592593 | J16: 3344.444444 | M16: 638 | N16: Soil Preparation - Mulching: Stone mulch, pea gravel (32 91 13.16 - 1600)
A17: Gravel | B17: CY | C17: 27 | E17: 27 | F17: 27 | G17: ='Project Design'!W39*'Project Design'!B41/27 -> 103.7037037 | I17: 103.7037037 | J17: 2800 | M17: 601 | N17: Fill by Borrow, Utility bedding, crushed or screened bank run gravel (31 23 23.16 0050)
A18: Mulch | B18: CY | C18: =3.97/2/0.0277778 -> 71.45994283 | E18: 71.45994283 | F18: 71.45994283 | G18: ='Project Design'!W39*'Project Design'!B49/27 -> 25.92592593 | I18: 25.92592593 | J18: 1852.665185 | M18: 639 | N18: Soil Preparation - Mulching: Wood Chips, 2" deep, hand spread (32 91 13.16 - 1900) {convert SY to CY based on assumption of 2" deep}
A19: Slotted PVC Underdrain Pipe | B19: LF | C19: 7.8 | E19: 7.8 | F19: 7.8 | G19: =IF('Project Design'!B33="no",0,'Project Design'!W38) -> 74.83314774 | I19: 74.83314774 | J19: 583.6985523 | M19: 649 | N19: Public Sanitary Utility Sewerage Piping - Sewage Collection PVC: 20' length, S.D.R. 35, B&S, 6" diameter (33 31 13.25 - 2040)
A20: Excavation/Grading | B20: CY | C20: 18.15 | E20: 18.15 | F20: 18.15 | G20: ='Project Design'!W42*('Project Design'!B34+'Project Design'!B40+'Project Design'!B41+'Project Design'!B49+'Project Design'!B52)/27 -> 942.3652922 | I20: 942.3652922 | J20: 17103.93005 | M20: 590 | N20: Common earth with no sheeting or dewatering included, 1' to 4' deep, 3/8 CY excavator (32 23 16.13 0050)
A21: Haul/Dispose of Excavated Material | B21: CY | C21: 10.3 | E21: 10.3 | F21: 10.3 | G21: =G20 -> 942.3652922 | I21: 942.3652922 | J21: 9706.36251 | M21: 602 | N21: 8 CY truck, 15 MPH ave, cycle 6 miles, 20 minute wait/Ld/Uld (31 23 23.20 - 0222)
A22: Finish Grading (SY): | B22: SY | C22: 1.98 | E22: 1.98 | F22: 1.98 | G22: ='Project Design'!W42/9 -> 389.9442588 | I22: 389.9442588 | J22: 772.0896325 | M22: 590 | N22: Finish Grading Hand grading (31 22 16.10 1150)
A23: Bioretention Vegetation (SF) | B23: SF | C23: =64/(PI()*3^2) -> 2.263536968 | E23: 2.263536968 | F23: 2.263536968 | G23: ='Project Design'!W39 -> 2800 | I23: 2800 | J23: 6337.903512 | M23: 641 | N23: Shrubs - broadleaf evergreen, Rhododendrom (32 93 33.2 1100) {price is EA, assumed planting 6 ft on center}
A24: Hydroseed (SF): | B24: SF | C24: =0.71/9 -> 0.07888888889 | E24: 0.07888888889 | F24: 0.07888888889 | G24: ='Project Design'!W39 -> 2800 | I24: 2800 | J24: 220.8888889 | M24: 639 | N24: Seeding - Mechanical Seeding, Hydro or air seeding for large areas, incl. seed and fertilizer (32 92 19.13 1000) {convert unit cost SY to SF}
A25: 18" Square Trench (LF) | B25: LF | C25: =9.45*(18/12*18/12)/27 -> 0.7875 | E25: 0.7875 | F25: 0.7875 | G25: =G19 -> 74.83314774 | I25: 74.83314774 | J25: 58.93110384 | M25: 590 | N25: Excavating, Trench Common earth with no sheeting, 1' to 4' deep, 3/8 CY excavator (31 23 16.13 0050) {price is BCY, assumed 18" wide, 18" deep trench)
A26: Dewatering | B26: DAY | C26: 1200 | E26: =IF(D26="",C26,D26) -> 1200 | F26: =E26*$AD$6/100 -> 1200 | G26: 0 | I26: =IF(H26="",G26,H26) -> 0 | J26: =F26*I26 -> 0
A27: Inflow Structure(s) | B27: LS | C27: 2200 | E27: =IF(D27="",C27,D27) -> 2200 | F27: =E27*$AD$6/100 -> 2200 | G27: 1 | I27: =IF(H27="",G27,H27) -> 1 | J27: =F27*I27 -> 2200
A28: Overflow Structure (concrete or rock riprap) | B28: CY | C28: 125 | E28: =IF(D28="",C28,D28) -> 125 | F28: =E28*$AD$6/100 -> 125 | G28: 7 | I28: =IF(H28="",G28,H28) -> 7 | J28: =F28*I28 -> 875
A29: Metal Beam Guard Rail | B29: LF | C29: 57.5 | E29: =IF(D29="",C29,D29) -> 57.5 | F29: =E29*$AD$6/100 -> 57.5 | G29: =SQRT(G23) -> 52.91502622 | I29: =IF(H29="",G29,H29) -> 52.91502622 | J29: =F29*I29 -> 3042.614008
A30: Conveyance | B30: LF | E30: =IF(D30="",C30,D30) -> 0 | F30: =E30*$AD$6/100 -> 0 | I30: =IF(H30="",G30,H30) -> 0 | J30: =F30*I30 -> 0
A31: Other | E31: =IF(D31="",C31,D31) -> 0 | F31: =E31*$AD$6/100 -> 0 | I31: =IF(H31="",G31,H31) -> 0 | J31: =F31*I31 -> 0 | M31: 599 | N31: Dewatering Systems - 8 hr attended, 6" centrifugal pump (31 23 19.20 - 1100)
A32: Other | E32: 0 | F32: 0 | I32: 0 | J32: 0 | M32: 654 | N32: Storm Drainage Manholes, Frames & Covers - Concrete, cast-in-place, 4' x 4', 8" thick, 4' deep (33 49 13.10 - 0800)
A33: Other | E33: 0 | F33: 0 | I33: 0 | J33: 0 | M33: 612 | N33: Riprap and Rock Lining - Machine Placed for Slope Protection 3/8 to 1/4 CY pieces, grouted (31 37 13.10 - 0110)
A34: Other | E34: 0 | F34: 0 | I34: 0 | J34: 0 | M34: 662 | N34: Vehicle Guide Rails - Guide rail, steel box beam, 6" x 6" (34 71 13.26 - 0900)
A35: Other | E35: 0 | F35: 0 | I35: 0 | J35: 0
A36: Total Facility Base Cost | J36: =SUM(J13:J35) -> 68920.55062
A38: Associated Capital Costs | B38: Default Baseline Unit Cost | C38: User-Entered Baseline Unit Cost | D38: Baseline Unit Cost used in Calculations | E38: Default Quantity | F38: User-Entered Quantity | G38: Quantity used in Calculations | H38: Cost | I38: Guidance
A39: Project Management | B39: =J36*0.05 -> 3446.027531 | D39: =IF(C39="",B39,C39) -> 3446.027531 | E39: 1 | G39: =IF(F39="",E39,F39) -> 1 | H39: =D39*G39 -> 3446.027531 | I39: Enter project-specific values in the blue "User Entered Data" cells if applicable and the calculations will automatically update to override the default value. If a value is not provided, the default value will be used in the cost calculations.
A40: Engineering: Preliminary | B40: =J36*0.1 -> 6892.055062 | D40: =IF(C40="",B40,C40) -> 6892.055062 | E40: 1 | G40: =IF(F40="",E40,F40) -> 1 | H40: =D40*G40 -> 6892.055062
A41: Engineering: Final Design | B41: =J36*0.05 -> 3446.027531 | D41: 3446.027531 | E41: 1 | G41: 1 | H41: 3446.027531
A42: Topographic Survey | B42: =J36*0.025 -> 1723.013766 | D42: 1723.013766 | E42: 1 | G42: 1 | H42: 1723.013766
A43: Geotechnical | D43: 0 | E43: 1 | G43: 1 | H43: 0
A44: Landscape Design | B44: =J36*0.02 -> 1378.411012 | D44: 1378.411012 | E44: 1 | G44: 1 | H44: 1378.411012
A45: Land Acquisition (site, easements, etc.) | D45: 0 | G45: 0 | H45: 0
A46: Utility Relocation | D46: 0 | E46: 1 | G46: 1 | H46: 0
A47: Legal Services | B47: =J36*0.01 -> 689.2055062 | D47: 689.2055062 | E47: 1 | G47: 1 | H47: 689.2055062
A48: Permitting & Construction Inspection | B48: =J36*0.01 -> 689.2055062 | D48: 689.2055062 | E48: 1 | G48: 1 | H48: 689.2055062
A49: Sales Tax | B49: =AD7/100*J36 -> 6375.150933 | D49: 6375.150933 | E49: 1 | G49: 1 | H49: 6375.150933
A50: Contingency (e.g., 20%) | B50: =0.2*J36 -> 13784.11012 | D50: 13784.11012 | E50: 1 | G50: 1 | H50: 13784.11012
A51: Total Associated Capital Costs | H51: =SUM(H39:H50) -> 38423.20697
A52: Total Facility Cost | H52: =J36+H51 -> 107343.7576

Sheet Maintenance Costs (hidden)
B1: ='Project Location'!A1 -> NCHRP Bioretention Evaluation Tool | X1: Key
B2: Project Title | D2: ='Project Location'!C2 -> Test Run | X2: User Steps | Y2: Default Data (editable) | Z2: Reference Data; do not edit cells
B3: Project Location | D3: ='Project Location'!C3 -> Portland, OR | X3: Headings and Descriptions | Y3: Default Data (not editable)
B4: Company | D4: ='Project Location'!C4 -> Geosyntec Consultants | X4: User Entered Data | Y4: Guidance
B6: Maintenance Costs
B10: Maintenance Level | D10: Guidance
B11: ="User entered "&IF(MaintLevel="H","HIGH",IF(MaintLevel="M","MEDIUM","LOW/MINIMUM"))&" maintenance level in Project Options." -> User entered MEDIUM maintenance level in Project Options. | C11: =MaintLevel -> M | D11: Change this parameter in the in "Project Options" tab if desired/applicable
A13: Lookup ID | B13: ROUTINE MAINTENANCE ACTIVITIES (Frequent, scheduled events)
B14: Cost Item | C14: Frequency (months betw. maint. events) | F14: Hours per Event | I14: Average Labor Crew Size | L14: Avg. (Pro-Rated) Labor Rate/Hr. ($) | O14: Machinery Cost/Hour ($) | R14: Materials & Inciden-tals Cost/Event ($) | U14: Total cost per visit ($)
C15: Model | D15: User | E15: Input | F15: Model | G15: User | H15: Input | I15: Model | J15: User | K15: Input | L15: Model | M15: User | N15: Input | O15: Model | P15: User | Q15: Input | R15: Model | S15: User | T15: Input | U15: Default Total | V15: User | W15: Total with User Overrides where entered | X15: Guidance
A16: 1.1 | B16: =B38 -> Inspection, Reporting & Information Management | C16: =VLOOKUP($A16,MaintCostTable,IF(MaintLevel="H",5,IF(MaintLevel="M",4,3))) -> 12 | E16: =IF(D16="",C16,D16) -> 12 | F16: =VLOOKUP($A16,MaintCostTable,IF(MaintLevel="H",8,IF(MaintLevel="M",7,6))) -> 2 | H16: =IF(G16="",F16,G16) -> 2 | I16: =VLOOKUP($A16,MaintCostTable,IF(MaintLevel="H",11,IF(MaintLevel="M",10,9))) -> 2 | K16: =IF(J16="",I16,J16) -> 2 | L16: =VLOOKUP($A16,MaintCostTable,IF(MaintLevel="H",14,IF(MaintLevel="M",13,12))) -> 50 | N16: =IF(M16="",L16,M16) -> 50 | O16: =VLOOKUP($A16,MaintCostTable,IF(MaintLevel="H",17,IF(MaintLevel="M",16,15))) -> 40 | Q16: =IF(P16="",O16,P16) -> 40 | R16: =VLOOKUP($A16,MaintCostTable,IF(MaintLevel="H",20,IF(MaintLevel="M",19,18))) -> 0 | T16: =IF(S16="",R16,S16) -> 0 | U16: =H16*K16*N16+H16*Q16+T16 -> 280 | W16: =IF(V16="",U16,V16) -> 280 | X16: If the model-predicted results do not match expected project maintenance requirements, edit the blue "User Entered Data" column with the appropriate values
A17: 1.2 | B17: =B39 -> Vegetation Management with Trash & Minor Debris Removal | C17: =VLOOKUP($A17,MaintCostTable,IF(MaintLevel="H",5,IF(MaintLevel="M",4,3))) -> 12 | E17: =IF(D17="",C17,D17) -> 12 | F17: =VLOOKUP($A17,MaintCostTable,IF(MaintLevel="H",8,IF(MaintLevel="M",7,6))) -> 8 | H17: =IF(G17="",F17,G17) -> 8 | I17: =VLOOKUP($A17,MaintCostTable,IF(MaintLevel="H",11,IF(MaintLevel="M",10,9))) -> 2 | K17: =IF(J17="",I17,J17) -> 2 | L17: =VLOOKUP($A17,MaintCostTable,IF(MaintLevel="H",14,IF(MaintLevel="M",13,12))) -> 50 | N17: =IF(M17="",L17,M17) -> 50 | O17: =VLOOKUP($A17,MaintCostTable,IF(MaintLevel="H",17,IF(MaintLevel="M",16,15))) -> 60 | Q17: =IF(P17="",O17,P17) -> 60 | R17: =VLOOKUP($A17,MaintCostTable,IF(MaintLevel="H",20,IF(MaintLevel="M",19,18))) -> 100 | T17: =IF(S17="",R17,S17) -> 100 | U17: =H17*K17*N17+H17*Q17+T17 -> 1380 | W17: =IF(V17="",U17,V17) -> 1380
A18: 1.3 | B18: add additional activities if necessary | C18: =VLOOKUP($A18,MaintCostTable,IF(MaintLevel="H",5,IF(MaintLevel="M",4,3))) -> 0 | E18: =IF(D18="",C18,D18) -> 0 | F18: =VLOOKUP($A18,MaintCostTable,IF(MaintLevel="H",8,IF(MaintLevel="M",7,6))) -> 0 | H18: =IF(G18="",F18,G18) -> 0 | I18: =VLOOKUP($A18,MaintCostTable,IF(MaintLevel="H",11,IF(MaintLevel="M",10,9))) -> 0 | K18: =IF(J18="",I18,J18) -> 0 | L18: =VLOOKUP($A18,MaintCostTable,IF(MaintLevel="H",14,IF(MaintLevel="M",13,12))) -> 0 | N18: =IF(M18="",L18,M18) -> 0 | O18: =VLOOKUP($A18,MaintCostTable,IF(MaintLevel="H",17,IF(MaintLevel="M",16,15))) -> 0 | Q18: =IF(P18="",O18,P18) -> 0 | R18: =VLOOKUP($A18,MaintCostTable,IF(MaintLevel="H",20,IF(MaintLevel="M",19,18))) -> 0 | T18: =IF(S18="",R18,S18) -> 0 | U18: =H18*K18*N18+H18*Q18+T18 -> 0 | W18: =IF(V18="",U18,V18) -> 0
A19: 1.4 | B19: add additional activities if necessary | C19: =VLOOKUP($A19,MaintCostTable,IF(MaintLevel="H",5,IF(MaintLevel="M",4,3))) -> 0 | E19: =IF(D19="",C19,D19) -> 0 | F19: =VLOOKUP($A19,MaintCostTable,IF(MaintLevel="H",8,IF(MaintLevel="M",7,6))) -> 0 | H19: =IF(G19="",F19,G19) -> 0 | I19: =VLOOKUP($A19,MaintCostTable,IF(MaintLevel="H",11,IF(MaintLevel="M",10,9))) -> 0 | K19: =IF(J19="",I19,J19) -> 0 | L19: =VLOOKUP($A19,MaintCostTable,IF(MaintLevel="H",14,IF(MaintLevel="M",13,12))) -> 0 | N19: =IF(M19="",L19,M19) -> 0 | O19: =VLOOKUP($A19,MaintCostTable,IF(MaintLevel="H",17,IF(MaintLevel="M",16,15))) -> 0 | Q19: =IF(P19="",O19,P19) -> 0 | R19: =VLOOKUP($A19,MaintCostTable,IF(MaintLevel="H",20,IF(MaintLevel="M",19,18))) -> 0 | T19: =IF(S19="",R19,S19) -> 0 | U19: 0 | W19: =IF(V19="",U19,V19) -> 0
A22: Lookup ID | B22: CORRECTIVE AND INFREQUENT MAINTENANCE ACTIVITIES (Unplanned and/or > 3 yrs. betw. events)
B23: Cost Item | C23: Frequency (months betw. maint. events) | F23: Hours per Event | I23: Average Labor Crew Size | L23: Avg. (Pro-Rated) Labor Rate/Hr. ($) | O23: Machinery Cost/Hour ($) | R23: Materials & Inciden-tals Cost/Event ($) | U23: Total cost per visit ($)
C24: Model | D24: User | E24: Input | F24: Model | G24: User | H24: Input | I24: Model | J24: User | K24: Input | L24: Model | M24: User | N24: Input | O24: Model | P24: User | Q24: Input | R24: Model | S24: User | T24: Input | U24: Default Total | V24: User | W24: Total with User Overrides where entered | X24: Guidance
A25: 2.1 | B25: =B43 -> Corrective Maintenance | C25: =VLOOKUP($A25,MaintCostTable,IF(MaintLevel="H",5,IF(MaintLevel="M",4,3))) -> 96 | E25: =IF(D25="",C25,D25) -> 96 | F25: =VLOOKUP($A25,MaintCostTable,IF(MaintLevel="H",8,IF(MaintLevel="M",7,6))) -> 24 | H25: =IF(G25="",F25,G25) -> 24 | I25: =VLOOKUP($A25,MaintCostTable,IF(MaintLevel="H",11,IF(MaintLevel="M",10,9))) -> 4 | K25: =IF(J25="",I25,J25) -> 4 | L25: =VLOOKUP($A25,MaintCostTable,IF(MaintLevel="H",14,IF(MaintLevel="M",13,12))) -> 50 | N25: =IF(M25="",L25,M25) -> 50 | O25: =VLOOKUP($A25,MaintCostTable,IF(MaintLevel="H",17,IF(MaintLevel="M",16,15))) -> 60 | Q25: =IF(P25="",O25,P25) -> 60 | R25: =VLOOKUP($A25,MaintCostTable,IF(MaintLevel="H",20,IF(MaintLevel="M",19,18))) -> 500 | T25: =IF(S25="",R25,S25) -> 500 | U25: =H25*K25*N25+H25*Q25+T25 -> 6740 | W25: =IF(V25="",U25,V25) -> 6740 | X25: If the model-predicted results do not match expected project maintenance requirements, edit the "User" column with the appropriate values
A26: 2.2 | B26: Sediment Management | C26: =VLOOKUP($A26,MaintCostTable,IF(MaintLevel="H",5,IF(MaintLevel="M",4,3))) -> 300 | E26: =IF(D26="",C26,D26) -> 300 | F26: =VLOOKUP($A26,MaintCostTable,IF(MaintLevel="H",8,IF(MaintLevel="M",7,6))) -> 8 | H26: =IF(G26="",F26,G26) -> 8 | I26: =VLOOKUP($A26,MaintCostTable,IF(MaintLevel="H",11,IF(MaintLevel="M",10,9))) -> 4 | K26: =IF(J26="",I26,J26) -> 4 | L26: =VLOOKUP($A26,MaintCostTable,IF(MaintLevel="H",14,IF(MaintLevel="M",13,12))) -> 50 | N26: =IF(M26="",L26,M26) -> 50 | O26: =VLOOKUP($A26,MaintCostTable,IF(MaintLevel="H",17,IF(MaintLevel="M",16,15))) -> 60 | Q26: =IF(P26="",O26,P26) -> 60 | R26: =VLOOKUP($A26,MaintCostTable,IF(MaintLevel="H",20,IF(MaintLevel="M",19,18))) -> 500 | T26: =IF(S26="",R26,S26) -> 500 | U26: =F26*I26*L26+F26*O26+R26 -> 2580 | W26: =IF(V26="",U26,V26) -> 2580
A27: 2.3 | B27: add additional activities if necessary | C27: =VLOOKUP($A27,MaintCostTable,IF(MaintLevel="H",5,IF(MaintLevel="M",4,3))) -> 0 | E27: =IF(D27="",C27,D27) -> 0 | F27: =VLOOKUP($A27,MaintCostTable,IF(MaintLevel="H",8,IF(MaintLevel="M",7,6))) -> 0 | H27: =IF(G27="",F27,G27) -> 0 | I27: =VLOOKUP($A27,MaintCostTable,IF(MaintLevel="H",11,IF(MaintLevel="M",10,9))) -> 0 | K27: =IF(J27="",I27,J27) -> 0 | L27: =VLOOKUP($A27,MaintCostTable,IF(MaintLevel="H",14,IF(MaintLevel="M",13,12))) -> 0 | N27: =IF(M27="",L27,M27) -> 0 | O27: =VLOOKUP($A27,MaintCostTable,IF(MaintLevel="H",17,IF(MaintLevel="M",16,15))) -> 0 | Q27: =IF(P27="",O27,P27) -> 0 | R27: =VLOOKUP($A27,MaintCostTable,IF(MaintLevel="H",20,IF(MaintLevel="M",19,18))) -> 0 | T27: =IF(S27="",R27,S27) -> 0 | U27: =F27*I27*L27+F27*O27+R27 -> 0 | W27: =IF(V27="",U27,V27) -> 0
B29: Guidance
B30: Note: For facilities judged to require larger or smaller amounts of maintenance (due to land area, etc.), consider multiplying the Model output in Column U by a multiplier (e.g., 120%) in Column V.
B31: Another quick means of adjustment would be to multiply the number of Hours per Event by a multiplier in the User Input field.
A34: Lookup ID | B34: HIGH, MEDIUM, AND LOW (MINIMUM) MAINTENANCE COST TABLES
B35: Cost Item | C35: Frequency (months betw. maint. events) | F35: Hours per Event | I35: Average Labor Crew Size | L35: Avg. (Pro-Rated) Labor Rate/Hr. ($) | O35: Machinery Cost/Hour ($) | R35: Materials & Incidentals Cost/Event ($) | U35: Total cost per visit ($)
C36: Low | D36: Med | E36: High | F36: Low | G36: Med | H36: High | I36: Low | J36: Med | K36: High | L36: Low | M36: Med | N36: High | O36: Low | P36: Med | Q36: High | R36: Low | S36: Med | T36: High | U36: Low | V36: Med | W36: High
A37: 1 | B37: ROUTINE MAINTENANCE ACTIVITIES (Frequent, scheduled)
A38: 1.1 | B38: Inspection, Reporting & Information Management | C38: 12 | D38: 12 | E38: 12 | F38: 2 | G38: 2 | H38: 2 | I38: 2 | J38: 2 | K38: 2 | L38: 50 | M38: 50 | N38: 50 | O38: 40 | P38: 40 | Q38: 40 | R38: 0 | S38: 0 | T38: 0 | U38: =F38*I38*L38+F38*O38+R38 -> 280 | V38: 280 | W38: =H38*K38*N38+H38*Q38+T38 -> 280
A39: 1.2 | B39: Vegetation Management with Trash & Minor Debris Removal | C39: 36 | D39: 12 | E39: 6 | F39: 8 | G39: 8 | H39: 8 | I39: 2 | J39: 2 | K39: 2 | L39: 50 | M39: 50 | N39: 50 | O39: 60 | P39: 60 | Q39: 60 | R39: 100 | S39: 100 | T39: 100 | U39: 1380 | V39: 1380 | W39: =H39*K39*N39+H39*Q39+T39 -> 1380
A40: 1.3 | B40: =B18 -> add additional activities if necessary
A41: 1.4 | B41: =B19 -> add additional activities if necessary
A42: 2 | B42: CORRECTIVE AND INFREQUENT MAINTENANCE ACTIVITIES (Unplanned and/or > 3 yrs. betw. events)
A43: 2.1 | B43: Corrective Maintenance | C43: 144 | D43: 96 | E43: 48 | F43: 24 | G43: 24 | H43: 24 | I43: 4 | J43: 4 | K43: 4 | L43: 50 | M43: 50 | N43: 50 | O43: 60 | P43: 60 | Q43: 60 | R43: 500 | S43: 500 | T43: 500 | U43: =F43*I43*L43+F43*O43+R43 -> 6740 | V43: 6740 | W43: 6740
A44: 2.2 | B44: Sediment Management | C44: 600 | D44: 300 | E44: 120 | F44: 8 | G44: 8 | H44: 8 | I44: 4 | J44: 4 | K44: 4 | L44: 50 | M44: 50 | N44: 50 | O44: 60 | P44: 60 | Q44: 60 | R44: 500 | S44: 500 | T44: 500 | U44: 2580 | V44: 2580 | W44: 2580
A45: 2.3 | B45: =B27 -> add additional activities if necessary

Sheet Project Design
A1: ='Project Location'!A1 -> NCHRP Bioretention Evaluation Tool | D1: Key
A2: Project Title | B2: ='Project Location'!$C$2 -> Test Run | D2: User Steps | F2: Default data; editing allowed with rationale
A3: Project Location | B3: ='Project Location'!$C$3 -> Portland, OR | D3: User Entered Data | F3: Guidance
A4: Company | B4: ='Project Location'!$C$4 -> Geosyntec Consultants | D4: Reference Data; do not edit cells | F4: Warnings
A7: Tributary Area Attributes
A9: Step 1: Provide data describing the tributary area of the project | AI9: Second Treatment Train?
G10: = | AC10: Bioretention
A11: Tributary Area Input Parameters | B11: Value | C11: Guidance | S11: Design Event | T11: Long Term | Y11: underlying soil design infiltration rate (in/hr) | AC11: Vegetated Conveyance | AI11: yes
A12: Tributary Area (acres) | B12: 3 | C12: Enter the total area tributary to the BMP including permeable pavement area, but excluding any BMP area outside of the roadway footprint. | P12: Soil Types | Q12: m | R12: b | S12: Cu | T12: Cu | V12: Infiltration Rate (in/hr) | Y12: =VLOOKUP(B14,P13:V16,7,FALSE) -> 0.06 | AC12: Dispersion (natural-engineered) | AI12: no
A13: Impervious Area (%) | B13: 100 | C13: All impervious area is assumed to be directly connected within the BMP tributary area; adjust imperviousness to account for disconnection if present (Value entered as an integer [e.g. 80 for 80%]) | P13: Loamy Sand (A) | Q13: 0.9 | R13: 0 | S13: 0.2 | T13: 0.05 | V13: 0.8 | AC13: Media Filter Drain
A14: Tributary Area Soil Type (Hydrologic Soil Group) | B14: Clay (D) | C14: Select the soil type that is most representative of the tributary area to the BMP | P14: Silt Loam (B) | Q14: 0.86 | R14: 0.04 | S14: 0.25 | T14: 0.1 | V14: 0.3 | AC14: Permeable Pavement Shoulders
A15: Calculated Runoff Coefficient | B15: =IF((B13/100)<0.55, 0.225*(B13/100)+0.129, 1.14*(B13/100)-0.371) -> 0.769 | C15: This runoff coefficient is calculated based on a Two-line regression model of the volumetric runoff coefficient (Rv) (Granato, 2006), where Rv(%<55) = imperviousness (%) × 0.225 + 0.05, Rv(%>55) = imperviousness (%) × 1.14 - 0.371 | P15: Sandy Clay Loam (C) | Q15: 0.37 | R15: 0.53 | S15: 0.3 | T15: 0.15 | V15: 0.2 | AC15: Infiltration Trenches
A16: User-Provided Runoff Coefficient | B16: 0.7 | C16: Enter a site-specific runoff coefficient if available. If no value is entered here, the Simple Method will be used. | P16: Clay (D) | Q16: 0.15 | R16: 0.75 | S16: 0.35 | T16: 0.2 | V16: 0.06 | AC16: Infiltration Basins
P17: Runoff Coefficient for Percent Capture Estimate | Q17: =VLOOKUP(B14,P13:R16,2,FALSE)*B13/100+VLOOKUP(B14,P13:R16,3,FALSE) -> 0.9 | R17: This is the runoff coefficient used for BMP volume normalization for the BMP sizing event. | W17: ` | AC17: Underground Infiltration System
A18: Tributary Area Runoff Reference Values | B18: Value | C18: Guidance | P18: Equivalent Area | Q18: =(Q17/0.9)*B12 -> 3
A19: Reference 85th Percentile, 24-Hour Storm Depth, inches | B19: ='Project Location'!$P$22 -> Select Rain Gage | C19: Per project-specific user input; for reference purposes only.
A20: Reference Runoff from 85th Percentile Storm Event, cu-ft | B20: =IF(B16="",ROUND((B15*B12*B19*43560/12),-1),ROUND((B16*B12*B19*43560/12),-1)) ->  | C20: Volume is based on the Simple Method volumetric runoff coefficient or the user-entered runoff coefficient, if entered. For refereence only.
A21: Reference Average Annual Precipitation Depth, inches | B21: ='Project Location'!$P$23 -> Select Rain Gage | C21: Per project-specific user input; for reference purposes only.
A22: Reference Average Annual Runoff Volume, cu-ft | B22: =IF(B16="",ROUND((B15*B12*B21*43560/12),-3),ROUND((B16*B12*B21*43560/12),-3)) ->  | C22: Volume is based on the Simple Method volumetric runoff coefficient or the user-entered runoff coefficient, if entered. For refereence only.
A24: Bioretention Conceptual Design Parameters
A26: Step 2: Provide data describing the BMP design
A30: Primary Bioretention Design Parameters | B30: Value | C30: Guidance | D30: Default Values | H30: Validation | I30: =IF(OR(I39*12*(B46/0.7)<I33,I39*12*(B46/0.7)>I34,I42+I43<I35,I42+I43>I36),1,"") ->  | J30: =IF(OR(IF(B32=0,0,J39*12/MIN(B43,B32))<J33,IF(B32=0,0,J39*12/MIN(B43,B32))>J34,IF(J46=0,0,J42+J43)<J35,IF(J46=0,0,J42+J43)>J36),1,"") ->  | K30: =IF(OR(IF(B43=0,0,K39*12/B43)<K33,IF(B43=0,0,K39*12/B43)>K34,IF(K46=0, 0, K42+K43)<K35,IF(K46=0, 0, K42+K43)>K36),1,"") -> 
A31: Storage Volume (cu-ft) | B31: 10000 | C31: Enter the total storage volume provided by the bioretention (including ponding , planting media, and stone reservoir storage) | D31: User-entered
A32: Underlying Soil Design Infiltration Rate (in/hr) | B32: 0.6 | C32: A default infiltration rate has been provided based on the soil type selected for the tributary. If a localized site infiltration rate is available, it should override this default data. If the system is lined with an impermeable barrier, enter zero. | D32: By tributary soil type; recommend user override with site data | H32: Look-ups Validation | P32: Storage Volume (cu-ft)
A33: Underdrain Present? | B33: yes | C33: Underdrains should be considered if infiltration rates are not adequate to drain the system in a reasonable time. The elevation of the underdrain can be specified in the default parameters section. | D33: A and B Soils: No C and D Soils: Yes | H33: Min x | I33: 0.5 | J33: 0 | K33: 0 | L33: 0 | P33: Underlying Soil Design Infiltration Rate (in/hr)
A34: Ponding Depth (ft) | B34: 2 | C34: Ponding depth is equal to the elevation of the overflow above the surface of the planting media | D34: 1 | H34: Max x | I34: 9.9999 | J34: 359.9999 | K34: 359.9999 | L34: 359.9999 | P34: Underdrain Present?
H35: Min y | I35: 0 | J35: 0 | K35: 0 | L35: 0 | P35: Ponding Depth (ft)
H36: Max y | I36: 2.9999 | J36: 2.9999 | K36: 2.9999 | L36: 2.9999 | P36: Planting Media Thickness (ft) | V36: Dimensions of Bioretention Area
P37: Stone Reservoir Thickness (ft) | V37: Width of Full Ponding Depth (ft) | W37: =(W39/B48)^0.5 -> 37.41657387
I38: ET | J38: Freely Drained (infiltration) | K38: Capture | L38: Surface Capture (Check) | P38: Underdrain Discharge Elev. from bottom of stone reservoir (ft) | V38: Length of Full Ponding Depth | W38: =W37*B48 -> 74.83314774
A39: Additional Bioretention Design and Reference Parameters | C39: Guidance | D39: Default Values | H39: Storage Depth (ft) | I39: =B45*B40+((B49)*B50*(B45/(B45+B44))) -> 0.5035714286 | J39: =IF(B33="no", (B34+(B40*(B44+B45))+(B41*B47)+(B49*B50))-I39, (B47*B42)) -> 0.2 | K39: =IF(B33="no",0, B34+(B40*B44)+((B41-B42)*B47)+((B49)*B50*(B44/(B44+B45)))) -> 2.871428571 | L39: =B34 -> 2 | P39: Planting Media Filtration Rate (in/hr) | S39: Default Parameters? | V39: Surface Area at Full ponding Depth (sq.ft.) | W39: =ROUND(B31/(B34+(B40*(B44+B45))+(B41*B47)+(B49*B50)),-1) -> 2800 | AK39: Underdrain?
A40: Planting Media Thickness (ft) | B40: 3 | C40: Thickness of engineered planting media (aka bioretention soil media), excluding mulch layer. | D40: 2 | H40: Storage Volume (ft3) | I40: =(I47/12)*W44 -> 1410 | J40: =J39*W44 -> 560 | K40: =K39*W44 -> 8040 | L40: =L39*W44 -> 5600 | P40: Soil Freely Drained Storage (in/in) | Q40: a | R40: =B48 -> 2 | S40: yes | V40: Width of total depth (with freeboard) | W40: =W37+2*(B52)*B53 -> 43.41657387 | AK40: yes
A41: Stone Reservoir Thickness (ft) | B41: 1 | C41: Inclusive of choking stone layers if present. Note; Stone Reservoir Thickness must be greater than the Underdrain Discharge Elevation from bottom of the stone reservoir. | D41: 1 | H41: Storage Volume as Equivalent Precipitation Event (in) | I41: =I40*12/($B$12*43560*$Q$17) -> 0.1438628711 | J41: =J40*12/($B$12*43560*$Q$17) -> 0.05713702683 | K41: =K40*12/($B$12*43560*$Q$17) -> 0.8203244567 | L41: =L40*12/($B$12*43560*$Q$17) -> 0.5713702683 | P41: Soil Suction Storage (in/in) | Q41: b | R41: =2*B53*(B34+B52/12)*(1+B48) -> 37.5 | S41: no | V41: Length of total depth (with freeboard) | W41: =W38+2*(B52)*B53 -> 80.83314774 | AK41: no
A42: Underdrain Discharge Elev. from bottom of stone reservoir (ft) | B42: 0.5 | C42: Elevation above the bottom of the facility at which water begins to discharge from the underdrain system. This can be controlled by the elevation or the underdrain or by an inverted elbow design. Value is ignored if no underdrain is used. | D42: 0.5 | H42: Storage Volume as Fraction of 85th Percentile precipitation event | I42: =I41/$B$19 ->  | J42: =(J41/$B$19) ->  | K42: =K41/$B$19 ->  | L42: =L41/$B$19 ->  | P42: Crop coefficient of Vegetation | Q42: c | R42: =4*(B53^2)*((B34+B52/12)^2)-W44 -> -2643.75 | V42: Surface Area with Freeboard (sq.ft.) | W42: =W41*W40 -> 3509.49833
A43: Planting Media Filtration Rate (in/hr) | B43: 2 | C43: Enter the filtration rate of the planting media that is characteristic of long term average conditions. Or, if the rate of filtration through the system will be controlled by an underdrain outlet control (preferred), then enter the average outlet controlled rate. | D43: 2 | H43: Upstream Compartment Equivalent Depth | I43: 0 | J43: =IFERROR(IF(J46=0,0,adjusted_Drawdown(J46,I45)),3) -> 3 | K43: =IFERROR(IF(K46=0, 0, adjusted_Drawdown(K46,J45)),3) -> 3 | L43: 0 | P43: Stone Freely Drained Storage (in/in) | Q43: Bottom Width (ft) | R43: =IF((-R41-SQRT(R41^2-4*R40*R42))/(2*R40)<=0,(-R41+SQRT(R41^2-4*R40*R42))/(2*R40),(-R41-SQRT(R41^2-4*R40*R42))/(2*R40)) -> 28.17184574
A44: Soil Freely Drained Storage (in/in) | B44: 0.2 | C44: Enter the storage provided by the soil that is associated with freely drained conditions, generally calculated as the surplus of water that exceeds the field capacity and is below saturation | D44: 0.2 | H44: Adjusted Depth for Percent Capture | I44: =IF(I42+I43>I36,I36,I42+I43) ->  | J44: =IF(IF(J46=0,0,J42+J43)>J36,J36,IF(J46=0,0,J42+J43)) ->  | K44: =IF(IF(K46=0, 0, K42+K43)>K36,K36,IF(K46=0, 0, K42+K43)) ->  | L44: =IF(IF(L46=0, 0, L42+L43)>L36,L36,IF(L46=0, 0, L42+L43)) ->  | P44: BMP Length/width ratio (L:1W) | V44: Bioretention Area Effective Footprint (ft2) | W44: =ROUND(B31/(B34+(B40*(B44+B45))+(B41*B47)+(B49*B50)),-1) -> 2800 | X44: This "effective" area footprint is approximately equal to the wetted footprint when the ponding depth is half full. It is calculated based on the provided storage volume and geometry parameters provided below. The effective footprint does not include the max wetted surface or freeboard above the water quality ponding depth. | Y44: Calculated
A45: Soil Suction Storage (in/in) | B45: 0.15 | C45: Enter the storage provided by the soil after the soil is freely drained by gravity, this is the volume of water available to plants and is lost to ET. | D45: 0.15 | H45: Cumulative Percent Capture | I45: =IF(I43=I36, $H$57, IF(B43=0, 0, Capture_ET(I47,I44))) ->  | J45: =IF(IF(J43=J36, $H$57, IF(J46=0, I45,Capture_Drawdown(J46,J44)))>L45,L45,IF(J43=J36, $H$57, IF(J46=0, I45,Capture_Drawdown(J46,J44)))) ->  | K45: =IF(K43=K36, $H$57, IF(K46=0, J45, IF(B32>B43,J45,Capture_Drawdown(K46,K44)))) ->  | L45: =Capture_Drawdown(L46,L44) ->  | P45: Mulch depth above Planting Media Layer (ft)
A46: Crop coefficient of Vegetation | B46: 0.7 | C46: Enter the crop coefficient of the vegetation being planted, which will be used to represent the potential ET available | D46: 0.7 | H46: Drawdown Time (hours) | I46: - | J46: =IF(IF(B32=0,0,J39*12/MIN(B43,B32))>J34,J34,IF(B32=0,0,J39*12/MIN(B43,B32))) -> 4 | K46: =IF(IF(B43=0,0,K39*12/B43)>K34,K34,IF(B43=0,0,K39*12/B43)) -> 17.22857143 | L46: =IF(IF(B43=0,0,L39*12/B43)>L34,L34,IF(B43=0,0,L39*12/B43)) -> 12 | P46: Mulch porosity (in/in)
A47: Stone Freely Drained Storage (in/in) | B47: 0.4 | C47: Enter the available porosity in the stone reservoir. | D47: 0.4 | H47: ET Depth (in) | I47: =IF(I39*12*(B46/0.7)<I33,I33,IF(I39*12*(B46/0.7)>I34,I34,I39*12*(B46/0.7))) -> 6.042857143 | J47: - | K47: - | P47: Pea Gravel Depth within Stone Reservoir (ft)
A48: BMP Length/width ratio (L:1W) | B48: 2 | C48: For example: For BMP that is 60 feet long by 20 feet wide, enter 3 | D48: 2 | H48: Check (ft3; sum should be equal to WQV) | I48: =W44*I39 -> 1410 | J48: =W44*J39 -> 560 | K48: =W44*K39 -> 8040 | L48: =I48+J48+K48 -> 10010 | P48: Freeboard depth (ft)
A49: Mulch depth above Planting Media Layer (ft) | B49: 0.25 | C49: Included in water quality volume calculations | D49: 0.25 | H49: Notes | P49: Horizontal/vertical side slope ratio (H:1V)
A50: Mulch porosity (in/in) | B50: 0.5 | C50: Included in water quality volume calculations | D50: 0.5 | H50: 1. Adjusted depths are calculated based on previous compartment % Capture
A51: Pea Gravel Depth within Stone Reservoir (ft) | B51: 0.25 | C51: The Pea Gravel is for cost calculations only and is included in the stone reservoir depth for volume calculations | D51: 0.25 | H51: 2. If the underlying infiltration rate is greater than the media infiltration rate or no retention is provided, the remaining depth (excluding ET) is lost to infiltration
A52: Freeboard depth (ft) | B52: 1 | C52: The storage depth above the water quality volume. Value is neglected in estimating treatment volumes as overflow/bypass is assumed to begin when the water quality storage volume has been exhausted. However, is included in cost calculations. | D52: 1 | H52: 3. To account for the total loss to infiltration in Note 2, the "Freely Drained (Infiltration)" percent capture is set equal to ET % capture so that the total bioretention depth is adjusted from the ET % Capture.
A53: Horizontal/vertical side slope ratio (H:1V) | B53: 3 | C53: For example: For a side slope of 4 horizontal feet per 1 vertical foot, enter 4 | D53: 3
A54: Approximate Total Footprint to Top of Freeboard, sq-ft | B54: =ROUND(W42, -1) -> 3510 | C54: This footprint accounts for freeboard above ponding, assuming a rectangular shape; actual dimensions may vary. | D54: Calculated | H54: 4. This adjusted bioretention depth in Note 3 is in reality the infiltration depth, therefore the "BMP Performance Summary Results" have incorporated an if statement to account for this bioretention % Capture as infiltration in the event that the underlying soil infiltration rate is greater than the media infiltration rate | P54: =COUNTA(P32:P52) -> 18
A55: Calculated Drawdown Time of Surface Ponding, hours | B55: =IF(B33="no",B34*12/B32,IF(B33="yes",B34*12/B43)) -> 12 | C55: For Reference Purposes Only: For bioretention, a target of 3 to 24 hours is typically recommended. | D55: Calculated
H56: % Volume Reduction for Second BMP Adjustment | I56: Cumulative % Capture | J56: Individual ET | K56: Individual Infiltration | L56: Individual Dispersion | M56: Individual Capture
H57: =J45 ->  | I57: =K45 ->  | J57: =I45 ->  | K57: =IF(B42=0,(J45-I45)+(B32/(B32+B43))*K45,J45-I45) ->  | L57: 0 | M57: =K45-J45 -> 

Sheet Results Summary Report
A1: ='Project Location'!A1 -> NCHRP Bioretention Evaluation Tool
A2: Project Title | B2: ='Project Location'!$C$2 -> Test Run
A3: Project Location | B3: ='Project Location'!$C$3 -> Portland, OR
A4: Company | B4: ='Project Location'!$C$4 -> Geosyntec Consultants
A7: Results Summary Report
A10: Summary of Modeled Scenario
A12: ="The modeled scenario consists of a tributary area of "&'Project Design'!B12&" acres at "&'Project Design'!B13&"% impervious, draining to a Bioretention BMP." -> The modeled scenario consists of a tributary area of 3 acres at 100% impervious, draining to a Bioretention BMP.
A13: ="Analysis is based on the "&'Project Location'!P11&" gage, in "&'Project Location'!O11&", with Project Location 85th percentile, 24-hour storm depth of "&FIXED('Project Location'!P22,2)&" inches, and Project Location average annual precipitation depth of "&ROUND('Project Location'!P23,1)&" inches." -> 
A16: Summary of Primary Conceptual Design Parameters
A18: Bioretention
A19: =IF('Project Design'!P32=0,"",'Project Design'!P32) -> Storage Volume (cu-ft) | B19: =IF(A19="","",VLOOKUP(A19,'Project Design'!$A$31:$B$58,2,FALSE)) -> 10000
A20: =IF('Project Design'!P33=0,"",'Project Design'!P33) -> Underlying Soil Design Infiltration Rate (in/hr) | B20: =IF(A20="","",VLOOKUP(A20,'Project Design'!$A$31:$B$58,2,FALSE)) -> 0.6
A21: =IF('Project Design'!P34=0,"",'Project Design'!P34) -> Underdrain Present? | B21: =IF(A21="","",VLOOKUP(A21,'Project Design'!$A$31:$B$58,2,FALSE)) -> yes
A22: =IF('Project Design'!P35=0,"",'Project Design'!P35) -> Ponding Depth (ft) | B22: =IF(A22="","",VLOOKUP(A22,'Project Design'!$A$31:$B$58,2,FALSE)) -> 2
A23: =IF('Project Design'!P36=0,"",'Project Design'!P36) -> Planting Media Thickness (ft) | B23: =IF(A23="","",VLOOKUP(A23,'Project Design'!$A$31:$B$58,2,FALSE)) -> 3
A24: ='Project Design'!A41 -> Stone Reservoir Thickness (ft) | B24: =IF(A24="","",VLOOKUP(A24,'Project Design'!$A$31:$B$58,2,FALSE)) -> 1
A25: ='Project Design'!A54 -> Approximate Total Footprint to Top of Freeboard, sq-ft | B25: =IF(A25="","",VLOOKUP(A25,'Project Design'!$A$31:$B$58,2,FALSE)) -> 3510
A26: See "Project Design" tab for detailed inputs
A28: Summary of Whole Lifecycle Cost Results
A30: Capital Costing Method | B30: Line Item Engineer's Estimate
A31: Assumed Level of Maintenance | B31: ='Project Options'!B34 -> M
A32: Estimated Capital Cost, $ (2013) | B32: ='Whole Life Costs Summary'!B14 -> 107343.7576
A33: Estimated NPV of Design Life Maintenance Costs, $ (2013) | B33: ='Whole Life Costs'!L3 -> 46680
A34: Estimated NPV of Design Life Whole Life Cycle Cost, $ (2013) | B34: =SUM(B32:C33) -> 154023.7576
A35: Estimated Annualized Whole Life Cycle Cost, $/yr (2013) | B35: =B34/'Project Options'!B35 -> 7701.18788
A36: Costs are based on design life with routine and major maintenance.
A38: Summary of Volume and Pollutant Load Performance
B40: Average Annual Volume, cf/yr | C40: Percent of Baseline Runoff Volume, % | D40: Average Annual Pollutant Loads | S40: Average Annual Volume, cf/yr | T40: Percent of Baseline Runoff Volume, % | U40: Average Annual Pollutant Loads
A41: Volume and Pollutant Load Performance | D41: Pathogens (CFU/yr) | F41: Metals (lb/yr) | I41: Nutrients (lb/yr) | N41: Sediment (lb/yr) | U41: Pathogens (CFU) | W41: Metals (lb) | Z41: Nutrients (lb) | AE41: Sediment (lb)
D42: E. Coli | E42: Fecal Coliform | F42: Total Copper | G42: Total Lead | H42: Total Zinc | I42: Nitrate [NO3] | J42: Total Kjeldahl Nitrogen [TKN] | K42: Total Nitrogen | L42: Dissolved Phosphorus | M42: Total Phosphorus | N42: Total Suspended Solids [TSS] | U42: E. Coli | V42: Fecal Coliform | W42: Total Copper | X42: Total Lead | Y42: Total Zinc | Z42: Nitrate [NO3] | AA42: Total Kjeldahl Nitrogen [TKN] | AB42: Total Nitrogen | AC42: Dissolved Phosphorus | AD42: Total Phosphorus | AE42: Total Suspended Solids [TSS]
A43: Baseline Average Annual Runoff Volume | B43: =IF(S43=0,0,IFERROR(ROUND(S43,3-1-INT(LOG(ABS(S43)))),"N/A")) ->  | C43: - | D43: =IF(U43=0,0,IFERROR(ROUND(U43,3-1-INT(LOG(ABS(U43)))),"N/A")) ->  | E43: =IF(V43=0,0,IFERROR(ROUND(V43,3-1-INT(LOG(ABS(V43)))),"N/A")) ->  | S43: ='Project Design'!B22 ->  | T43: -- | U43: =$S43*28316.8*100*'Pollutant Concentrations'!$I$26 ->  | V43: =$S43*28316.8*100*'Pollutant Concentrations'!$I$25 ->  | W43: =$S43*28.3168*'Pollutant Concentrations'!$I$19*10^-6*0.00220462 ->  | X43: =$S43*28.3168*'Pollutant Concentrations'!$I$18*10^-6*0.00220462 ->  | Y43: =$S43*28.3168*'Pollutant Concentrations'!$I$17*10^-6*0.00220462 ->  | Z43: =$S43*28.3168*'Pollutant Concentrations'!$I$22*10^-3*0.00220462 ->  | AA43: =$S43*28.3168*'Pollutant Concentrations'!$I$23*10^-3*0.00220462 ->  | AB43: =$S43*28.3168*'Pollutant Concentrations'!$I$20*10^-3*0.00220462 ->  | AC43: =$S43*28.3168*'Pollutant Concentrations'!$I$24*10^-3*0.00220462 ->  | AD43: =$S43*28.3168*'Pollutant Concentrations'!$I$21*10^-3*0.00220462 ->  | AE43: =$S43*28.3168*'Pollutant Concentrations'!$I$16*10^-3*0.00220462 -> 
A44: Runoff Bypassed | B44: =IF(S44=0,0,IFERROR(ROUND(S44,3-1-INT(LOG(ABS(S44)))),"N/A")) ->  | C44: =IF(T44=0,0,IFERROR(ROUND(T44,3-1-INT(LOG(ABS(T44)))),"N/A")) ->  | D44: =IF(U44=0,0,IFERROR(ROUND(U44,3-1-INT(LOG(ABS(U44)))),"N/A")) ->  | E44: =IF(V44=0,0,IFERROR(ROUND(V44,3-1-INT(LOG(ABS(V44)))),"N/A")) ->  | F44: =IF(W44=0,0,IFERROR(ROUND(W44,3-1-INT(LOG(ABS(W44)))),"N/A")) ->  | G44: =IF(X44=0,0,IFERROR(ROUND(X44,3-1-INT(LOG(ABS(X44)))),"N/A")) ->  | H44: =IF(Y44=0,0,IFERROR(ROUND(Y44,3-1-INT(LOG(ABS(Y44)))),"N/A")) ->  | I44: =IF(Z44=0,0,IFERROR(ROUND(Z44,3-1-INT(LOG(ABS(Z44)))),"N/A")) ->  | J44: =IF(AA44=0,0,IFERROR(ROUND(AA44,3-1-INT(LOG(ABS(AA44)))),"N/A")) ->  | K44: =IF(AB44=0,0,IFERROR(ROUND(AB44,3-1-INT(LOG(ABS(AB44)))),"N/A")) ->  | L44: =IF(AC44=0,0,IFERROR(ROUND(AC44,3-1-INT(LOG(ABS(AC44)))),"N/A")) ->  | M44: =IF(AD44=0,0,IFERROR(ROUND(AD44,3-1-INT(LOG(ABS(AD44)))),"N/A")) ->  | N44: =IF(AE44=0,0,IFERROR(ROUND(AE44,3-1-INT(LOG(ABS(AE44)))),"N/A")) ->  | S44: =S43-S45 ->  | T44: =S44/$S$43 ->  | U44: =S44*28316.8*100*'Pollutant Concentrations'!$I$26 ->  | V44: =$S44*28316.8*100*'Pollutant Concentrations'!$I$25 ->  | W44: =$S44*28.3168*'Pollutant Concentrations'!$I$19*10^-6*0.00220462 ->  | X44: =$S44*28.3168*'Pollutant Concentrations'!$I$18*10^-6*0.00220462 ->  | Y44: =$S44*28.3168*'Pollutant Concentrations'!$I$17*10^-6*0.00220462 ->  | Z44: =$S44*28.3168*'Pollutant Concentrations'!$I$22*10^-3*0.00220462 ->  | AA44: =$S44*28.3168*'Pollutant Concentrations'!$I$23*10^-3*0.00220462 ->  | AB44: =$S44*28.3168*'Pollutant Concentrations'!$I$20*10^-3*0.00220462 ->  | AC44: =$S44*28.3168*'Pollutant Concentrations'!$I$24*10^-3*0.00220462 ->  | AD44: =$S44*28.3168*'Pollutant Concentrations'!$I$21*10^-3*0.00220462 ->  | AE44: =$S44*28.3168*'Pollutant Concentrations'!$I$16*10^-3*0.00220462 -> 
A45: BMP Captured | S45: ='Project Design'!I57*'Results Summary Report'!S43 ->  | T45: =S45/$S$43 ->  | U45: =$T$45*U43 ->  | V45: =$T$45*V43 -> 
A46: Total Volume Reduction | S46: =ROUND(SUM(S47:S48),-2) ->  | T46: =S46/$S$43 ->  | U46: =$T$46*U43 ->  | V46: =$T$46*V43 -> 
A47: ET Reduction | C47: =IF(T47=0,0,IFERROR(ROUND(T47,3-1-INT(LOG(ABS(T47)))),"N/A")) ->  | D47: - | E47: - | F47: - | G47: - | H47: - | I47: - | J47: - | K47: - | L47: - | M47: - | N47: - | S47: ='Project Design'!J57*'Results Summary Report'!S43 ->  | U47: - | V47: - | W47: - | X47: - | Y47: - | Z47: - | AA47: - | AB47: - | AC47: - | AD47: - | AE47: -
A48: Infiltration Reduction | D48: - | E48: - | F48: - | G48: - | H48: - | I48: - | J48: - | K48: - | L48: - | M48: - | N48: - | S48: ='Project Design'!K57*'Results Summary Report'!S43 ->  | U48: - | V48: - | W48: - | X48: - | Y48: - | Z48: - | AA48: - | AB48: - | AC48: - | AD48: - | AE48: -
A49: Treatment Reduction | B49: - | C49: - | S49: - | T49: - | U49: =IF(U45-U46<=U50,0,U45-U46-U50) ->  | V49: =IF(V45-V46<=V50,0,V45-V46-V50) -> 
A50: BMP Effluent | S50: =S43-S44-S46 ->  | T50: =S50/S43 ->  | U50: =S50*28316.8*100*'Pollutant Concentrations'!K26 ->  | V50: =$S50*28316.8*100*'Pollutant Concentrations'!$K$25 ->  | W50: =$S50*28.3168*'Pollutant Concentrations'!$K$19*10^-6*0.00220462 ->  | X50: =$S50*28.3168*'Pollutant Concentrations'!$K$18*10^-6*0.00220462 ->  | Y50: =$S50*28.3168*'Pollutant Concentrations'!$K$17*10^-6*0.00220462 ->  | Z50: =$S50*28.3168*'Pollutant Concentrations'!$K$22*10^-3*0.00220462 ->  | AA50: =$S50*28.3168*'Pollutant Concentrations'!$K$23*10^-3*0.00220462 ->  | AB50: =$S50*28.3168*'Pollutant Concentrations'!$K$20*10^-3*0.00220462 ->  | AC50: =$S50*28.3168*'Pollutant Concentrations'!$K$24*10^-3*0.00220462 ->  | AD50: =$S50*28.3168*'Pollutant Concentrations'!$K$21*10^-3*0.00220462 ->  | AE50: =$S50*28.3168*'Pollutant Concentrations'!$K$16*10^-3*0.00220462 -> 
A51: Total Discharge | S51: =S50+S44 ->  | T51: =S51/S43 ->  | U51: =U50+U44 ->  | V51: =V50+V44 -> 
A52: BMP Load Reduction | B52: - | C52: - | S52: - | U52: =U45-U50 ->  | V52: =V45-V50 -> 
A53: % Annual BMP Load Reduction | B53: - | C53: - | U53: =U52/U43 ->  | V53: =V52/V43 -> 
A55: Annualized Cost Per Unit of Performance | B55: Hydrologic Performance ($/cu-ft removed) | D55: Pathogens ($/10^12 CFU removed) | F55: Metals ($/lb removed) | I55: Nutrients ($/lb removed) | N55: Sediment ($/lb removed)
B56: Volume Reduction | C56: Volume Capture | D56: E. Coli | E56: Fecal Coliform | F56: Total Copper | G56: Total Lead | H56: Total Zinc | I56: Nitrate [NO3] | J56: Total Kjeldahl Nitrogen [TKN] | K56: Total Nitrogen | L56: Dissolved Phosphorus | M56: Total Phosphorus | N56: Total Suspended Solids [TSS]
A57: Whole Lifecycle Cost per Unit, annualized (2013 dollars) | B57: =B35/B46 ->  | C57: =B35/B45 ->  | D57: =$B$35/(D52/10^12) ->  | E57: =$B$35/(E52/10^12) ->  | F57: =$B$35/(F52) -> 
A82: Summary of Average Water Quality Concentrations
A84: Average Influent and Effluent Quality Summary Table | D84: Average Annual Concentration
D85: Pathogens (CFU/100ml) | F85: Metals (mg/L) | I85: Nutrients (mg/L) | N85: Sediment (mg/L)
D86: E. Coli | E86: Fecal Coliform | F86: Total Copper | G86: Total Lead | H86: Total Zinc | I86: Nitrate [NO3] | J86: Total Kjeldahl Nitrogen [TKN] | K86: Total Nitrogen | L86: Dissolved Phosphorus | M86: Total Phosphorus | N86: Total Suspended Solids [TSS]
A87: Influent Concentration | D87: =VLOOKUP(D$93,'Pollutant Concentrations'!$A$16:$K$26,9,FALSE) -> 6025.22 | E87: =VLOOKUP(E$93,'Pollutant Concentrations'!$A$16:$K$26,9,FALSE) -> 8699.89 | F87: =VLOOKUP(F$93,'Pollutant Concentrations'!$A$16:$K$26,9,FALSE) -> 41.76 | G87: =VLOOKUP(G$93,'Pollutant Concentrations'!$A$16:$K$26,9,FALSE) -> 44.08 | H87: =VLOOKUP(H$93,'Pollutant Concentrations'!$A$16:$K$26,9,FALSE) -> 189.93 | I87: =VLOOKUP(I$93,'Pollutant Concentrations'!$A$16:$K$26,9,FALSE) -> 1.06 | J87: =VLOOKUP(J$93,'Pollutant Concentrations'!$A$16:$K$26,9,FALSE) -> 2.32 | K87: =VLOOKUP(K$93,'Pollutant Concentrations'!$A$16:$K$26,9,FALSE) -> 3.38 | L87: =VLOOKUP(L$93,'Pollutant Concentrations'!$A$16:$K$26,9,FALSE) -> 0.25 | M87: =VLOOKUP(M$93,'Pollutant Concentrations'!$A$16:$K$26,9,FALSE) -> 0.4420194995 | N87: =VLOOKUP(N$93,'Pollutant Concentrations'!$A$16:$K$26,9,FALSE) -> 138.84
A88: Treated Effluent Concentration | D88: =VLOOKUP(D$93,'Pollutant Concentrations'!$A$16:$K$26,11,FALSE) -> 236.4393307 | E88: =VLOOKUP(E$93,'Pollutant Concentrations'!$A$16:$K$26,11,FALSE) -> 229.6193564 | F88: =VLOOKUP(F$93,'Pollutant Concentrations'!$A$16:$K$26,11,FALSE) -> 15.6986591 | G88: =VLOOKUP(G$93,'Pollutant Concentrations'!$A$16:$K$26,11,FALSE) -> 44.08 | H88: =VLOOKUP(H$93,'Pollutant Concentrations'!$A$16:$K$26,11,FALSE) -> 39.80502301 | I88: =VLOOKUP(I$93,'Pollutant Concentrations'!$A$16:$K$26,11,FALSE) -> 1.06 | J88: =VLOOKUP(J$93,'Pollutant Concentrations'!$A$16:$K$26,11,FALSE) -> 1.965059626 | K88: =VLOOKUP(K$93,'Pollutant Concentrations'!$A$16:$K$26,11,FALSE) -> 3.025059626 | L88: =VLOOKUP(L$93,'Pollutant Concentrations'!$A$16:$K$26,11,FALSE) -> 0.25 | M88: =VLOOKUP(M$93,'Pollutant Concentrations'!$A$16:$K$26,11,FALSE) -> 0.4420194995 | N88: =VLOOKUP(N$93,'Pollutant Concentrations'!$A$16:$K$26,11,FALSE) -> 16.90738034
A89: Whole Effluent Concentration* | D89: =U51/($S$51*28316.8*100) ->  | E89: =V51/($S$51*28316.8*100) ->  | F89: =W51*453592370/($S$51*28.3168) ->  | G89: =X51*453592370/($S$51*28.3168) ->  | I89: =Z51*453592/($S$51*28.3168) ->  | J89: =AA51*453592/($S$51*28.3168) -> 
A90: * Accounting for treated effluent quality, bypass effluent quality, capture efficiency and volume reduction
D93: Escherichia Coli [E. Coli] (col/100mL) | E93: Fecal Coliform (col/100mL) | F93: Total Copper (ug/L) | G93: Total Lead (ug/L) | H93: Total Zinc (ug/L) | I93: Nitrate [NO3] (mg/L) | J93: Total Kjeldahl Nitrogen [TKN] (mg/L) | K93: Total Nitrogen (mg/L) | L93: Dissolved Phosphorus (mg/L) | M93: Total Phosphorus (mg/L) | N93: Total Suspended Solids (mg/L)

Sheet Supporting Data
A1: ='Project Location'!A1 -> NCHRP Bioretention Evaluation Tool
A2: Project Title | B2: ='Project Location'!C2 -> Test Run
A3: Project Location | B3: ='Project Location'!C3 -> Portland, OR
A4: Company | B4: ='Project Location'!C4 -> Geosyntec Consultants
A6: Supporting Data from Continuous Simulation Lookup Database
B9: Rain Gage Used for Nomograph Development | F9: Project Data Used to Localize Model Results
B10: Rain Gage ID | C10: ='Project Location'!P14 -> Select Rain Gage | F10: Project Location 85th Percentile - 24 hour storm depth (in) | G10: ='Project Location'!P22 -> Select Rain Gage
B11: State | C11: ='Project Location'!O11 -> 0 | F11: Project Location Annual Average Precipitation Depth (in) | G11: ='Project Location'!P23 -> Select Rain Gage
B12: Climate Division and Name | C12: ='Project Location'!P11 -> 0
B13: Elevation, feet | C13: ='Project Location'!P15 -> Select Rain Gage
B14: 85th Percentile, 24-hour Storm Depth, inches | C14: ='Project Location'!P16 -> Select Rain Gage
B15: 95th Percentile, 24-hour Storm Depth, inches | C15: ='Project Location'!P17 -> Select Rain Gage
B16: Average Annual Precipitation, inches | C16: ='Project Location'!P18 -> Select Rain Gage
B18: Supporting Drawdown Nomograph, from SWMM Continuous Simulation | F18: Supporting ET Nomograph, from SWMM Continuous Simulation
A54: These charts represent graphical depictions of the long term continuous simulation model results used in the Tool calculations

Sheet Whole Life Costs Summary
A1: ='Project Location'!A1 -> NCHRP Bioretention Evaluation Tool
A2: Project Title | B2: ='Project Location'!$C$2 -> Test Run
A3: Project Location | B3: ='Project Location'!$C$3 -> Portland, OR
A4: Company | B4: ='Project Location'!$C$4 -> Geosyntec Consultants
AM7: Y
A8: Whole Life Cycle Costs Summary | AM8: N
A10: CAPITAL COSTS | B10: Total Cost
A12: Total Facility Base Cost | B12: ='Capital Costs'!J36 -> 68920.55062
A13: Total Associated Capital Costs (e.g., Engineering, Land, etc.) | B13: ='Capital Costs'!H51 -> 38423.20697
A14: Capital Costs | B14: ='Capital Costs'!B8 -> 107343.7576
A16: REGULAR MAINTENANCE ACTIVITIES | B16: Years between Events | C16: Total Cost per Visit | D16: Total Cost per Year
A19: ='Maintenance Costs'!B16 -> Inspection, Reporting & Information Management | B19: ='Maintenance Costs'!E16/12 -> 1 | C19: ='Maintenance Costs'!W16 -> 280 | D19: =IF(B19=0,0,C19/B19) -> 280
A20: ='Maintenance Costs'!B17 -> Vegetation Management with Trash & Minor Debris Removal | B20: ='Maintenance Costs'!E17/12 -> 1 | C20: ='Maintenance Costs'!W17 -> 1380 | D20: =IF(B20=0,0,C20/B20) -> 1380
A21: ='Maintenance Costs'!B18 -> add additional activities if necessary | B21: ='Maintenance Costs'!E18/12 -> 0 | C21: ='Maintenance Costs'!W18 -> 0 | D21: =IF(B21=0,0,C21/B21) -> 0
A22: ='Maintenance Costs'!B19 -> add additional activities if necessary | B22: ='Maintenance Costs'!E19/12 -> 0 | C22: ='Maintenance Costs'!W19 -> 0 | D22: =IF(B22=0,0,C22/B22) -> 0
A23: Totals, Regular Maintenance Activities | D23: =SUM(D19:D22) -> 1660
A25: CORRECTIVE AND INFREQUENT MAINTENANCE ACTIVITIES (Unplanned and/or >3yrs. betw. events) | B25: Years between Events | C25: Total Cost per Visit | D25: Total Cost per Year
A27: ='Maintenance Costs'!B25 -> Corrective Maintenance | B27: ='Maintenance Costs'!E25/12 -> 8 | C27: ='Maintenance Costs'!W25 -> 6740 | D27: =IF(B27=0,0,C27/B27) -> 842.5
A28: ='Maintenance Costs'!B26 -> Sediment Management | B28: ='Maintenance Costs'!E26/12 -> 25 | C28: ='Maintenance Costs'!W26 -> 2580 | D28: =IF(B28=0,0,C28/B28) -> 103.2
A29: ='Maintenance Costs'!B27 -> add additional activities if necessary | B29: ='Maintenance Costs'!E27/12 -> 0 | C29: ='Maintenance Costs'!W27 -> 0 | D29: =IF(B29=0,0,C29/B29) -> 0
A30: Totals, Corrective & Infrequent Maintenance Activities | D30: =SUM(D27:D29) -> 945.7
A33: Capital Costing Method | B33: ='Results Summary Report'!B30:C30 -> Line Item Engineer's Estimate
A34: Assumed Level of Maintenance | B34: ='Results Summary Report'!B31:C31 -> M
A35: Estimated Capital Cost, $ (2013) | B35: ='Results Summary Report'!B32:C32 -> 107343.7576
A36: Estimated NPV of Design Life Maintenance Costs, $ (2013) | B36: ='Results Summary Report'!B33:C33 -> 46680
A37: Estimated NPV of Design Life Whole Life Cycle Cost, $ (2013) | B37: ='Results Summary Report'!B34:C34 -> 154023.7576
A38: Estimated Annualized Whole Life Cycle Cost, $/yr (2013) | B38: ='Results Summary Report'!B35:C35 -> 7701.18788
A39: Totals are based on design life with routine and major maintenance.

Sheet Rain Gage Summary (hidden)
A1: Station ID | B1: Climate Division - Rain Gage | C1: State | D1: County | E1: Climate Division | F1: Elevation | G1: 85th Percentile | H1: 95th Percentile | I1: Average Annual | J1: Station ID | K1: Climate Division - Rain Gage
A2: 15550 | B2: [6] PRAIRIE - MONTGOMERY AP ASOS | C2: AL | D2: MONTGOMERY | E2: 6 | F2: 202 | G2: 1.25 | H2: 2.01 | I2: 50.95872655 | J2: 15550 | K2: [6] PRAIRIE - MONTGOMERY AP ASOS
A3: 26481 | B3: [6] SOUTH CENTRAL - PHOENIX AP | C3: AZ | D3: MARICOPA | E3: 6 | F3: 1107 | G3: 0.67 | H3: 1.02 | I3: 7.205657841 | J3: 26481 | K3: [6] SOUTH CENTRAL - PHOENIX AP
A4: 47769 | B4: [4] CENTRAL COAST DRNG. - SAN FRANCISCO WSO AP | C4: CA | D4: SAN MATEO | E4: 4 | F4: 8 | G4: 0.89 | H4: 1.39 | I4: 20.18097096 | J4: 47769 | K4: [4] CENTRAL COAST DRNG. - SAN FRANCISCO WSO AP
A5: 45114 | B5: [6] SOUTH COAST DRNG. - LOS ANGELES INTL AP | C5: CA | D5: LOS ANGELES | E5: 6 | F5: 97 | G5: 1.02 | H5: 1.6 | I5: 12.30515024 | J5: 45114 | K5: [6] SOUTH COAST DRNG. - LOS ANGELES INTL AP
A6: 47740 | B6: [6] SOUTH COAST DRNG. - SAN DIEGO WSO AP | C6: CA | D6: SAN DIEGO | E6: 6 | F6: 15 | G6: 0.78 | H6: 1.25 | I6: 9.795418779 | J6: 47740 | K6: [6] SOUTH COAST DRNG. - SAN DIEGO WSO AP
A7: 85663 | B7: [6] LOWER EAST COAST - MIAMI INTL AP | C7: FL | D7: MIAMI-DADE | E7: 6 | F7: 29 | G7: 1.28 | H7: 2.2 | I7: 58.88374163 | J7: 85663 | K7: [6] LOWER EAST COAST - MIAMI INTL AP
A8: 90451 | B8: [2] NORTH CENTRAL - ATLANTA/MUN., GA. | C8: GA | D8: FULTON | E8: 2 | F8: 1010 | G8: 1.14 | H8: 1.8 | I8: 48.99960863 | J8: 90451 | K8: [2] NORTH CENTRAL - ATLANTA/MUN., GA.
A9: 101022 | B9: [5] SOUTHWESTERN VALLEYS - BOISE AIR TERMINAL | C9: ID | D9: ADA | E9: 5 | F9: 2814 | G9: 0.42 | H9: 0.61 | I9: 11.50454198 | J9: 101022 | K9: [5] SOUTHWESTERN VALLEYS - BOISE AIR TERMINAL
A10: 124259 | B10: [5] CENTRAL - INDIANAPOLIS INTL AP | C10: IN | D10: MARION | E10: 5 | F10: 790 | G10: 0.91 | H10: 1.47 | I10: 40.42782488 | J10: 124259 | K10: [5] CENTRAL - INDIANAPOLIS INTL AP
A11: 132203 | B11: [5] CENTRAL - DES MOINES AP | C11: IA | D11: POLK | E11: 5 | F11: 957 | G11: 0.91 | H11: 1.5 | I11: 32.2614027 | J11: 132203 | K11: [5] CENTRAL - DES MOINES AP
A12: 160549 | B12: [6] EAST CENTRAL - BATON ROUGE METRO AP | C12: LA | D12: EAST BATON ROUGE | E12: 6 | F12: 64 | G12: 1.36 | H12: 2.3 | I12: 57.72441731 | J12: 160549 | K12: [6] EAST CENTRAL - BATON ROUGE METRO AP
A13: 215435 | B13: [6] EAST CENTRAL - MINNEAPOLIS/ST PAUL AP | C13: MN | D13: HENNEPIN | E13: 6 | F13: 872 | G13: 0.8 | H13: 1.33 | I13: 27.72970927 | J13: 215435 | K13: [6] EAST CENTRAL - MINNEAPOLIS/ST PAUL AP
A14: 244055 | B14: [4] CENTRAL - HELENA AP ASOS | C14: MT | D14: LEWIS AND CLARK | E14: 4 | F14: 3828 | G14: 0.45 | H14: 0.73 | I14: 11.03471274 | J14: 244055 | K14: [4] CENTRAL - HELENA AP ASOS
A15: 305811 | B15: [4] COASTAL - NEW YORK LA GUARDIA AP | C15: NY | D15: QUEENS | E15: 4 | F15: 11 | G15: 1 | H15: 1.68 | I15: 43.14266383 | J15: 305811 | K15: [4] COASTAL - NEW YORK LA GUARDIA AP
A16: 300042 | B16: [5] HUDSON VALLEY - ALBANY INTL AP | C16: NY | D16: ALBANY | E16: 5 | F16: 275 | G16: 0.8 | H16: 1.27 | I16: 36.67489814 | J16: 300042 | K16: [5] HUDSON VALLEY - ALBANY INTL AP
A17: 317069 | B17: [4] CENTRAL PIEDMONT - RALEIGH AP | C17: NC | D17: WAKE | E17: 4 | F17: 416 | G17: 0.99 | H17: 1.57 | I17: 42.23054327 | J17: 317069 | K17: [4] CENTRAL PIEDMONT - RALEIGH AP
A18: 320819 | B18: [8] SOUTH CENTRAL - BISMARCK MUNI AP | C18: ND | D18: BURLEIGH | E18: 8 | F18: 1651 | G18: 0.66 | H18: 1.12 | I18: 15.89312939 | J18: 320819 | K18: [8] SOUTH CENTRAL - BISMARCK MUNI AP
A19: 346661 | B19: [5] CENTRAL - OKLAHOMA CITY WILL ROGERS AP | C19: OK | D19: OKLAHOMA | E19: 5 | F19: 1285 | G19: 1.17 | H19: 1.87 | I19: 33.15470281 | J19: 346661 | K19: [5] CENTRAL - OKLAHOMA CITY WILL ROGERS AP
A20: 356751 | B20: [2] WILLAMETTE VALLEY - PORTLAND INTL AP | C20: OR | D20: MULTNOMAH | E20: 2 | F20: 19 | G20: 0.63 | H20: 0.98 | I20: 36.668365 | J20: 356751 | K20: [2] WILLAMETTE VALLEY - PORTLAND INTL AP
A21: 381939 | B21: [6] CENTRAL - COLUMBIA METRO AP | C21: SC | D21: LEXINGTON | E21: 6 | F21: 225 | G21: 1.19 | H21: 1.92 | I21: 45.14910788 | J21: 381939 | K21: [6] CENTRAL - COLUMBIA METRO AP
A22: 406402 | B22: [3] MIDDLE - NASHVILLE ASOS | C22: TN | D22: DAVIDSON | E22: 3 | F22: 600 | G22: 1.05 | H22: 1.75 | I22: 47.79930179 | J22: 406402 | K22: [3] MIDDLE - NASHVILLE ASOS
A23: 412797 | B23: [5] TRANS PECOS - EL PASO AP | C23: TX | D23: EL PASO | E23: 5 | F23: 3918 | G23: 0.6 | H23: 1.04 | I23: 8.472925584 | J23: 412797 | K23: [5] TRANS PECOS - EL PASO AP
A24: 427598 | B24: [3] NORTH CENTRAL - SALT LAKE CITY INTL AP | C24: UT | D24: SALT LAKE | E24: 3 | F24: 4225 | G24: 0.51 | H24: 0.8 | I24: 15.32014541 | J24: 427598 | K24: [3] NORTH CENTRAL - SALT LAKE CITY INTL AP | N24: State | O24: OR
A25: 448906 | B25: [4] NORTHERN - WASHINGTON/NAT., VA. | C25: VA | D25: ARLINGTON | E25: 4 | F25: 10 | G25: 0.94 | H25: 1.5 | I25: 39.59703338 | J25: 448906 | K25: [4] NORTHERN - WASHINGTON/NAT., VA. | L25: Climate Division Filter
A26: 14064 | B26: [1] NORTHERN VALLEY - HUNTSVILLE INTL AP | C26: AL | D26: MADISON | E26: 1 | F26: 624 | G26: 1.24 | H26: 2 | I26: 54.91995799 | J26: 14064 | K26: [1] NORTHERN VALLEY - HUNTSVILLE INTL AP | L26: =VLOOKUP('Project Location'!O11,'Project Location'!Y2:Z51,2,FALSE) ->  | N26: Row Labels
A27: 10831 | B27: [2] APPALACHIAN MOUNTAIN - BIRMINGHAM AP ASOS | C27: AL | D27: JEFFERSON | E27: 2 | F27: 615 | G27: 1.2 | H27: 1.93 | I27: 45.10310427 | J27: 10831 | K27: [2] APPALACHIAN MOUNTAIN - BIRMINGHAM AP ASOS | N27: [1] COASTAL AREA - ASTORIA AP PORT OF
A28: 10063 | B28: [3] UPPER PLAINS - ADDISON | C28: AL | D28: WINSTON | E28: 3 | F28: 818 | G28: 1.3 | H28: 2.1 | I28: 51.2197769 | J28: 10063 | K28: [3] UPPER PLAINS - ADDISON | N28: [2] WILLAMETTE VALLEY - PORTLAND INTL AP
A29: 14209 | B29: [4] EASTERN VALLEY - JACKSONVILLE | C29: AL | D29: CALHOUN | E29: 4 | F29: 688 | G29: 1.2 | H29: 1.92 | I29: 45.63857443 | J29: 14209 | K29: [4] EASTERN VALLEY - JACKSONVILLE | N29: [3] SOUTHWESTERN VALLEYS - MEDFORD INTL AP
A30: 12124 | B30: [5] PIEDMONT PLATEAU - DADEVILLE 2 | C30: AL | D30: TALLAPOOSA | E30: 5 | F30: 733 | G30: 1.3 | H30: 2 | I30: 51.70142252 | J30: 12124 | K30: [5] PIEDMONT PLATEAU - DADEVILLE 2 | N30: [4] NORTHERN CASCADES - ESTACADA 24 SE
A31: 10140 | B31: [7] COASTAL PLAIN - ALBERTA | C31: AL | D31: WILCOX | E31: 7 | F31: 175 | G31: 1.4 | H31: 2.2 | I31: 55.1672221 | J31: 10140 | K31: [7] COASTAL PLAIN - ALBERTA | N31: [5] HIGH PLATEAU - GERBER DAM
A32: 15478 | B32: [8] GULF - MOBILE REGIONAL AP | C32: AL | D32: MOBILE | E32: 8 | F32: 215 | G32: 1.45 | H32: 2.42 | I32: 58.61608158 | J32: 15478 | K32: [8] GULF - MOBILE REGIONAL AP | N32: [6] NORTH CENTRAL - PENDLETON E OR RGNL AP
A33: 24645 | B33: [1] NORTHWEST - KINGMAN #2 | C33: AZ | D33: MOHAVE | E33: 1 | F33: 3539 | G33: 0.8 | H33: 1.2 | I33: 8.999298068 | J33: 24645 | K33: [1] NORTHWEST - KINGMAN #2 | N33: [7] SOUTH CENTRAL - LAKEVIEW 2 NNW
A34: 29439 | B34: [2] NORTHEAST - WINSLOW AP | C34: AZ | D34: NAVAJO | E34: 2 | F34: 4886 | G34: 0.48 | H34: 0.75 | I34: 7.281790759 | J34: 29439 | K34: [2] NORTHEAST - WINSLOW AP | N34: [8] NORTHEAST - PRAIRIE CITY RS
A35: 20487 | B35: [3] NORTH CENTRAL - ASH FORK 3 | C35: AZ | D35: YAVAPAI | E35: 3 | F35: 5075 | G35: 0.69 | H35: 1.1 | I35: 12.25519081 | J35: 20487 | K35: [3] NORTH CENTRAL - ASH FORK 3 | N35: [9] SOUTHEAST - JORDAN VALLEY
A36: 26323 | B36: [4] EAST CENTRAL - PAYSON | C36: AZ | D36: GILA | E36: 4 | F36: 4850 | G36: 0.9 | H36: 1.5 | I36: 19.30496698 | J36: 26323 | K36: [4] EAST CENTRAL - PAYSON | N36: Grand Total
A37: 29660 | B37: [5] SOUTHWEST - YUMA WSO AP | C37: AZ | D37: YUMA | E37: 5 | F37: 206 | G37: 0.58 | H37: 1.11 | I37: 2.913379797 | J37: 29660 | K37: [5] SOUTHWEST - YUMA WSO AP
A38: 28820 | B38: [7] SOUTHEAST - TUCSON INTL AP | C38: AZ | D38: PIMA | E38: 7 | F38: 2549 | G38: 0.66 | H38: 1.1 | I38: 11.26192333 | J38: 28820 | K38: [7] SOUTHEAST - TUCSON INTL AP
A39: 32356 | B39: [1] NORTHWEST - EUREKA SPRINGS 3 WNW | C39: AR | D39: CARROLL | E39: 1 | F39: 1420 | G39: 1.2 | H39: 1.91 | I39: 43.16009973 | J39: 32356 | K39: [1] NORTHWEST - EUREKA SPRINGS 3 WNW
A40: 32794 | B40: [2] NORTH CENTRAL - GILBERT | C40: AR | D40: SEARCY | E40: 2 | F40: 620 | G40: 1.18 | H40: 1.95 | I40: 42.91275229 | J40: 32794 | K40: [2] NORTH CENTRAL - GILBERT
A41: 30458 | B41: [3] NORTHEAST - BATESVILLE LVSTK | C41: AR | D41: INDEPENDENCE | E41: 3 | F41: 571 | G41: 1.3 | H41: 2.1 | I41: 45.94652335 | J41: 30458 | K41: [3] NORTHEAST - BATESVILLE LVSTK
A42: 32574 | B42: [4] WEST CENTRAL - FT SMITH RGNL AP | C42: AR | D42: SEBASTIAN | E42: 4 | F42: 449 | G42: 1.2 | H42: 1.92 | I42: 42.34891559 | J42: 32574 | K42: [4] WEST CENTRAL - FT SMITH RGNL AP
A43: 34248 | B43: [5] CENTRAL - LITTLE ROCK ADAMS FLD | C43: AR | D43: PULASKI | E43: 5 | F43: 258 | G43: 1.28 | H43: 2.1 | I43: 29.29232074 | J43: 34248 | K43: [5] CENTRAL - LITTLE ROCK ADAMS FLD
A44: 36920 | B44: [6] EAST CENTRAL - STUTTGART 9 ESE | C44: AR | D44: ARKANSAS | E44: 6 | F44: 198 | G44: 1.3 | H44: 2.2 | I44: 47.83296568 | J44: 36920 | K44: [6] EAST CENTRAL - STUTTGART 9 ESE
A45: 32810 | B45: [7] SOUTHWEST - GILLHAM DAM | C45: AR | D45: POLK | E45: 7 | F45: 520 | G45: 1.5 | H45: 2.4 | I45: 54.29450227 | J45: 32810 | K45: [7] SOUTHWEST - GILLHAM DAM
A46: 30220 | B46: [8] SOUTH CENTRAL - ARKADELPHIA 2 N | C46: AR | D46: CLARK | E46: 8 | F46: 196 | G46: 1.44 | H46: 2.3 | I46: 52.46184763 | J46: 30220 | K46: [8] SOUTH CENTRAL - ARKADELPHIA 2 N
A47: 35754 | B47: [9] SOUTHEAST - PINE BLUFF | C47: AR | D47: JEFFERSON | E47: 9 | F47: 215 | G47: 1.4 | H47: 2.2 | I47: 49.28084792 | J47: 35754 | K47: [9] SOUTHEAST - PINE BLUFF
A48: 42910 | B48: [1] NORTH COAST DRAINAGE - EUREKA WFO WOODLEY IS | C48: CA | D48: HUMBOLDT | E48: 1 | F48: 20 | G48: 0.88 | H48: 1.37 | I48: 39.21705128 | J48: 42910 | K48: [1] NORTH COAST DRAINAGE - EUREKA WFO WOODLEY IS
A49: 40161 | B49: [2] SACRAMENTO DRNG. - ALTURAS | C49: CA | D49: MODOC | E49: 2 | F49: 4400 | G49: 0.5 | H49: 0.72 | I49: 12.32358798 | J49: 40161 | K49: [2] SACRAMENTO DRNG. - ALTURAS
A50: 48873 | B50: [3] NORTHEAST INTER. BASINS - TERMO 1 E | C50: CA | D50: LASSEN | E50: 3 | F50: 5300 | G50: 0.49 | H50: 0.8 | I50: 10.03302054 | J50: 48873 | K50: [3] NORTHEAST INTER. BASINS - TERMO 1 E
A51: 43257 | B51: [5] SAN JOAQUIN DRNG. - FRESNO YOSEMITE INT'L | C51: CA | D51: FRESNO | E51: 5 | F51: 333 | G51: 0.68 | H51: 0.97 | I51: 10.9055695 | J51: 43257 | K51: [5] SAN JOAQUIN DRNG. - FRESNO YOSEMITE INT'L
A52: 44232 | B52: [7] SOUTHEAST DESERT BASIN - INDEPENDENCE | C52: CA | D52: INYO | E52: 7 | F52: 3950 | G52: 0.7 | H52: 1.3 | I52: 4.839608514 | J52: 44232 | K52: [7] SOUTHEAST DESERT BASIN - INDEPENDENCE
A53: 53477 | B53: [1] ARKANSAS DRAINAGE BASIN - GRANADA | C53: CO | D53: PROWERS | E53: 1 | F53: 3484 | G53: 0.8 | H53: 1.4 | I53: 14.59144374 | J53: 53477 | K53: [1] ARKANSAS DRAINAGE BASIN - GRANADA
A54: 53488 | B54: [2] COLORADO DRAINAGE BASIN - GRAND JUNCTION WALKER | C54: CO | D54: MESA | E54: 2 | F54: 4858 | G54: 0.42 | H54: 0.61 | I54: 8.467588747 | J54: 53488 | K54: [2] COLORADO DRAINAGE BASIN - GRAND JUNCTION WALKER
A55: 50304 | B55: [3] KANSAS DRAINAGE BASIN - ARAPAHOE | C55: CO | D55: CHEYENNE | E55: 3 | F55: 4020 | G55: 0.8 | H55: 1.3 | I55: 15.48861886 | J55: 50304 | K55: [3] KANSAS DRAINAGE BASIN - ARAPAHOE
A56: 51179 | B56: [4] PLATTE DRAINAGE BASIN - BYERS 5 ENE | C56: CO | D56: ADAMS | E56: 4 | F56: 5100 | G56: 0.7 | H56: 1.2 | I56: 14.50199732 | J56: 51179 | K56: [4] PLATTE DRAINAGE BASIN - BYERS 5 ENE
A57: 57337 | B57: [5] RIO GRANDE DRAINAGE BASIN - SAGUACHE | C57: CO | D57: SAGUACHE | E57: 5 | F57: 7701 | G57: 0.44 | H57: 0.64 | I57: 8.082028391 | J57: 57337 | K57: [5] RIO GRANDE DRAINAGE BASIN - SAGUACHE
A58: 65445 | B58: [1] NORTHWEST - NORFOLK 2 SW | C58: CT | D58: LITCHFIELD | E58: 1 | F58: 1340 | G58: 1.04 | H58: 1.69 | I58: 50.75400247 | J58: 65445 | K58: [1] NORTHWEST - NORFOLK 2 SW
A59: 63456 | B59: [2] CENTRAL - HARTFORD | C59: CT | D59: HARTFORD | E59: 2 | F59: 190 | G59: 1.01 | H59: 1.6 | I59: 44.90737806 | J59: 63456 | K59: [2] CENTRAL - HARTFORD
A60: 60806 | B60: [3] COASTAL - BRIDGEPORT SIKORSKY AP | C60: CT | D60: FAIRFIELD | E60: 3 | F60: 5 | G60: 0.96 | H60: 1.6 | I60: 41.71948633 | J60: 60806 | K60: [3] COASTAL - BRIDGEPORT SIKORSKY AP
A61: 79595 | B61: [1] NORTHERN - WILMINGTON NEW CASTLE | C61: DE | D61: NEW CASTLE | E61: 1 | F61: 79 | G61: 0.99 | H61: 1.62 | I61: 37.71065626 | J61: 79595 | K61: [1] NORTHERN - WILMINGTON NEW CASTLE
A62: 73570 | B62: [2] SOUTHERN - GEORGETOWN 5 SW | C62: DE | D62: SUSSEX | E62: 2 | F62: 45 | G62: 1.1 | H62: 1.7 | I62: 40.02924583 | J62: 73570 | K62: [2] SOUTHERN - GEORGETOWN 5 SW
A63: 80211 | B63: [1] NORTHWEST - APALACHICOLA AP | C63: FL | D63: FRANKLIN | E63: 1 | F63: 20 | G63: 1.4 | H63: 2.39 | I63: 54.87223743 | J63: 80211 | K63: [1] NORTHWEST - APALACHICOLA AP | M63: # of Climate Divisions
A64: 80975 | B64: [2] NORTH - BRANFORD | C64: FL | D64: SUWANNEE | E64: 2 | F64: 30 | G64: 1.29 | H64: 2.2 | I64: 25.83581789 | J64: 80975 | K64: [2] NORTH - BRANFORD | M64: =COUNTA(N27:N62)-1 -> 9
A65: 82158 | B65: [3] NORTH CENTRAL - DAYTONA BEACH INTL AP | C65: FL | D65: VOLUSIA | E65: 3 | F65: 31 | G65: 1.2 | H65: 2.03 | I65: 49.0758504 | J65: 82158 | K65: [3] NORTH CENTRAL - DAYTONA BEACH INTL AP
A66: 85612 | B66: [4] SOUTH CENTRAL - MELBOURNE WFO | C66: FL | D66: BREVARD | E66: 4 | F66: 35 | G66: 1.3 | H66: 2.1 | I66: 48.07370461 | J66: 85612 | K66: [4] SOUTH CENTRAL - MELBOURNE WFO
A67: 83186 | B67: [5] EVERGLADES - FT MYERS PAGE FLD AP | C67: FL | D67: LEE | E67: 5 | F67: 15 | G67: 1.4 | H67: 2.3 | I67: 54.85663636 | J67: 83186 | K67: [5] EVERGLADES - FT MYERS PAGE FLD AP
B68: [7] KEYS - KEY WEST INTL AP | K68: [7] KEYS - KEY WEST INTL AP
A69: 92485 | B69: [1] NORTHWEST - DALLAS 7 NE | C69: GA | D69: PAULDING | E69: 1 | F69: 1100 | G69: 1.2 | H69: 1.98 | I69: 49.32596977 | J69: 92485 | K69: [1] NORTHWEST - DALLAS 7 NE
A70: 91619 | B70: [3] NORTHEAST - CARNESVILLE 4 N | C70: GA | D70: FRANKLIN | E70: 3 | F70: 866 | G70: 1.28 | H70: 1.95 | I70: 46.60810878 | J70: 91619 | K70: [3] NORTHEAST - CARNESVILLE 4 N
A71: 92166 | B71: [4] WEST CENTRAL - COLUMBUS METO AP | C71: GA | D71: MUSCOGEE | E71: 4 | F71: 392 | G71: 1.18 | H71: 1.9 | I71: 48.75544882 | J71: 92166 | K71: [4] WEST CENTRAL - COLUMBUS METO AP
A72: 95443 | B72: [5] CENTRAL - MACON MIDDLE GA AP | C72: GA | D72: BIBB | E72: 5 | F72: 343 | G72: 1.13 | H72: 1.86 | I72: 44.7604157 | J72: 95443 | K72: [5] CENTRAL - MACON MIDDLE GA AP
A73: 90495 | B73: [6] EAST CENTRAL - AUGUSTA BUSH FLD AP | C73: GA | D73: RICHMOND | E73: 6 | F73: 132 | G73: 1.1 | H73: 1.77 | I73: 43.40544461 | J73: 90495 | K73: [6] EAST CENTRAL - AUGUSTA BUSH FLD AP
A74: 93028 | B74: [7] SOUTHWEST - EDISON | C74: GA | D74: CALHOUN | E74: 7 | F74: 294 | G74: 1.3 | H74: 2.15 | I74: 48.33854881 | J74: 93028 | K74: [7] SOUTHWEST - EDISON
A75: 96879 | B75: [8] SOUTH CENTRAL - PEARSON | C75: GA | D75: ATKINSON | E75: 8 | F75: 205 | G75: 1.29 | H75: 2 | I75: 46.51146819 | J75: 96879 | K75: [8] SOUTH CENTRAL - PEARSON
A76: 97847 | B76: [9] SOUTHEAST - SAVANNAH INTL AP | C76: GA | D76: CHATHAM | E76: 9 | F76: 46 | G76: 1.18 | H76: 1.95 | I76: 48.81084705 | J76: 97847 | K76: [9] SOUTHEAST - SAVANNAH INTL AP
A77: 101079 | B77: [1] PANHANDLE - BONNERS FERRY | C77: ID | D77: BOUNDARY | E77: 1 | F77: 2075 | G77: 0.59 | H77: 0.9 | I77: 23.28528983 | J77: 101079 | K77: [1] PANHANDLE - BONNERS FERRY
A78: 105241 | B78: [3] NORTH CENTRAL PRAIRIES - LEWISTON AP | C78: ID | D78: NEZ PERCE | E78: 3 | F78: 1436 | G78: 0.41 | H78: 0.62 | I78: 12.05414158 | J78: 105241 | K78: [3] NORTH CENTRAL PRAIRIES - LEWISTON AP
A79: 103143 | B79: [3] NORTH CENTRAL CANYONS - FENN RS | C79: ID | D79: IDAHO | E79: 3 | F79: 1560 | G79: 0.68 | H79: 1 | I79: 36.40611844 | J79: 103143 | K79: [3] NORTH CENTRAL CANYONS - FENN RS
A80: 107327 | B80: [4] CENTRAL MOUNTAINS - PRAIRIE | C80: ID | D80: ELMORE | E80: 4 | F80: 4780 | G80: 0.68 | H80: 1.05 | I80: 22.16674041 | J80: 107327 | K80: [4] CENTRAL MOUNTAINS - PRAIRIE
A81: 103811 | B81: [6] SOUTHWESTERN HIGHLANDS - GRASMERE 3 S | C81: ID | D81: OWYHEE | E81: 6 | F81: 5140 | G81: 0.5 | H81: 0.8 | I81: 10.92233116 | J81: 103811 | K81: [6] SOUTHWESTERN HIGHLANDS - GRASMERE 3 S
A82: 103677 | B82: [7] CENTRAL PLAINS - GOODING 1 S | C82: ID | D82: GOODING | E82: 7 | F82: 3643 | G82: 0.5 | H82: 0.8 | I82: 10.30963655 | J82: 103677 | K82: [7] CENTRAL PLAINS - GOODING 1 S
A83: 105169 | B83: [8] NORTHEASTERN VALLEYS - LEADORE | C83: ID | D83: LEMHI | E83: 8 | F83: 6000 | G83: 0.4 | H83: 0.6 | I83: 8.473901245 | J83: 105169 | K83: [8] NORTHEASTERN VALLEYS - LEADORE
A84: 107211 | B84: [9] UPPER SNAKE RIVER PLAINS - POCATELLO RGNL AP | C84: ID | D84: POWER | E84: 9 | F84: 4478 | G84: 0.42 | H84: 0.63 | I84: 11.20820082 | J84: 107211 | K84: [9] UPPER SNAKE RIVER PLAINS - POCATELLO RGNL AP
A85: 104456 | B85: [10] EASTERN HIGHLANDS - IDAHO FALLS 16 SE | C85: ID | D85: BONNEVILLE | E85: 10 | F85: 5828 | G85: 0.5 | H85: 0.7 | I85: 16.42038998 | J85: 104456 | K85: [10] EASTERN HIGHLANDS - IDAHO FALLS 16 SE
A86: 115751 | B86: [1] NORTHWEST - MOLINE WSO AP | C86: IL | D86: ROCK ISLAND | E86: 1 | F86: 592 | G86: 0.96 | H86: 1.56 | I86: 36.94095548 | J86: 115751 | K86: [1] NORTHWEST - MOLINE WSO AP
A87: 111577 | B87: [2] NORTHEAST - CHICAGO MIDWAY AP 3SW | C87: IL | D87: COOK | E87: 2 | F87: 620 | G87: 0.9 | H87: 1.5 | I87: 36.36341442 | J87: 111577 | K87: [2] NORTHEAST - CHICAGO MIDWAY AP 3SW
A88: 110082 | B88: [3] WEST - ALEXIS 1 SW | C88: IL | D88: WARREN | E88: 3 | F88: 680 | G88: 0.97 | H88: 1.6 | I88: 33.23871554 | J88: 110082 | K88: [3] WEST - ALEXIS 1 SW
A89: 116711 | B89: [4] CENTRAL - PEORIA GTR PEORIA RGNL | C89: IL | D89: PEORIA | E89: 4 | F89: 650 | G89: 0.93 | H89: 1.47 | I89: 35.29861786 | J89: 116711 | K89: [4] CENTRAL - PEORIA GTR PEORIA RGNL
A90: 114198 | B90: [5] EAST - HOOPESTON 1NE | C90: IL | D90: VERMILION | E90: 5 | F90: 710 | G90: 0.9 | H90: 1.5 | I90: 36.11608242 | J90: 114198 | K90: [5] EAST - HOOPESTON 1NE
A91: 118179 | B91: [6] WEST SOUTHWEST - SPRINGFIELD LINCOLN AP | C91: IL | D91: SANGAMON | E91: 6 | F91: 594 | G91: 0.9 | H91: 1.47 | I91: 34.92312681 | J91: 118179 | K91: [6] WEST SOUTHWEST - SPRINGFIELD LINCOLN AP
A92: 116159 | B92: [7] EAST SOUTHEAST - NEWTON 6 SSE | C92: IL | D92: JASPER | E92: 7 | F92: 510 | G92: 1 | H92: 1.6 | I92: 39.71020639 | J92: 116159 | K92: [7] EAST SOUTHEAST - NEWTON 6 SSE
A93: 115983 | B93: [8] SOUTHWEST - MURPHYSBORO 2 SW | C93: IL | D93: JACKSON | E93: 8 | F93: 550 | G93: 1.1 | H93: 1.74 | I93: 43.9282036 | J93: 115983 | K93: [8] SOUTHWEST - MURPHYSBORO 2 SW
A94: 112353 | B94: [9] SOUTHEAST - DIXON SPRINGS AG CTR | C94: IL | D94: POPE | E94: 9 | F94: 527 | G94: 1.15 | H94: 1.82 | I94: 45.80505836 | J94: 112353 | K94: [9] SOUTHEAST - DIXON SPRINGS AG CTR
A95: 125535 | B95: [1] NORTHWEST - MEDARYVILLE 5 N | C95: IN | D95: PULASKI | E95: 1 | F95: 695 | G95: 0.9 | H95: 1.5 | I95: 36.24643589 | J95: 125535 | K95: [1] NORTHWEST - MEDARYVILLE 5 N
A96: 128187 | B96: [2] NORTH CENTRAL - SOUTH BEND AP | C96: IN | D96: ST. JOSEPH | E96: 2 | F96: 773 | G96: 0.8 | H96: 1.33 | I96: 37.66742095 | J96: 128187 | K96: [2] NORTH CENTRAL - SOUTH BEND AP
A97: 123037 | B97: [3] NORTHEAST - FORT WAYNE AP | C97: IN | D97: ALLEN | E97: 3 | F97: 791 | G97: 0.82 | H97: 1.3 | I97: 36.53760494 | J97: 123037 | K97: [3] NORTHEAST - FORT WAYNE AP
A98: 120922 | B98: [4] WEST CENTRAL - BRAZIL | C98: IN | D98: CLAY | E98: 4 | F98: 680 | G98: 1 | H98: 1.61 | I98: 41.67705059 | J98: 120922 | K98: [4] WEST CENTRAL - BRAZIL
A99: 120132 | B99: [6] EAST CENTRAL - ALPINE 2 NE | C99: IN | D99: FAYETTE | E99: 6 | F99: 850 | G99: 0.92 | H99: 1.46 | I99: 41.05639212 | J99: 120132 | K99: [6] EAST CENTRAL - ALPINE 2 NE
A100: 122738 | B100: [7] SOUTHWEST - EVANSVILLE REGIONAL AP | C100: IN | D100: VANDERBURGH | E100: 7 | F100: 400 | G100: 1.03 | H100: 1.7 | I100: 43.95275952 | J100: 122738 | K100: [7] SOUTHWEST - EVANSVILLE REGIONAL AP
A101: 126580 | B101: [8] SOUTH CENTRAL - OOLITIC PURDUE EX FRM | C101: IN | D101: LAWRENCE | E101: 8 | F101: 650 | G101: 1.05 | H101: 1.6 | I101: 43.56708539 | J101: 126580 | K101: [8] SOUTH CENTRAL - OOLITIC PURDUE EX FRM
A102: 120482 | B102: [9] SOUTHEAST - BATESVILLE WTR WKS | C102: IN | D102: RIPLEY | E102: 9 | F102: 970 | G102: 1 | H102: 1.5 | I102: 43.42327627 | J102: 120482 | K102: [9] SOUTHEAST - BATESVILLE WTR WKS
A103: 136975 | B103: [1] NORTHWEST - REMSEN | C103: IA | D103: PLYMOUTH | E103: 1 | F103: 1330 | G103: 0.97 | H103: 1.5 | I103: 28.14272723 | J103: 136975 | K103: [1] NORTHWEST - REMSEN
A104: 137602 | B104: [2] NORTH CENTRAL - SHELL ROCK | C104: IA | D104: BUTLER | E104: 2 | F104: 912 | G104: 0.92 | H104: 1.5 | I104: 30.49484019 | J104: 137602 | K104: [2] NORTH CENTRAL - SHELL ROCK
A105: 138009 | B105: [3] NORTHEAST - STRAWBERRY POINT | C105: IA | D105: CLAYTON | E105: 3 | F105: 1200 | G105: 0.93 | H105: 1.52 | I105: 34.40964091 | J105: 138009 | K105: [3] NORTHEAST - STRAWBERRY POINT
A106: 137708 | B106: [4] WEST CENTRAL - SIOUX CITY AP | C106: IA | D106: WOODBURY | E106: 4 | F106: 1095 | G106: 0.87 | H106: 1.35 | I106: 25.88691256 | J106: 137708 | K106: [4] WEST CENTRAL - SIOUX CITY AP
A107: 130608 | B107: [6] EAST CENTRAL - BELLEVUE L&D 12 | C107: IA | D107: JACKSON | E107: 6 | F107: 603 | G107: 0.98 | H107: 1.54 | I107: 33.08087328 | J107: 130608 | K107: [6] EAST CENTRAL - BELLEVUE L&D 12
A108: 131245 | B108: [7] SOUTHWEST - CARSON 3NNE | C108: IA | D108: POTTAWATTAMIE | E108: 7 | F108: 1090 | G108: 1.06 | H108: 1.86 | I108: 32.72117172 | J108: 131245 | K108: [7] SOUTHWEST - CARSON 3NNE
A109: 132195 | B109: [8] SOUTH CENTRAL - DERBY | C109: IA | D109: LUCAS | E109: 8 | F109: 1190 | G109: 1 | H109: 1.63 | I109: 34.18372825 | J109: 132195 | K109: [8] SOUTH CENTRAL - DERBY
A110: 138688 | B110: [9] SOUTHEAST - WASHINGTON | C110: IA | D110: WASHINGTON | E110: 9 | F110: 690 | G110: 1 | H110: 1.6 | I110: 33.87536571 | J110: 138688 | K110: [9] SOUTHEAST - WASHINGTON
A111: 143153 | B111: [1] NORTHWEST - GOODLAND RENNER FLD | C111: KS | D111: SHERMAN | E111: 1 | F111: 3656 | G111: 0.74 | H111: 1.27 | I111: 17.50321145 | J111: 143153 | K111: [1] NORTHWEST - GOODLAND RENNER FLD
A112: 141767 | B112: [2] NORTH CENTRAL - CONCORDIA BLOSSER MUNI | C112: KS | D112: CLOUD | E112: 2 | F112: 1469 | G112: 0.97 | H112: 1.6 | I112: 27.4605794 | J112: 141767 | K112: [2] NORTH CENTRAL - CONCORDIA BLOSSER MUNI
A113: 143810 | B113: [3] NORTHEAST - HORTON | C113: KS | D113: BROWN | E113: 3 | F113: 1030 | G113: 1.1 | H113: 1.9 | I113: 35.44440587 | J113: 143810 | K113: [3] NORTHEAST - HORTON
A114: 141730 | B114: [4] WEST CENTRAL - COLLYER 10 S | C114: KS | D114: TREGO | E114: 4 | F114: 2407 | G114: 0.9 | H114: 1.4 | I114: 19.79478996 | J114: 141730 | K114: [4] WEST CENTRAL - COLLYER 10 S
A115: 144178 | B115: [5] CENTRAL - KANOPOLIS LAKE | C115: KS | D115: ELLSWORTH | E115: 5 | F115: 1492 | G115: 1.07 | H115: 1.7 | I115: 25.54246554 | J115: 144178 | K115: [5] CENTRAL - KANOPOLIS LAKE
A116: 148167 | B116: [6] EAST CENTRAL - TOPEKA BILLARD MUNI AP | C116: KS | D116: SHAWNEE | E116: 6 | F116: 881 | G116: 1.07 | H116: 1.78 | I116: 34.70720579 | J116: 148167 | K116: [6] EAST CENTRAL - TOPEKA BILLARD MUNI AP
A117: 142164 | B117: [7] SOUTHWEST - DODGE CITY RGNL AP | C117: KS | D117: FORD | E117: 7 | F117: 2582 | G117: 0.86 | H117: 1.44 | I117: 20.5420711 | J117: 142164 | K117: [7] SOUTHWEST - DODGE CITY RGNL AP
A118: 148830 | B118: [8] SOUTH CENTRAL - WICHITA MID-CONTINENT | C118: KS | D118: SEDGWICK | E118: 8 | F118: 1321 | G118: 1.1 | H118: 1.76 | I118: 30.23109038 | J118: 148830 | K118: [8] SOUTH CENTRAL - WICHITA MID-CONTINENT
A119: 141351 | B119: [9] SOUTHEAST - CASSODAY 2SW | C119: KS | D119: BUTLER | E119: 9 | F119: 1440 | G119: 1.15 | H119: 1.8 | I119: 32.17986941 | J119: 141351 | K119: [9] SOUTHEAST - CASSODAY 2SW
A120: 151631 | B120: [1] WESTERN - CLINTON 4 S | C120: KY | D120: HICKMAN | E120: 1 | F120: 350 | G120: 1.2 | H120: 1.9 | I120: 46.52415759 | J120: 151631 | K120: [1] WESTERN - CLINTON 4 S
A121: 154954 | B121: [2] CENTRAL - LOUISVILLE INTL AP | C121: KY | D121: JEFFERSON | E121: 2 | F121: 488 | G121: 0.95 | H121: 1.51 | I121: 43.87584067 | J121: 154954 | K121: [2] CENTRAL - LOUISVILLE INTL AP
A122: 154746 | B122: [3] BLUE GRASS - LEXINGTON BLUEGRASS AP | C122: KY | D122: FAYETTE | E122: 3 | F122: 980 | G122: 0.94 | H122: 1.5 | I122: 45.45680717 | J122: 154746 | K122: [3] BLUE GRASS - LEXINGTON BLUEGRASS AP
A123: 151080 | B123: [4] EASTERN - BUCKHORN LAKE | C123: KY | D123: PERRY | E123: 4 | F123: 780 | G123: 0.9 | H123: 1.44 | I123: 45.84906597 | J123: 151080 | K123: [4] EASTERN - BUCKHORN LAKE
A124: 168440 | B124: [1] NORTHWEST - SHREVEPORT AP | C124: LA | D124: CADDO | E124: 1 | F124: 254 | G124: 1.32 | H124: 2.16 | I124: 42.45229315 | J124: 168440 | K124: [1] NORTHWEST - SHREVEPORT AP
A125: 169803 | B125: [2] NORTH CENTRAL - WINNFIELD 3 N | C125: LA | D125: WINN | E125: 2 | F125: 160 | G125: 1.4 | H125: 2.3 | I125: 55.9953092 | J125: 169803 | K125: [2] NORTH CENTRAL - WINNFIELD 3 N
A126: 169806 | B126: [3] NORTHEAST - WINNSBORO 5 SSE | C126: LA | D126: FRANKLIN | E126: 3 | F126: 80 | G126: 1.46 | H126: 2.3 | I126: 53.98896224 | J126: 169806 | K126: [3] NORTHEAST - WINNSBORO 5 SSE
A127: 165266 | B127: [4] WEST CENTRAL - LEESVILLE | C127: LA | D127: VERNON | E127: 4 | F127: 28 | G127: 1.4 | H127: 2.4 | I127: 52.83658504 | J127: 165266 | K127: [4] WEST CENTRAL - LEESVILLE
A128: 169357 | B128: [5] CENTRAL - VIDALIA #2 | C128: LA | D128: CONCORDIA | E128: 5 | F128: 60 | G128: 1.5 | H128: 2.55 | I128: 54.45550894 | J128: 169357 | K128: [5] CENTRAL - VIDALIA #2
A129: 165078 | B129: [7] SOUTHWEST - LAKE CHARLES AP | C129: LA | D129: CALCASIEU | E129: 7 | F129: 9 | G129: 1.47 | H129: 2.55 | I129: 55.64743526 | J129: 165078 | K129: [7] SOUTHWEST - LAKE CHARLES AP
A130: 165021 | B130: [8] SOUTH CENTRAL - LAFAYETTE | C130: LA | D130: LAFAYETTE | E130: 8 | F130: 25 | G130: 1.5 | H130: 2.7 | I130: 60.28362345 | J130: 165021 | K130: [8] SOUTH CENTRAL - LAFAYETTE
A131: 166660 | B131: [9] SOUTHEAST - NEW ORLEANS AP | C131: LA | D131: JEFFERSON | E131: 9 | F131: 4 | G131: 1.44 | H131: 2.4 | I131: 61.29518364 | J131: 166660 | K131: [9] SOUTHEAST - NEW ORLEANS AP
A132: 171175 | B132: [1] NORTHERN - CARIBOU WFO | C132: ME | D132: AROOSTOOK | E132: 1 | F132: 624 | G132: 0.7 | H132: 1.06 | I132: 36.99961294 | J132: 171175 | K132: [1] NORTHERN - CARIBOU WFO
A133: 178641 | B133: [2] SOUTHERN INTERIOR - SWANS FALLS | C133: ME | D133: OXFORD | E133: 2 | F133: 400 | G133: 1 | H133: 1.6 | I133: 43.13902062 | J133: 178641 | K133: [2] SOUTHERN INTERIOR - SWANS FALLS
A134: 176905 | B134: [3] COASTAL - PORTLAND JETPORT | C134: ME | D134: CUMBERLAND | E134: 3 | F134: 45 | G134: 0.97 | H134: 1.62 | I134: 43.69530127 | J134: 176905 | K134: [3] COASTAL - PORTLAND JETPORT
A135: 188005 | B135: [1] SOUTHEASTERN SHORE - SALISBURY FAA AP | C135: MD | D135: WICOMICO | E135: 1 | F135: 48 | G135: 0.92 | H135: 1.86 | I135: 44.14267463 | J135: 188005 | K135: [1] SOUTHEASTERN SHORE - SALISBURY FAA AP
A136: 183090 | B136: [2] CENTRAL EASTERN SHORE - FEDERALSBURG | C136: MD | D136: CAROLINE | E136: 2 | F136: 20 | G136: 1.1 | H136: 1.9 | I136: 43.77162908 | J136: 183090 | K136: [2] CENTRAL EASTERN SHORE - FEDERALSBURG
A137: 186915 | B137: [3] LOWER SOUTHERN - PATUXENT RIVER | C137: MD | D137: ST. MARY'S | E137: 3 | F137: 38 | G137: 1.1 | H137: 2 | I137: 14.32034464 | J137: 186915 | K137: [3] LOWER SOUTHERN - PATUXENT RIVER
A138: 180465 | B138: [4] UPPER SOUTHERN - BALTIMORE WASH INTL AP | C138: MD | D138: ANNE ARUNDEL | E138: 4 | F138: 156 | G138: 0.99 | H138: 1.62 | I138: 41.65482839 | J138: 180465 | K138: [4] UPPER SOUTHERN - BALTIMORE WASH INTL AP
A139: 180470 | B139: [6] NORTHERN CENTRAL - BALTIMORE CITY | C139: MD | D139: BALTIMORE (CITY) | E139: 6 | F139: 14 | G139: 1.05 | H139: 1.72 | I139: 41.18351763 | J139: 180470 | K139: [6] NORTHERN CENTRAL - BALTIMORE CITY
A140: 184030 | B140: [7] APPALACHIAN MOUNTAIN - HANCOCK | C140: MD | D140: WASHINGTON | E140: 7 | F140: 384 | G140: 0.9 | H140: 1.3 | I140: 34.39961687 | J140: 184030 | K140: [7] APPALACHIAN MOUNTAIN - HANCOCK
A141: 188315 | B141: [8] ALLEGHENY PLATEAU - SINES DEEP CREEK | C141: MD | D141: GARRETT | E141: 8 | F141: 2040 | G141: 0.74 | H141: 1.16 | I141: 46.94134707 | J141: 188315 | K141: [8] ALLEGHENY PLATEAU - SINES DEEP CREEK
A142: 193985 | B142: [1] WESTERN - KNIGHTVILLE DAM | C142: MA | D142: HAMPSHIRE | E142: 1 | F142: 630 | G142: 1 | H142: 1.68 | I142: 44.48045636 | J142: 193985 | K142: [1] WESTERN - KNIGHTVILLE DAM
A143: 190736 | B143: [2] CENTRAL - BLUE HILL | C143: MA | D143: NORFOLK | E143: 2 | F143: 625 | G143: 1.08 | H143: 1.75 | I143: 50.20985588 | J143: 190736 | K143: [2] CENTRAL - BLUE HILL
A144: 190770 | B144: [3] COASTAL - BOSTON | C144: MA | D144: SUFFOLK | E144: 3 | F144: 12 | G144: 0.96 | H144: 1.57 | I144: 43.07275554 | J144: 190770 | K144: [3] COASTAL - BOSTON
A145: 204090 | B145: [1] WEST UPPER - IRON MT KINGSFORD WWTP | C145: MI | D145: DICKINSON | E145: 1 | F145: 1071 | G145: 0.79 | H145: 1.2 | I145: 28.26646925 | J145: 204090 | K145: [1] WEST UPPER - IRON MT KINGSFORD WWTP
A146: 207366 | B146: [2] EAST UPPER - SAULT STE MARIE SNDRSN | C146: MI | D146: CHIPPEWA | E146: 2 | F146: 722 | G146: 0.62 | H146: 1.02 | I146: 32.60137184 | J146: 207366 | K146: [2] EAST UPPER - SAULT STE MARIE SNDRSN
A147: 200662 | B147: [3] NORTHWEST - BELLAIRE | C147: MI | D147: ANTRIM | E147: 3 | F147: 625 | G147: 0.7 | H147: 1.1 | I147: 31.16371514 | J147: 200662 | K147: [3] NORTHWEST - BELLAIRE
A148: 200164 | B148: [4] NORTHEAST LOWER - ALPENA CO RGNL AP | C148: MI | D148: ALPENA | E148: 4 | F148: 684 | G148: 0.66 | H148: 1.04 | I148: 27.69866563 | J148: 200164 | K148: [4] NORTHEAST LOWER - ALPENA CO RGNL AP
A149: 205712 | B149: [5] WEST CENTRAL LOWER - MUSKEGON CO AP | C149: MI | D149: MUSKEGON | E149: 5 | F149: 625 | G149: 0.71 | H149: 1.15 | I149: 32.08184542 | J149: 205712 | K149: [5] WEST CENTRAL LOWER - MUSKEGON CO AP
A150: 203170 | B150: [6] CENTRAL LOWER - GLADWIN | C150: MI | D150: GLADWIN | E150: 6 | F150: 775 | G150: 0.8 | H150: 1.4 | I150: 18.30286933 | J150: 203170 | K150: [6] CENTRAL LOWER - GLADWIN
A151: 203580 | B151: [7] EAST CENTRAL LOWER - HARBOR BEACH | C151: MI | D151: HURON | E151: 7 | F151: 600 | G151: 0.7 | H151: 1.1 | I151: 29.47347002 | J151: 203580 | K151: [7] EAST CENTRAL LOWER - HARBOR BEACH
A152: 203333 | B152: [8] SOUTHWEST LOWER - GERALD R FORD INTL AP | C152: MI | D152: KENT | E152: 8 | F152: 803 | G152: 0.82 | H152: 1.33 | I152: 35.82094773 | J152: 203333 | K152: [8] SOUTHWEST LOWER - GERALD R FORD INTL AP
A153: 204155 | B153: [9] SOUTH CENTRAL LOWER - JACKSON 3N | C153: MI | D153: JACKSON | E153: 9 | F153: 950 | G153: 0.8 | H153: 1.26 | I153: 30.62163281 | J153: 204155 | K153: [9] SOUTH CENTRAL LOWER - JACKSON 3N
A154: 202846 | B154: [10] SOUTHEAST LOWER - FLINT BISHOP INTL AP | C154: MI | D154: GENESEE | E154: 10 | F154: 770 | G154: 0.71 | H154: 1.16 | I154: 26.23470647 | J154: 202846 | K154: [10] SOUTHEAST LOWER - FLINT BISHOP INTL AP
A155: 218235 | B155: [1] NORTHWEST - THIEF LAKE REFUGE | C155: MN | D155: MARSHALL | E155: 1 | F155: 1142 | G155: 0.8 | H155: 1.3 | I155: 23.16941477 | J155: 218235 | K155: [1] NORTHWEST - THIEF LAKE REFUGE
A156: 214026 | B156: [2] NORTH CENTRAL - INTERNATIONAL FALLS AP | C156: MN | D156: KOOCHICHING | E156: 2 | F156: 1183 | G156: 0.68 | H156: 1.14 | I156: 24.33325871 | J156: 214026 | K156: [2] NORTH CENTRAL - INTERNATIONAL FALLS AP
A157: 212248 | B157: [3] NORTHEAST - DULUTH INTL AP | C157: MN | D157: ST. LOUIS | E157: 3 | F157: 1433 | G157: 0.79 | H157: 1.31 | I157: 29.44294091 | J157: 212248 | K157: [3] NORTHEAST - DULUTH INTL AP
A158: 210112 | B158: [4] WEST CENTRAL - ALEXANDRIA CHANDLER FLD | C158: MN | D158: DOUGLAS | E158: 4 | F158: 1416 | G158: 0.83 | H158: 1.31 | I158: 11.11612755 | J158: 210112 | K158: [4] WEST CENTRAL - ALEXANDRIA CHANDLER FLD
A159: 217294 | B159: [5] CENTRAL - ST CLOUD MUNI AP | C159: MN | D159: SHERBURNE | E159: 5 | F159: 1018 | G159: 0.83 | H159: 1.39 | I159: 26.68599622 | J159: 217294 | K159: [5] CENTRAL - ST CLOUD MUNI AP
A160: 218323 | B160: [7] SOUTHWEST - TRACY | C160: MN | D160: LYON | E160: 7 | F160: 1403 | G160: 0.9 | H160: 1.4 | I160: 25.17127938 | J160: 218323 | K160: [7] SOUTHWEST - TRACY
A161: 215987 | B161: [8] SOUTH CENTRAL - NORTHFIELD 2 NNE | C161: MN | D161: DAKOTA | E161: 8 | F161: 890 | G161: 0.9 | H161: 1.42 | I161: 29.08130964 | J161: 215987 | K161: [8] SOUTH CENTRAL - NORTHFIELD 2 NNE
A162: 217004 | B162: [9] SOUTHEAST - ROCHESTER INTL AP | C162: MN | D162: OLMSTED | E162: 9 | F162: 1304 | G162: 0.85 | H162: 1.44 | I162: 29.50826891 | J162: 217004 | K162: [9] SOUTHEAST - ROCHESTER INTL AP
A163: 221743 | B163: [1] UPPER DELTA - CLEVELAND 3 N | C163: MS | D163: BOLIVAR | E163: 1 | F163: 140 | G163: 1.4 | H163: 2.3 | I163: 50.42379106 | J163: 221743 | K163: [1] UPPER DELTA - CLEVELAND 3 N
A164: 227815 | B164: [2] NORTH CENTRAL - SARDIS DAM | C164: MS | D164: PANOLA | E164: 2 | F164: 303 | G164: 1.32 | H164: 2.16 | I164: 53.86293566 | J164: 227815 | K164: [2] NORTH CENTRAL - SARDIS DAM
A165: 229003 | B165: [3] NORTHEAST - TUPELO RGNL AP | C165: MS | D165: LEE | E165: 3 | F165: 361 | G165: 1.3 | H165: 2.13 | I165: 54.41947925 | J165: 229003 | K165: [3] NORTHEAST - TUPELO RGNL AP
A166: 228445 | B166: [4] LOWER DELTA - STONEVILLE EXP STN | C166: MS | D166: WASHINGTON | E166: 4 | F166: 127 | G166: 1.4 | H166: 2.1 | I166: 50.03827932 | J166: 228445 | K166: [4] LOWER DELTA - STONEVILLE EXP STN
A167: 225062 | B167: [5] CENTRAL - LEXINGTON | C167: MS | D167: HOLMES | E167: 5 | F167: 285 | G167: 1.4 | H167: 2.23 | I167: 54.05059082 | J167: 225062 | K167: [5] CENTRAL - LEXINGTON
A168: 228374 | B168: [6] EAST CENTRAL - STATE UNIV | C168: MS | D168: OKTIBBEHA | E168: 6 | F168: 185 | G168: 1.3 | H168: 2.11 | I168: 51.8372154 | J168: 228374 | K168: [6] EAST CENTRAL - STATE UNIV
A169: 227714 | B169: [7] SOUTHWEST - RUTH 1 SE | C169: MS | D169: LINCOLN | E169: 7 | F169: 443 | G169: 1.43 | H169: 2.35 | I169: 56.35407665 | J169: 227714 | K169: [7] SOUTHWEST - RUTH 1 SE
A170: 227220 | B170: [8] SOUTH CENTRAL - PURVIS 2N | C170: MS | D170: LAMAR | E170: 8 | F170: 378 | G170: 1.4 | H170: 2.3 | I170: 59.83281391 | J170: 227220 | K170: [8] SOUTH CENTRAL - PURVIS 2N
A171: 225776 | B171: [9] SOUTHEAST - MERIDIAN AP | C171: MS | D171: LAUDERDALE | E171: 9 | F171: 294 | G171: 1.3 | H171: 2.12 | I171: 55.17079059 | J171: 225776 | K171: [9] SOUTHEAST - MERIDIAN AP
A172: 227840 | B172: [10] COASTAL - SAUCIER EXP FOREST | C172: MS | D172: HARRISON | E172: 10 | F172: 229 | G172: 1.5 | H172: 2.5 | I172: 66.87587204 | J172: 227840 | K172: [10] COASTAL - SAUCIER EXP FOREST
A173: 234358 | B173: [1] NORTHWEST PRAIRIE - KANSAS CITY INTL AP | C173: MO | D173: PLATTE | E173: 1 | F173: 1005 | G173: 1.01 | H173: 1.76 | I173: 37.20754327 | J173: 234358 | K173: [1] NORTHWEST PRAIRIE - KANSAS CITY INTL AP
A174: 237455 | B174: [2] NORTHEAST PRAIRIE - ST LOUIS LAMBERT AP | C174: MO | D174: ST. LOUIS | E174: 2 | F174: 531 | G174: 0.96 | H174: 1.57 | I174: 37.23330015 | J174: 237455 | K174: [2] NORTHEAST PRAIRIE - ST LOUIS LAMBERT AP
A175: 235987 | B175: [3] WEST CENTRAL PLAINS - NEVADA WTP | C175: MO | D175: VERNON | E175: 3 | F175: 820 | G175: 1.2 | H175: 1.9 | I175: 39.32503122 | J175: 235987 | K175: [3] WEST CENTRAL PLAINS - NEVADA WTP
A176: 237976 | B176: [4] WEST OZARKS - SPRINGFIELD WSO AP | C176: MO | D176: GREENE | E176: 4 | F176: 1259 | G176: 1.1 | H176: 1.78 | I176: 42.0144393 | J176: 237976 | K176: [4] WEST OZARKS - SPRINGFIELD WSO AP
A177: 238620 | B177: [5] EAST OZARKS - VIENNA 2 WNW | C177: MO | D177: MARIES | E177: 5 | F177: 770 | G177: 1.11 | H177: 1.74 | I177: 41.33414619 | J177: 238620 | K177: [5] EAST OZARKS - VIENNA 2 WNW
A178: 233999 | B178: [6] BOOTHEEL - HORNERSVILLE | C178: MO | D178: DUNKLIN | E178: 6 | F178: 250 | G178: 1.25 | H178: 2.07 | I178: 46.36292707 | J178: 233999 | K178: [6] BOOTHEEL - HORNERSVILLE
A179: 245745 | B179: [1] WESTERN - MISSOULA INTL AP | C179: MT | D179: MISSOULA | E179: 1 | F179: 3192 | G179: 0.41 | H179: 0.64 | I179: 13.19382766 | J179: 245745 | K179: [1] WESTERN - MISSOULA INTL AP
A180: 241309 | B180: [2] SOUTHWESTERN - BUTTE 8 S | C180: MT | D180: SILVER BOW | E180: 2 | F180: 5700 | G180: 0.5 | H180: 0.8 | I180: 14.84655695 | J180: 241309 | K180: [2] SOUTHWESTERN - BUTTE 8 S
A181: 241737 | B181: [3] NORTH CENTRAL - CHOTEAU | C181: MT | D181: TETON | E181: 3 | F181: 3845 | G181: 0.63 | H181: 1 | I181: 10.55889766 | J181: 241737 | K181: [3] NORTH CENTRAL - CHOTEAU
A182: 240807 | B182: [5] SOUTH CENTRAL - BILLINGS INTL AP | C182: MT | D182: YELLOWSTONE | E182: 5 | F182: 3581 | G182: 0.51 | H182: 0.85 | I182: 13.67074874 | J182: 240807 | K182: [5] SOUTH CENTRAL - BILLINGS INTL AP
A183: 241088 | B183: [6] NORTHEASTERN - BREDETTE | C183: MT | D183: ROOSEVELT | E183: 6 | F183: 2638 | G183: 0.65 | H183: 1.02 | I183: 12.26334696 | J183: 241088 | K183: [6] NORTHEASTERN - BREDETTE
A184: 248169 | B184: [7] SOUTHEASTERN - TERRY 21 NNW | C184: MT | D184: PRAIRIE | E184: 7 | F184: 3142 | G184: 0.63 | H184: 1.06 | I184: 13.87486691 | J184: 248169 | K184: [7] SOUTHEASTERN - TERRY 21 NNW
A185: 257665 | B185: [1] PANHANDLE - SCOTTSBLUFF AP | C185: NE | D185: SCOTTS BLUFF | E185: 1 | F185: 3945 | G185: 0.61 | H185: 0.99 | I185: 14.56736408 | J185: 257665 | K185: [1] PANHANDLE - SCOTTSBLUFF AP
A186: 258760 | B186: [2] NORTH CENTRAL - VALENTINE MILLER AP | C186: NE | D186: CHERRY | E186: 2 | F186: 2590 | G186: 0.73 | H186: 1.22 | I186: 18.33720188 | J186: 258760 | K186: [2] NORTH CENTRAL - VALENTINE MILLER AP
A187: 255995 | B187: [3] NORTHEAST - NORFOLK AP | C187: NE | D187: MADISON | E187: 3 | F187: 1551 | G187: 0.88 | H187: 1.48 | I187: 24.81776288 | J187: 255995 | K187: [3] NORTHEAST - NORFOLK AP
A188: 253395 | B188: [5] CENTRAL - GRAND ISLAND CTR NE AP | C188: NE | D188: HALL | E188: 5 | F188: 1840 | G188: 0.88 | H188: 1.45 | I188: 23.87603585 | J188: 253395 | K188: [5] CENTRAL - GRAND ISLAND CTR NE AP
A189: 254795 | B189: [6] EAST CENTRAL - LINCOLN AP | C189: NE | D189: LANCASTER | E189: 6 | F189: 1190 | G189: 0.94 | H189: 1.55 | I189: 17.80231373 | J189: 254795 | K189: [6] EAST CENTRAL - LINCOLN AP
A190: 256065 | B190: [7] SOUTHWEST - NORTH PLATTE RGNL AP | C190: NE | D190: LINCOLN | E190: 7 | F190: 2778 | G190: 0.81 | H190: 1.25 | I190: 19.38333762 | J190: 256065 | K190: [7] SOUTHWEST - NORTH PLATTE RGNL AP
A191: 252560 | B191: [8] SOUTH CENTRAL - EDISON | C191: NE | D191: FURNAS | E191: 8 | F191: 2120 | G191: 0.9 | H191: 1.41 | I191: 21.21189896 | J191: 252560 | K191: [8] SOUTH CENTRAL - EDISON
A192: 258395 | B192: [9] SOUTHEAST - SYRACUSE | C192: NE | D192: OTOE | E192: 9 | F192: 1100 | G192: 1 | H192: 1.7 | I192: 29.95078781 | J192: 258395 | K192: [9] SOUTHEAST - SYRACUSE
A193: 269171 | B193: [1] NORTHWESTERN - WINNEMUCCA AP | C193: NV | D193: HUMBOLDT | E193: 1 | F193: 4296 | G193: 0.39 | H193: 0.58 | I193: 7.948998069 | J193: 269171 | K193: [1] NORTHWESTERN - WINNEMUCCA AP
A194: 262631 | B194: [2] NORTHEASTERN - ELY AIRPORT | C194: NV | D194: WHITE PINE | E194: 2 | F194: 6262 | G194: 0.44 | H194: 0.63 | I194: 9.088861395 | J194: 262631 | K194: [2] NORTHEASTERN - ELY AIRPORT
A195: 268170 | B195: [3] SOUTH CENTRAL - TONOPAH AIRPORT | C195: NV | D195: NYE | E195: 3 | F195: 5395 | G195: 0.42 | H195: 0.63 | I195: 2.272766096 | J195: 268170 | K195: [3] SOUTH CENTRAL - TONOPAH AIRPORT
A196: 264436 | B196: [4] EXTREME SOUTHERN - LAS VEGAS AP | C196: NV | D196: CLARK | E196: 4 | F196: 2131 | G196: 0.58 | H196: 0.88 | I196: 4.195456145 | J196: 264436 | K196: [4] EXTREME SOUTHERN - LAS VEGAS AP
A197: 275639 | B197: [1] NORTHERN - MT WASHINGTON | C197: NH | D197: COOS | E197: 1 | F197: 6267 | G197: 1.02 | H197: 1.77 | I197: 92.17109944 | J197: 275639 | K197: [1] NORTHERN - MT WASHINGTON
A198: 271683 | B198: [2] SOUTHERN - CONCORD ASOS | C198: NH | D198: MERRIMACK | E198: 2 | F198: 346 | G198: 0.85 | H198: 1.33 | I198: 38.06102262 | J198: 271683 | K198: [2] SOUTHERN - CONCORD ASOS
A199: 286026 | B199: [1] NORTHERN - NEWARK INTL AP | C199: NJ | D199: ESSEX | E199: 1 | F199: 7 | G199: 0.99 | H199: 1.61 | I199: 43.98673075 | J199: 286026 | K199: [1] NORTHERN - NEWARK INTL AP
A200: 280311 | B200: [2] SOUTHERN - ATLANTIC CITY INTL AP | C200: NJ | D200: ATLANTIC | E200: 2 | F200: 60 | G200: 1.01 | H200: 1.63 | I200: 41.18544369 | J200: 280311 | K200: [2] SOUTHERN - ATLANTIC CITY INTL AP
... 148 more rows

Sheet Drawdown Data (hidden)
M1: Station | N1: Storage Increement | O1: Drawdown | P1: Capture (%) | V1: Sum of Capture (%) | W1: Column Labels
I2: =MATCH(VLOOKUP('Project Location'!$P$11,'Rain Gage Summary'!B2:J348,9,FALSE),'Drawdown Data'!A2:A34301,0) ->  | L2: 1 | M2: =INDIRECT("A"&$I$2+$L2) ->  | N2: =INDIRECT("B"&$I$2+$L2) ->  | O2: =INDIRECT("C"&$I$2+$L2) ->  | P2: =INDIRECT("D"&$I$2+$L2) ->  | V2: Row Labels | W2: 0.1 | X2: 0.2 | Y2: 0.4 | Z2: 0.6 | AA2: 0.8 | AB2: 1 | AC2: 1.25 | AD2: 1.5 | AE2: 2 | AF2: 3 | AG2: Grand Total
L3: 2 | M3: =INDIRECT("A"&$I$2+L3) ->  | N3: =INDIRECT("B"&$I$2+$L3) ->  | O3: =INDIRECT("C"&$I$2+$L3) ->  | P3: =INDIRECT("D"&$I$2+$L3) ->  | V3: 2 | W3: 0.6812568867 | X3: 0.8924788337 | Y3: 0.9843963554 | Z3: 0.9977598907 | AA3: 0.9997342041 | AB3: 0.9999620277 | AC3: 1 | AD3: 1 | AE3: 1 | AF3: 1 | AG3: 9.555588198
L4: 3 | M4: =INDIRECT("A"&$I$2+L4) ->  | N4: =INDIRECT("B"&$I$2+$L4) ->  | O4: =INDIRECT("C"&$I$2+$L4) ->  | V4: 3 | W4: 0.5789273633 | X4: 0.8173014848 | Y4: 0.9616946965 | Z4: 0.990318539 | AA4: 0.9976838668 | AB4: 0.9995823208 | AC4: 1 | AD4: 1 | AE4: 1 | AF4: 1 | AG4: 9.345508271
L5: 4 | M5: =INDIRECT("A"&$I$2+L5) ->  | N5: =INDIRECT("B"&$I$2+$L5) ->  | O5: =INDIRECT("C"&$I$2+$L5) ->  | V5: 6 | W5: 0.4253717154 | X5: 0.665133954 | Y5: 0.8821697181 | Z5: 0.956290586 | AA5: 0.9831010519 | AB5: 0.9931644704 | AC5: 0.997455664 | AD5: 0.9992404967 | AE5: 1 | AF5: 1 | AG5: 8.901927657
L6: 5 | V6: 12 | W6: 0.3060044872 | X6: 0.5170644573 | Y6: 0.7660714286 | Z6: 0.8809026327 | AA6: 0.9388437286 | AB6: 0.9672236992 | AC6: 0.9847334042 | AD6: 0.9931264953 | AE6: 0.9980252165 | AF6: 1 | AG6: 8.35199555
L7: 6 | V7: 24 | W7: 0.2172243346 | X7: 0.3860215871 | Y7: 0.6280395137 | Z7: 0.775 | AA7: 0.859612462 | AB7: 0.912006079 | AC7: 0.9505755423 | AD7: 0.9706373927 | AE7: 0.9885686073 | AF7: 0.9982911176 | AG7: 7.685976636
L8: 7 | V8: 48 | W8: 0.1500855351 | X8: 0.2770388386 | Y8: 0.4825607903 | Z8: 0.6361322188 | AA8: 0.7437972567 | AB8: 0.8184063533 | AC8: 0.8825854011 | AD8: 0.9235504218 | AE8: 0.964893617 | AF8: 0.9913773456 | AG8: 6.870427778
L9: 8 | V9: 72 | W9: 0.1185570929 | X9: 0.2221842225 | Y9: 0.4001139818 | Z9: 0.5436343604 | AA9: 0.656901858 | AB9: 0.7421818596 | AC9: 0.8196777381 | AD9: 0.8747102413 | AE9: 0.9386328229 | AF9: 0.9819528875 | AG9: 6.298547065
L10: 9 | V10: 120 | W10: 0.08607585316 | X10: 0.1642222053 | Y10: 0.3051555792 | Z10: 0.428381459 | AA10: 0.5341388351 | AB10: 0.6224113691 | AC10: 0.7118644068 | AD10: 0.7815148406 | AE10: 0.8785057384 | AF10: 0.9596458563 | AG10: 5.471916143
L11: 10 | V11: 180 | W11: 0.06539499183 | X11: 0.1259070704 | Y11: 0.2390775777 | Z11: 0.3424261996 | AA11: 0.4361867852 | AB11: 0.5194741042 | AC11: 0.6084064911 | AD11: 0.6826923077 | AE11: 0.7961083875 | AF11: 0.9236148058 | AG11: 4.739288721
L12: 11 | V12: 360 | W12: 0.03833149717 | X12: 0.07517854429 | Y12: 0.145500133 | Z12: 0.2126438965 | AA12: 0.2768342262 | AB12: 0.3380452956 | AC12: 0.4109375594 | AD12: 0.477309008 | AE12: 0.5939472283 | AF12: 0.7706146356 | AG12: 3.339342024
L13: 12 | V13: Grand Total | W13: 2.667229757 | X13: 4.142531198 | Y13: 5.794779774 | Z13: 6.763489783 | AA13: 7.426834275 | AB13: 7.912457579 | AC13: 8.366236207 | AD13: 8.702781204 | AE13: 9.158681618 | AF13: 9.625496648 | AG13: 70.56051804
L14: 13
L15: 14 | W15: 0 | X15: =W2 -> 0.1 | Y15: 0.2 | Z15: 0.4 | AA15: 0.6 | AB15: 0.8 | AC15: 1 | AD15: 1.25 | AE15: 1.5 | AF15: 2 | AG15: 3
L16: 15 | V16: 0 | W16: 0 | X16: 1 | Y16: 1 | Z16: 1 | AA16: 1 | AB16: 1 | AC16: 1 | AD16: 1 | AE16: 1 | AF16: 1 | AG16: 1
L17: 16 | V17: =V3 -> 2 | W17: 0 | X17: =W3 -> 0.6812568867 | Y17: 0.8924788337 | Z17: 0.9843963554 | AA17: 0.9977598907 | AB17: 0.9997342041 | AC17: 0.9999620277 | AD17: 1 | AE17: 1 | AF17: 1 | AG17: 1
L18: 17 | V18: 3 | W18: 0 | X18: =W4 -> 0.5789273633 | Y18: 0.8173014848 | Z18: 0.9616946965 | AA18: 0.990318539 | AB18: 0.9976838668 | AC18: 0.9995823208 | AD18: 1 | AE18: 1 | AF18: 1 | AG18: 1
L19: 18 | V19: 6 | W19: 0 | X19: =W5 -> 0.4253717154 | Y19: 0.665133954 | Z19: 0.8821697181 | AA19: 0.956290586 | AB19: 0.9831010519 | AC19: 0.9931644704 | AD19: 0.997455664 | AE19: 0.9992404967 | AF19: 1 | AG19: 1
L20: 19 | V20: 12 | W20: 0 | X20: =W6 -> 0.3060044872 | Y20: 0.5170644573 | Z20: 0.7660714286 | AA20: 0.8809026327 | AB20: 0.9388437286 | AC20: 0.9672236992 | AD20: 0.9847334042 | AE20: 0.9931264953 | AF20: 0.9980252165 | AG20: 1
L21: 20 | V21: 24 | W21: 0 | X21: =W7 -> 0.2172243346 | Y21: 0.3860215871 | Z21: 0.6280395137 | AA21: 0.775 | AB21: 0.859612462 | AC21: 0.912006079 | AD21: 0.9505755423 | AE21: 0.9706373927 | AF21: 0.9885686073 | AG21: 0.9982911176
L22: 21 | V22: 48 | W22: 0 | X22: =W8 -> 0.1500855351 | Y22: 0.2770388386 | Z22: 0.4825607903 | AA22: 0.6361322188 | AB22: 0.7437972567 | AC22: 0.8184063533 | AD22: 0.8825854011 | AE22: 0.9235504218 | AF22: 0.964893617 | AG22: 0.9913773456
L23: 22 | V23: 72 | W23: 0 | X23: =W9 -> 0.1185570929 | Y23: 0.2221842225 | Z23: 0.4001139818 | AA23: 0.5436343604 | AB23: 0.656901858 | AC23: 0.7421818596 | AD23: 0.8196777381 | AE23: 0.8747102413 | AF23: 0.9386328229 | AG23: 0.9819528875
L24: 23 | V24: 120 | W24: 0 | X24: =W10 -> 0.08607585316 | Y24: 0.1642222053 | Z24: 0.3051555792 | AA24: 0.428381459 | AB24: 0.5341388351 | AC24: 0.6224113691 | AD24: 0.7118644068 | AE24: 0.7815148406 | AF24: 0.8785057384 | AG24: 0.9596458563
L25: 24 | V25: 180 | W25: 0 | X25: =W11 -> 0.06539499183 | Y25: 0.1259070704 | Z25: 0.2390775777 | AA25: 0.3424261996 | AB25: 0.4361867852 | AC25: 0.5194741042 | AD25: 0.6084064911 | AE25: 0.6826923077 | AF25: 0.7961083875 | AG25: 0.9236148058
L26: 25 | V26: 360 | W26: 0 | X26: =W12 -> 0.03833149717 | Y26: 0.07517854429 | Z26: 0.145500133 | AA26: 0.2126438965 | AB26: 0.2768342262 | AC26: 0.3380452956 | AD26: 0.4109375594 | AE26: 0.477309008 | AF26: 0.5939472283 | AG26: 0.7706146356
L27: 26
L28: 27
L29: 28
L30: 29
L31: 30
L32: 31 | Y32: =MATCH(0.95,W3:AF3,1) -> 2
L33: 32
L34: 33
L35: 34
L36: 35
L37: 36
L38: 37
L39: 38
L40: 39
L41: 40
L42: 41
L43: 42
L44: 43
L45: 44
L46: 45
L47: 46
L48: 47
L49: 48
L50: 49
L51: 50
L52: 51
L53: 52
L54: 53
L55: 54
L56: 55
L57: 56
L58: 57
L59: 58
L60: 59
L61: 60
L62: 61
L63: 62
L64: 63
L65: 64
L66: 65
L67: 66 | P67: =INDIRECT("D"&$I$2+$L67) -> 
L68: 67
L69: 68 | M69: =INDIRECT("A"&$I$2+L69) ->  | N69: =INDIRECT("B"&$I$2+$L69) ->  | O69: =INDIRECT("C"&$I$2+$L69) -> 
L70: 69
L71: 70
L72: 71
L73: 72
L74: 73
L75: 74
L76: 75
L77: 76
L78: 77
L79: 78
L80: 79
L81: 80
L82: 81
L83: 82
L84: 83
L85: 84
L86: 85
L87: 86
L88: 87
L89: 88
L90: 89
L91: 90
L92: 91
L93: 92
L94: 93
L95: 94
L96: 95
L97: 96
L98: 97
L99: 98
L100: 99
L101: 100
... 2456 more rows

Sheet ET Data (hidden)
A1: Station | B1: Storage Increement | C1: ET Depth | D1: Capture (%) | M1: Station | N1: Storage Increment | O1: Drawdown | P1: Capture (%) | V1: Sum of Capture (%) | W1: Column Labels
A2: 10063 | B2: 0.1 | C2: 0.5 | D2: 0.09939875338 | I2: =MATCH(VLOOKUP('Project Location'!$P$11,'Rain Gage Summary'!B2:J348,9,FALSE),'ET Data'!A2:A24011,0) ->  | L2: 1 | M2: =INDIRECT("A"&$I$2+$L2) ->  | N2: =INDIRECT("B"&$I$2+$L2) ->  | O2: =INDIRECT("C"&$I$2+$L2) ->  | P2: =INDIRECT("D"&$I$2+$L2) ->  | V2: Row Labels | W2: 0.1 | X2: 0.2 | Y2: 0.4 | Z2: 0.6 | AA2: 0.8 | AB2: 1 | AC2: 1.25 | AD2: 1.5 | AE2: 2 | AF2: 3 | AG2: Grand Total
A3: 10063 | B3: 0.2 | C3: 0.5 | D3: 0.1891168845 | L3: 2 | M3: =INDIRECT("A"&$I$2+L3) ->  | N3: =INDIRECT("B"&$I$2+$L3) ->  | O3: =INDIRECT("C"&$I$2+$L3) ->  | P3: =INDIRECT("D"&$I$2+$L3) ->  | V3: 0.5 | W3: 0.05096267041 | X3: 0.09657084267 | Y3: 0.1785212471 | Z3: 0.250863935 | AA3: 0.313750807 | AB3: 0.3677894657 | AC3: 0.4253218395 | AD3: 0.4744996772 | AE3: 0.5547791744 | AF3: 0.6684768162 | AG3: 3.381536475
A4: 10063 | B4: 0.4 | C4: 0.5 | D4: 0.3460201886 | L4: 3 | M4: =INDIRECT("A"&$I$2+L4) ->  | N4: =INDIRECT("B"&$I$2+$L4) ->  | O4: =INDIRECT("C"&$I$2+$L4) ->  | V4: 0.75 | W4: 0.03900049368 | X4: 0.07439334675 | Y4: 0.1392549273 | Z4: 0.1975847796 | AA4: 0.2498765807 | AB4: 0.2962062811 | AC4: 0.3475487031 | AD4: 0.3918277447 | AE4: 0.4686894771 | AF4: 0.5800326586 | AG4: 2.784414993
A5: 10063 | B5: 0.6 | C5: 0.5 | D5: 0.4785702466 | L5: 4 | M5: =INDIRECT("A"&$I$2+L5) ->  | N5: =INDIRECT("B"&$I$2+$L5) ->  | O5: =INDIRECT("C"&$I$2+$L5) ->  | V5: 1 | W5: 0.03197508829 | X5: 0.06121596476 | Y5: 0.1154824745 | Z5: 0.164850188 | AA5: 0.2104963354 | AB5: 0.2513576121 | AC5: 0.297345536 | AD5: 0.3387004899 | AE5: 0.4082709908 | AF5: 0.519766073 | AG5: 2.399460753
A6: 10063 | B6: 0.8 | C6: 0.5 | D6: 0.5881460643 | L6: 5 | V6: 2 | W6: 0.01910150761 | X6: 0.03725363612 | Y6: 0.07120343295 | Z6: 0.1029886454 | AA6: 0.1332168762 | AB6: 0.1621539513 | AC6: 0.1960277978 | AD6: 0.2275471841 | AE6: 0.2826491475 | AF6: 0.3775111077 | AG6: 1.609653287
A7: 10063 | B7: 1 | C7: 0.5 | D7: 0.6774504937 | L7: 6 | V7: 3 | W7: 0.01374700946 | X7: 0.02700034178 | Y7: 0.05244370182 | Z7: 0.07648198078 | AA7: 0.09953290548 | AB7: 0.1217483766 | AC7: 0.1486347928 | AD7: 0.1739642274 | AE7: 0.2213572324 | AF7: 0.3030797858 | AG7: 1.237990354
A8: 10063 | B8: 1.25 | C8: 0.5 | D8: 0.7636659496 | L8: 7 | V8: 5 | W8: 0.008810238104 | X8: 0.01750655072 | Y8: 0.0345194243 | Z8: 0.05115254623 | AA8: 0.06755781719 | AB8: 0.08346941101 | AC8: 0.1027607944 | AD8: 0.1213686249 | AE8: 0.1572551551 | AF8: 0.2241673945 | AG8: 0.8685679566
A9: 10063 | B9: 1.5 | C9: 0.5 | D9: 0.8281758508 | L9: 8 | V9: 10 | W9: 0.004594994873 | X9: 0.009076064254 | Y9: 0.01811415334 | Z9: 0.02715224243 | AA9: 0.03615235636 | AB9: 0.04519044545 | AC9: 0.05646906923 | AD9: 0.06767174268 | AE9: 0.09015303991 | AF9: 0.1350776592 | AG9: 0.4896517677
A10: 10063 | B10: 2 | C10: 0.5 | D10: 0.9137293839 | L10: 9 | V10: Grand Total | W10: 0.1681920024 | X10: 0.323016747 | Y10: 0.6095393613 | Z10: 0.8710743174 | AA10: 1.110583678 | AB10: 1.327915543 | AC10: 1.574108533 | AD10: 1.795579691 | AE10: 2.183154217 | AF10: 2.808111495 | AG10: 12.77127559
A11: 10063 | B11: 3 | C11: 0.5 | D11: 0.9824866236 | L11: 10
A12: 10063 | B12: 0.1 | C12: 0.75 | D12: 0.07849302223 | L12: 11 | V12: 0 | W12: =W2 -> 0.1 | X12: 0.2 | Y12: 0.4 | Z12: 0.6 | AA12: 0.8 | AB12: 1 | AC12: 1.25 | AD12: 1.5 | AE12: 2 | AF12: 3
A13: 10063 | B13: 0.2 | C13: 0.75 | D13: 0.1510838987 | L13: 12 | U13: =V3 -> 0.5 | V13: 0 | W13: =W3 -> 0.05096267041 | X13: 0.09657084267 | Y13: 0.1785212471 | Z13: 0.250863935 | AA13: 0.313750807 | AB13: 0.3677894657 | AC13: 0.4253218395 | AD13: 0.4744996772 | AE13: 0.5547791744 | AF13: 0.6684768162
A14: 10063 | B14: 0.4 | C14: 0.75 | D14: 0.2820343097 | L14: 13 | U14: 0.75 | V14: 0 | W14: =W4 -> 0.03900049368 | X14: 0.07439334675 | Y14: 0.1392549273 | Z14: 0.1975847796 | AA14: 0.2498765807 | AB14: 0.2962062811 | AC14: 0.3475487031 | AD14: 0.3918277447 | AE14: 0.4686894771 | AF14: 0.5800326586
A15: 10063 | B15: 0.6 | C15: 0.75 | D15: 0.3964918087 | L15: 14 | U15: 1 | V15: 0 | W15: =W5 -> 0.03197508829 | X15: 0.06121596476 | Y15: 0.1154824745 | Z15: 0.164850188 | AA15: 0.2104963354 | AB15: 0.2513576121 | AC15: 0.297345536 | AD15: 0.3387004899 | AE15: 0.4082709908 | AF15: 0.519766073
A16: 10063 | B16: 0.8 | C16: 0.75 | D16: 0.497021347 | L16: 15 | U16: 2 | V16: 0 | W16: =W6 -> 0.01910150761 | X16: 0.03725363612 | Y16: 0.07120343295 | Z16: 0.1029886454 | AA16: 0.1332168762 | AB16: 0.1621539513 | AC16: 0.1960277978 | AD16: 0.2275471841 | AE16: 0.2826491475 | AF16: 0.3775111077
A17: 10063 | B17: 1 | C17: 0.75 | D17: 0.5822439186 | L17: 16 | U17: 3 | V17: 0 | W17: =W7 -> 0.01374700946 | X17: 0.02700034178 | Y17: 0.05244370182 | Z17: 0.07648198078 | AA17: 0.09953290548 | AB17: 0.1217483766 | AC17: 0.1486347928 | AD17: 0.1739642274 | AE17: 0.2213572324 | AF17: 0.3030797858
A18: 10063 | B18: 1.25 | C18: 0.75 | D18: 0.6713552871 | L18: 17 | U18: 5 | V18: 0 | W18: =W8 -> 0.008810238104 | X18: 0.01750655072 | Y18: 0.0345194243 | Z18: 0.05115254623 | AA18: 0.06755781719 | AB18: 0.08346941101 | AC18: 0.1027607944 | AD18: 0.1213686249 | AE18: 0.1572551551 | AF18: 0.2241673945
A19: 10063 | B19: 1.5 | C19: 0.75 | D19: 0.742429257 | L19: 18 | U19: 10 | V19: 0 | W19: =W9 -> 0.004594994873 | X19: 0.009076064254 | Y19: 0.01811415334 | Z19: 0.02715224243 | AA19: 0.03615235636 | AB19: 0.04519044545 | AC19: 0.05646906923 | AD19: 0.06767174268 | AE19: 0.09015303991 | AF19: 0.1350776592
A20: 10063 | B20: 2 | C20: 0.75 | D20: 0.8456616471 | L20: 19
A21: 10063 | B21: 3 | C21: 0.75 | D21: 0.9568371118 | L21: 20
A22: 10063 | B22: 0.1 | C22: 1 | D22: 0.06495118319 | L22: 21
A23: 10063 | B23: 0.2 | C23: 1 | D23: 0.1260963098 | L23: 22
A24: 10063 | B24: 0.4 | C24: 1 | D24: 0.2390644823 | L24: 23
A25: 10063 | B25: 0.6 | C25: 1 | D25: 0.3407523857 | L25: 24
A26: 10063 | B26: 0.8 | C26: 1 | D26: 0.4323735451 | L26: 25
A27: 10063 | B27: 1 | C27: 1 | D27: 0.5130178168 | L27: 26
A28: 10063 | B28: 1.25 | C28: 1 | D28: 0.5987919907 | L28: 27
A29: 10063 | B29: 1.5 | C29: 1 | D29: 0.6720999504 | L29: 28
A30: 10063 | B30: 2 | C30: 1 | D30: 0.7831099344 | L30: 29
A31: 10063 | B31: 3 | C31: 1 | D31: 0.9208174748 | L31: 30
A32: 10063 | B32: 0.1 | C32: 2 | D32: 0.03877764907 | L32: 31
A33: 10063 | B33: 0.2 | C33: 2 | D33: 0.07595565117 | L33: 32
A34: 10063 | B34: 0.4 | C34: 2 | D34: 0.1478018644 | L34: 33
A35: 10063 | B35: 0.6 | C35: 2 | D35: 0.2174968283 | L35: 34
A36: 10063 | B36: 0.8 | C36: 2 | D36: 0.2842131392 | L36: 35
A37: 10063 | B37: 1 | C37: 2 | D37: 0.3477853163 | L37: 36
A38: 10063 | B38: 1.25 | C38: 2 | D38: 0.4210656958 | L38: 37
A39: 10063 | B39: 1.5 | C39: 2 | D39: 0.487616526 | L39: 38
A40: 10063 | B40: 2 | C40: 2 | D40: 0.6025704672 | L40: 39
A41: 10063 | B41: 3 | C41: 2 | D41: 0.7666446026 | L41: 40
A42: 10063 | B42: 0.1 | C42: 3 | D42: 0.02758012025 | L42: 41
A43: 10063 | B43: 0.2 | C43: 3 | D43: 0.05394671521 | L43: 42
A44: 10063 | B44: 0.4 | C44: 3 | D44: 0.1061007226 | L44: 43
A45: 10063 | B45: 0.6 | C45: 3 | D45: 0.1573721661 | L45: 44
A46: 10063 | B46: 0.8 | C46: 3 | D46: 0.2075955651 | L46: 45
A47: 10063 | B47: 1 | C47: 3 | D47: 0.2569088201 | L47: 46
A48: 10063 | B48: 1.25 | C48: 3 | D48: 0.3167852612 | L48: 47
A49: 10063 | B49: 1.5 | C49: 3 | D49: 0.3738761101 | L49: 48
A50: 10063 | B50: 2 | C50: 3 | D50: 0.4789563682 | L50: 49
A51: 10063 | B51: 3 | C51: 3 | D51: 0.6496497325 | L51: 50
A52: 10063 | B52: 0.1 | C52: 5 | D52: 0.0175685366 | L52: 51
A53: 10063 | B53: 0.2 | C53: 5 | D53: 0.03430966959 | L53: 52
A54: 10063 | B54: 0.4 | C54: 5 | D54: 0.06754371449 | L54: 53
A55: 10063 | B55: 0.6 | C55: 5 | D55: 0.1006398588 | L55: 54
A56: 10063 | B56: 0.8 | C56: 5 | D56: 0.1336532627 | L56: 55
A57: 10063 | B57: 1 | C57: 5 | D57: 0.1665563462 | L57: 56
A58: 10063 | B58: 1.25 | C58: 5 | D58: 0.2074025043 | L58: 57
A59: 10063 | B59: 1.5 | C59: 5 | D59: 0.2478625407 | L59: 58
A60: 10063 | B60: 2 | C60: 5 | D60: 0.3264383033 | L60: 59
A61: 10063 | B61: 3 | C61: 5 | D61: 0.4725853605 | L61: 60
A62: 10063 | B62: 0.1 | C62: 10 | D62: 0.009459981246 | L62: 61
A63: 10063 | B63: 0.2 | C63: 10 | D63: 0.01814771912 | L63: 62
A64: 10063 | B64: 0.4 | C64: 10 | D64: 0.03560593524 | L64: 63
A65: 10063 | B65: 0.6 | C65: 10 | D65: 0.05295383088 | L65: 64
A66: 10063 | B66: 0.8 | C66: 10 | D66: 0.07032930664 | L66: 65
A67: 10063 | B67: 1 | C67: 10 | D67: 0.08767720227 | L67: 66 | P67: =INDIRECT("D"&$I$2+$L67) -> 
A68: 10063 | B68: 1.25 | C68: 10 | D68: 0.1093827569 | L68: 67 | P68: =INDIRECT("D"&$I$2+$L68) -> 
A69: 10063 | B69: 1.5 | C69: 10 | D69: 0.1310607314 | L69: 68 | M69: =INDIRECT("A"&$I$2+L69) ->  | N69: =INDIRECT("B"&$I$2+$L69) ->  | O69: =INDIRECT("C"&$I$2+$L69) ->  | P69: =INDIRECT("D"&$I$2+$L69) -> 
A70: 10063 | B70: 2 | C70: 10 | D70: 0.1743615202 | L70: 69 | M70: =INDIRECT("A"&$I$2+L70) ->  | N70: =INDIRECT("B"&$I$2+$L70) ->  | O70: =INDIRECT("C"&$I$2+$L70) ->  | P70: =INDIRECT("D"&$I$2+$L70) -> 
A71: 10063 | B71: 3 | C71: 10 | D71: 0.2605218159 | L71: 70 | M71: =INDIRECT("A"&$I$2+L71) ->  | N71: =INDIRECT("B"&$I$2+$L71) ->  | O71: =INDIRECT("C"&$I$2+$L71) ->  | P71: =INDIRECT("D"&$I$2+$L71) -> 
A72: 10140 | B72: 0.1 | C72: 0.5 | D72: 0.1222643785
A73: 10140 | B73: 0.2 | C73: 0.5 | D73: 0.2297293902
A74: 10140 | B74: 0.4 | C74: 0.5 | D74: 0.4097339129
A75: 10140 | B75: 0.6 | C75: 0.5 | D75: 0.5516470263
A76: 10140 | B76: 0.8 | C76: 0.5 | D76: 0.6623281992
A77: 10140 | B77: 1 | C77: 0.5 | D77: 0.7478831126
A78: 10140 | B78: 1.25 | C78: 0.5 | D78: 0.8246438353
A79: 10140 | B79: 1.5 | C79: 0.5 | D79: 0.8793939546
A80: 10140 | B80: 2 | C80: 0.5 | D80: 0.9455513958
A81: 10140 | B81: 3 | C81: 0.5 | D81: 0.9874368703
A82: 10140 | B82: 0.1 | C82: 0.75 | D82: 0.09819342195
A83: 10140 | B83: 0.2 | C83: 0.75 | D83: 0.186612729
A84: 10140 | B84: 0.4 | C84: 0.75 | D84: 0.3411392246
A85: 10140 | B85: 0.6 | C85: 0.75 | D85: 0.4689565064
A86: 10140 | B86: 0.8 | C86: 0.75 | D86: 0.5727782105
A87: 10140 | B87: 1 | C87: 0.75 | D87: 0.6577049675
A88: 10140 | B88: 1.25 | C88: 0.75 | D88: 0.7438377849
A89: 10140 | B89: 1.5 | C89: 0.75 | D89: 0.8102716149
A90: 10140 | B90: 2 | C90: 0.75 | D90: 0.8996959723
A91: 10140 | B91: 3 | C91: 0.75 | D91: 0.9770094726
A92: 10140 | B92: 0.1 | C92: 1 | D92: 0.08196185834
A93: 10140 | B93: 0.2 | C93: 1 | D93: 0.1576421518
A94: 10140 | B94: 0.4 | C94: 1 | D94: 0.2929721852
A95: 10140 | B95: 0.6 | C95: 1 | D95: 0.4094575241
A96: 10140 | B96: 0.8 | C96: 1 | D96: 0.5064951381
A97: 10140 | B97: 1 | C97: 1 | D97: 0.5877032086
A98: 10140 | B98: 1.25 | C98: 1 | D98: 0.6738108998
A99: 10140 | B99: 1.5 | C99: 1 | D99: 0.7451694766
A100: 10140 | B100: 2 | C100: 1 | D100: 0.847759994
A101: 10140 | B101: 3 | C101: 1 | D101: 0.9596974798
A102: 10140 | B102: 0.1 | C102: 2 | D102: 0.04882032212
A103: 10140 | B103: 0.2 | C103: 2 | D103: 0.09565566974
A104: 10140 | B104: 0.4 | C104: 2 | D104: 0.1856830574
A105: 10140 | B105: 0.6 | C105: 2 | D105: 0.2699314053
A106: 10140 | B106: 0.8 | C106: 2 | D106: 0.3469685168
A107: 10140 | B107: 1 | C107: 2 | D107: 0.4157642152
A108: 10140 | B108: 1.25 | C108: 2 | D108: 0.4931782206
A109: 10140 | B109: 1.5 | C109: 2 | D109: 0.5605919747
A110: 10140 | B110: 2 | C110: 2 | D110: 0.6710470112
A111: 10140 | B111: 3 | C111: 2 | D111: 0.83052338
A112: 10140 | B112: 0.1 | C112: 3 | D112: 0.03447322797
A113: 10140 | B113: 0.2 | C113: 3 | D113: 0.06784090053
A114: 10140 | B114: 0.4 | C114: 3 | D114: 0.1331943014
A115: 10140 | B115: 0.6 | C115: 3 | D115: 0.1971908842
A116: 10140 | B116: 0.8 | C116: 3 | D116: 0.25915224
A117: 10140 | B117: 1 | C117: 3 | D117: 0.3181486972
A118: 10140 | B118: 1.25 | C118: 3 | D118: 0.3867685118
A119: 10140 | B119: 1.5 | C119: 3 | D119: 0.4492323928
A120: 10140 | B120: 2 | C120: 3 | D120: 0.5561948793
A121: 10140 | B121: 3 | C121: 3 | D121: 0.7166260459
A122: 10140 | B122: 0.1 | C122: 5 | D122: 0.02153320435
A123: 10140 | B123: 0.2 | C123: 5 | D123: 0.04223724214
A124: 10140 | B124: 0.4 | C124: 5 | D124: 0.0835950652
A125: 10140 | B125: 0.6 | C125: 5 | D125: 0.1249026357
A126: 10140 | B126: 0.8 | C126: 5 | D126: 0.1659338174
A127: 10140 | B127: 1 | C127: 5 | D127: 0.206562979
A128: 10140 | B128: 1.25 | C128: 5 | D128: 0.2565893615
A129: 10140 | B129: 1.5 | C129: 5 | D129: 0.3056609463
A130: 10140 | B130: 2 | C130: 5 | D130: 0.3996582829
A131: 10140 | B131: 3 | C131: 5 | D131: 0.5618482876
A132: 10140 | B132: 0.1 | C132: 10 | D132: 0.01130681675
A133: 10140 | B133: 0.2 | C133: 10 | D133: 0.02178446695
A134: 10140 | B134: 0.4 | C134: 10 | D134: 0.04281514611
A135: 10140 | B135: 0.6 | C135: 10 | D135: 0.06379557275
A136: 10140 | B136: 0.8 | C136: 10 | D136: 0.08482625192
A137: 10140 | B137: 1 | C137: 10 | D137: 0.1058820573
A138: 10140 | B138: 1.25 | C138: 10 | D138: 0.1322143772
A139: 10140 | B139: 1.5 | C139: 10 | D139: 0.1585718234
A140: 10140 | B140: 2 | C140: 10 | D140: 0.211311842
A141: 10140 | B141: 3 | C141: 10 | D141: 0.3166662479
A142: 10831 | B142: 0.1 | C142: 0.5 | D142: 0.1018385815
A143: 10831 | B143: 0.2 | C143: 0.5 | D143: 0.1943818844
A144: 10831 | B144: 0.4 | C144: 0.5 | D144: 0.3572335285
A145: 10831 | B145: 0.6 | C145: 0.5 | D145: 0.496171328
A146: 10831 | B146: 0.8 | C146: 0.5 | D146: 0.6112362311
A147: 10831 | B147: 1 | C147: 0.5 | D147: 0.701977806
A148: 10831 | B148: 1.25 | C148: 0.5 | D148: 0.7879693706
A149: 10831 | B149: 1.5 | C149: 0.5 | D149: 0.8509070063
A150: 10831 | B150: 2 | C150: 0.5 | D150: 0.9307972646
A151: 10831 | B151: 3 | C151: 0.5 | D151: 0.9853404856
A152: 10831 | B152: 0.1 | C152: 0.75 | D152: 0.08005405184
A153: 10831 | B153: 0.2 | C153: 0.75 | D153: 0.1553990418
A154: 10831 | B154: 0.4 | C154: 0.75 | D154: 0.2907743336
A155: 10831 | B155: 0.6 | C155: 0.75 | D155: 0.4099340731
A156: 10831 | B156: 0.8 | C156: 0.75 | D156: 0.5152123173
A157: 10831 | B157: 1 | C157: 0.75 | D157: 0.6042750092
A158: 10831 | B158: 1.25 | C158: 0.75 | D158: 0.6950984808
A159: 10831 | B159: 1.5 | C159: 0.75 | D159: 0.7683551042
A160: 10831 | B160: 2 | C160: 0.75 | D160: 0.8711764465
A161: 10831 | B161: 3 | C161: 0.75 | D161: 0.9673232054
A162: 10831 | B162: 0.1 | C162: 1 | D162: 0.06633634986
A163: 10831 | B163: 0.2 | C163: 1 | D163: 0.1295196757
A164: 10831 | B164: 0.4 | C164: 1 | D164: 0.2471233774
A165: 10831 | B165: 0.6 | C165: 1 | D165: 0.3519511895
A166: 10831 | B166: 0.8 | C166: 1 | D166: 0.4471151877
A167: 10831 | B167: 1 | C167: 1 | D167: 0.5325334753
A168: 10831 | B168: 1.25 | C168: 1 | D168: 0.6214323738
A169: 10831 | B169: 1.5 | C169: 1 | D169: 0.6952622743
A170: 10831 | B170: 2 | C170: 1 | D170: 0.8110232996
A171: 10831 | B171: 3 | C171: 1 | D171: 0.937021416
A172: 10831 | B172: 0.1 | C172: 2 | D172: 0.03963801646
A173: 10831 | B173: 0.2 | C173: 2 | D173: 0.07817042709
A174: 10831 | B174: 0.4 | C174: 2 | D174: 0.1529011916
A175: 10831 | B175: 0.6 | C175: 2 | D175: 0.224356087
A176: 10831 | B176: 0.8 | C176: 2 | D176: 0.291838991
A177: 10831 | B177: 1 | C177: 2 | D177: 0.3565783547
A178: 10831 | B178: 1.25 | C178: 2 | D178: 0.4329880021
A179: 10831 | B179: 1.5 | C179: 2 | D179: 0.5019040989
A180: 10831 | B180: 2 | C180: 2 | D180: 0.6191392654
A181: 10831 | B181: 3 | C181: 2 | D181: 0.7862495393
A182: 10831 | B182: 0.1 | C182: 3 | D182: 0.0282953196
A183: 10831 | B183: 0.2 | C183: 3 | D183: 0.05581262029
A184: 10831 | B184: 0.4 | C184: 3 | D184: 0.1101920478
A185: 10831 | B185: 0.6 | C185: 3 | D185: 0.163629663
A186: 10831 | B186: 0.8 | C186: 3 | D186: 0.2153064985
A187: 10831 | B187: 1 | C187: 3 | D187: 0.265181606
A188: 10831 | B188: 1.25 | C188: 3 | D188: 0.3252528561
A189: 10831 | B189: 1.5 | C189: 3 | D189: 0.3828672045
A190: 10831 | B190: 2 | C190: 3 | D190: 0.4895786413
A191: 10831 | B191: 3 | C191: 3 | D191: 0.666107039
A192: 10831 | B192: 0.1 | C192: 5 | D192: 0.01809917694
A193: 10831 | B193: 0.2 | C193: 5 | D193: 0.03550223169
A194: 10831 | B194: 0.4 | C194: 5 | D194: 0.07022644445
A195: 10831 | B195: 0.6 | C195: 5 | D195: 0.1048278121
A196: 10831 | B196: 0.8 | C196: 5 | D196: 0.1392653863
A197: 10831 | B197: 1 | C197: 5 | D197: 0.1736620122
A198: 10831 | B198: 1.25 | C198: 5 | D198: 0.2162483109
A199: 10831 | B199: 1.5 | C199: 5 | D199: 0.2578109005
A200: 10831 | B200: 2 | C200: 5 | D200: 0.3363089145
... 23811 more rows

Sheet Pollutant Concentrations (hidden)
A1: U.S. EPA Pollutant Group | B1: Pollutant of Concern | C1: Highway Runoff Mean Concentration | D1: Treatment BMPs Mean Effluent Concentrations
D2: Swales | E2: Dry Detention Basin | F2: Bioretention | G2: Sand Filter | H2: PFC Overlay
A3: Pathogens (colonies/100mL) | B3: Escherichia Coli (E. coli) | C3: 8740 | D3: 9000 | E3: 2540 | F3: 1540 | G3: -- | H3: --
B4: Fecal Coliform | C4: 5970 | D4: 36000 | E4: 10000 | F4: -- | G4: 5900 | H4: --
A5: Metals (µg/L) | B5: Total Copper | C5: 47 | D5: 10.1 | E5: 10.6 | F5: 9.72 | G5: 11 | H5: 13.1
B6: Total Lead | C6: 44 | D6: 6.63 | E6: 10.8 | F6: 4.68 | G6: 4.47 | H6: 1.2
B7: Total Zinc | C7: 245 | D7: 36.2 | E7: 60.6 | F7: 27.7 | G7: 40.7 | H7: 26.1
A8: Nutrients (mg/L) | B8: Total Nitrogen | C8: 3.31 | D8: 1.05 | E8: 2.44 | F8: 1.74 | G8: 1.52 | H8: 1.35
B9: Total Phosphorus | C9: 0.44 | D9: 0.277 | E9: 0.373 | F9: 0.47 | G9: 0.143 | H9: 0.066
A10: Sediment (mg/L) | B10: Total Suspended Solids | C10: 151 | D10: 27 | E10: 42.3 | F10: 17.7 | G10: 22.4 | H10: 11.5
B14: Parameter | H14: Bootstrapped Means | I14: Influent Concentration | J14: Calculated Effluent Concentration | K14: Actual Effluent Concentration | L14: Bias Correction Factor
A15: Pollutant | B15: A | C15: B | D15: C | E15: D | F15: E | G15: DL
A16: Total Suspended Solids (mg/L) | B16: 0 | C16: 0 | D16: 0 | E16: 2.492547 | F16: 0.371171 | G16: 0 | H16: 138.84 | I16: ='Project Options'!C18 -> 138.84 | J16: =B16+C16*I16+D16*LN(I16)+E16*(I16^F16)+L16 -> 16.90738034 | K16: =MIN(I16,MAX(J16,G16)) -> 16.90738034 | L16: 1.351928
A17: Total Zinc (ug/L) | B17: 0 | C17: 0 | D17: 0 | E17: 1.108211 | F17: 0.676458 | G17: 0.01 | H17: 189.93 | I17: ='Project Options'!C19 -> 189.93 | J17: =B17+C17*I17+D17*LN(I17)+E17*(I17^F17)+L17 -> 39.80502301 | K17: =MIN(I17,MAX(J17,G17)) -> 39.80502301 | L17: 1.257604
A18: Total Lead (ug/L) | B18: 0 | C18: 1 | D18: 0 | E18: 0 | F18: 0 | G18: 1 | H18: 44.08 | I18: ='Project Options'!C20 -> 44.08 | J18: 44.08 | K18: 44.08
A19: Total Copper (ug/L) | B19: 0 | C19: 0 | D19: 0 | E19: 2.768639 | F19: 0.442507 | G19: 0.5 | H19: 41.76 | I19: ='Project Options'!C21 -> 41.76 | J19: 15.6986591 | K19: 15.6986591 | L19: 1.262083334
A20: Total Nitrogen (mg/L) | B20: TN = TKN + NO3 | H20: =H22+H23 -> 3.38 | I20: ='Project Options'!C22 -> 3.38 | J20: =J22+J23 -> 3.025059626 | K20: =MIN(I20,MAX(J20,G20)) -> 3.025059626
A21: Total Phosphorus (mg/L) | B21: 0 | C21: 1 | D21: 0 | E21: 0 | F21: 0 | G21: 0.01 | H21: 0.4420194995 | I21: ='Project Options'!C23 -> 0.4420194995 | J21: =B21+C21*I21+D21*LN(I21)+E21*(I21^F21)+L21 -> 0.4420194995 | K21: =MAX(K24,MIN(I21,MAX(J21,G21))) -> 0.4420194995
A22: Nitrate [NO3] (mg/L) | B22: 0 | C22: 1 | D22: 0 | E22: 0 | F22: 0 | G22: 0 | H22: 1.06 | I22: ='Project Options'!C24 -> 1.06 | J22: =B22+C22*I22+D22*LN(I22)+E22*(I22^F22)+L22 -> 1.06 | K22: 1.06
A23: Total Kjeldahl Nitrogen [TKN] (mg/L) | B23: 0.828424 | C23: 0 | D23: 0.502678 | E23: 0 | F23: 0 | G23: 0.037 | H23: 2.32 | I23: ='Project Options'!C25 -> 2.32 | J23: 1.965059626 | K23: 1.965059626 | L23: 0.7135983161
A24: Dissolved Phosphorus (mg/L) | B24: -0.82485 | C24: 0 | D24: 0 | E24: 0 | F24: 0 | G24: 0.03 | H24: 0.25 | I24: ='Project Options'!C26 -> 0.25 | J24: =B24+C24*I24+D24*LN(I24)+E24*(I24^F24)+L24 -> -0.82485 | K24: =IF(I21=J21,I24,MIN(I24,MAX(J24,G24))) -> 0.25
A25: Fecal Coliform (col/100mL) | B25: 0 | C25: 0 | D25: 0 | E25: 0.014972 | F25: 1.058941 | G25: 100 | H25: 8699.89 | I25: ='Project Options'!C27 -> 8699.89 | J25: 229.6193564 | K25: 229.6193564 | L25: 7.292227
A26: Escherichia Coli [E. Coli] (col/100mL) | B26: 0 | C26: 0 | D26: 0 | E26: 2.401974 | F26: 0.514733 | G26: 1 | H26: 6025.22 | I26: ='Project Options'!C28 -> 6025.22 | J26: 236.4393307 | K26: 236.4393307 | L26: 24.48363207

Sheet Whole Life Costs (hidden)
A1: Bioretention
I2: 50-year Total | J2: Per Year | L2: Design Life Maintenance NPV
H3: Capital | I3: =I12 -> 107343.7576 | J3: =I3/50 -> 2146.875152 | L3: =VLOOKUP('Project Options'!B35,'Whole Life Costs'!A12:K62,11,FALSE)-'Whole Life Costs'!I12 -> 46680
H4: O&M | I4: =I11-I12 -> 128600 | J4: =I4/50 -> 2572
A6: Whole Life Costs
A8: Year | B8: Discount Factor | C8: Cost Escalation | D8: Capital & Assoc. Costs | E8: Regular Maint. Costs | F8: Base Corrective Maint. | G8: Escalated Maint. Cost | H8: Total Costs | I8: Present Value of Costs | J8: Cumulative Costs
J10: Cash | K10: Present Value
A11: Cash Sum ($) | H11: =SUM(H12:H62) -> 706637.5862 | I11: =SUM(I12:I62) -> 235943.7576
A12: 0 | B12: =1/((1+Discount/100)^A12) -> 1 | D12: ='Whole Life Costs Summary'!B14 -> 107343.7576 | H12: =D12+E12+G12 -> 107343.7576 | I12: =H12*$B12 -> 107343.7576 | J12: =H12 -> 107343.7576 | K12: =I12 -> 107343.7576
A13: =A12+1 -> 1 | B13: =1/((1+Discount/100)^A13) -> 0.9523809524 | C13: =(1+Escalation/100)^A13 -> 1.05 | D13: 0 | E13: ='Whole Life Costs Summary'!D23 -> 1660 | F13: =IF('Whole Life Costs Summary'!$B$27=0,0,IF($A13/'Whole Life Costs Summary'!$B$27=INT($A13/'Whole Life Costs Summary'!$B$27),'Whole Life Costs Summary'!$C$27,0)) + IF('Whole Life Costs Summary'!$B$28=0,0,IF($A13/'Whole Life Costs Summary'!$B$28=INT($A13/'Whole Life Costs Summary'!$B$28),'Whole Life Costs Summary'!$C$28,0)) + IF('Whole Life Costs Summary'!$B$29=0,0,IF($A13/'Whole Life Costs Summary'!$B$29=INT($A13/'Whole Life Costs Summary'!$B$29),'Whole Life Costs Summary'!$C$29,0)) -> 0 | G13: =(E13+F13)*C13 -> 1743 | H13: =G13 -> 1743 | I13: =H13*$B13 -> 1660 | J13: =J12+H13 -> 109086.7576 | K13: =K12+I13 -> 109003.7576
A14: =A13+1 -> 2 | B14: 0.9070294785 | C14: 1.1025 | D14: 0 | E14: =$E$13 -> 1660 | F14: =IF('Whole Life Costs Summary'!$B$27=0,0,IF($A14/'Whole Life Costs Summary'!$B$27=INT($A14/'Whole Life Costs Summary'!$B$27),'Whole Life Costs Summary'!$C$27,0)) + IF('Whole Life Costs Summary'!$B$28=0,0,IF($A14/'Whole Life Costs Summary'!$B$28=INT($A14/'Whole Life Costs Summary'!$B$28),'Whole Life Costs Summary'!$C$28,0)) + IF('Whole Life Costs Summary'!$B$29=0,0,IF($A14/'Whole Life Costs Summary'!$B$29=INT($A14/'Whole Life Costs Summary'!$B$29),'Whole Life Costs Summary'!$C$29,0)) -> 0 | G14: =(E14+F14)*C14 -> 1830.15 | H14: =G14 -> 1830.15 | I14: 1660 | J14: =J13+H14 -> 110916.9076 | K14: 110663.7576
A15: 3 | B15: 0.8638375985 | C15: 1.157625 | D15: 0 | E15: 1660 | F15: =IF('Whole Life Costs Summary'!$B$27=0,0,IF($A15/'Whole Life Costs Summary'!$B$27=INT($A15/'Whole Life Costs Summary'!$B$27),'Whole Life Costs Summary'!$C$27,0)) + IF('Whole Life Costs Summary'!$B$28=0,0,IF($A15/'Whole Life Costs Summary'!$B$28=INT($A15/'Whole Life Costs Summary'!$B$28),'Whole Life Costs Summary'!$C$28,0)) + IF('Whole Life Costs Summary'!$B$29=0,0,IF($A15/'Whole Life Costs Summary'!$B$29=INT($A15/'Whole Life Costs Summary'!$B$29),'Whole Life Costs Summary'!$C$29,0)) -> 0 | G15: 1921.6575 | H15: 1921.6575 | I15: 1660 | J15: 112838.5651 | K15: 112323.7576
A16: 4 | B16: 0.8227024748 | C16: 1.21550625 | D16: 0 | E16: 1660 | F16: =IF('Whole Life Costs Summary'!$B$27=0,0,IF($A16/'Whole Life Costs Summary'!$B$27=INT($A16/'Whole Life Costs Summary'!$B$27),'Whole Life Costs Summary'!$C$27,0)) + IF('Whole Life Costs Summary'!$B$28=0,0,IF($A16/'Whole Life Costs Summary'!$B$28=INT($A16/'Whole Life Costs Summary'!$B$28),'Whole Life Costs Summary'!$C$28,0)) + IF('Whole Life Costs Summary'!$B$29=0,0,IF($A16/'Whole Life Costs Summary'!$B$29=INT($A16/'Whole Life Costs Summary'!$B$29),'Whole Life Costs Summary'!$C$29,0)) -> 0 | G16: 2017.740375 | H16: 2017.740375 | I16: 1660 | J16: 114856.3055 | K16: 113983.7576
A17: 5 | B17: 0.7835261665 | C17: 1.276281563 | D17: 0 | E17: 1660 | F17: =IF('Whole Life Costs Summary'!$B$27=0,0,IF($A17/'Whole Life Costs Summary'!$B$27=INT($A17/'Whole Life Costs Summary'!$B$27),'Whole Life Costs Summary'!$C$27,0)) + IF('Whole Life Costs Summary'!$B$28=0,0,IF($A17/'Whole Life Costs Summary'!$B$28=INT($A17/'Whole Life Costs Summary'!$B$28),'Whole Life Costs Summary'!$C$28,0)) + IF('Whole Life Costs Summary'!$B$29=0,0,IF($A17/'Whole Life Costs Summary'!$B$29=INT($A17/'Whole Life Costs Summary'!$B$29),'Whole Life Costs Summary'!$C$29,0)) -> 0 | G17: 2118.627394 | H17: 2118.627394 | I17: 1660 | J17: 116974.9329 | K17: 115643.7576
A18: 6 | B18: 0.7462153966 | C18: 1.340095641 | D18: 0 | E18: 1660 | F18: =IF('Whole Life Costs Summary'!$B$27=0,0,IF($A18/'Whole Life Costs Summary'!$B$27=INT($A18/'Whole Life Costs Summary'!$B$27),'Whole Life Costs Summary'!$C$27,0)) + IF('Whole Life Costs Summary'!$B$28=0,0,IF($A18/'Whole Life Costs Summary'!$B$28=INT($A18/'Whole Life Costs Summary'!$B$28),'Whole Life Costs Summary'!$C$28,0)) + IF('Whole Life Costs Summary'!$B$29=0,0,IF($A18/'Whole Life Costs Summary'!$B$29=INT($A18/'Whole Life Costs Summary'!$B$29),'Whole Life Costs Summary'!$C$29,0)) -> 0 | G18: 2224.558763 | H18: 2224.558763 | I18: 1660 | J18: 119199.4916 | K18: 117303.7576
A19: 7 | B19: 0.7106813301 | C19: 1.407100423 | D19: 0 | E19: 1660 | F19: =IF('Whole Life Costs Summary'!$B$27=0,0,IF($A19/'Whole Life Costs Summary'!$B$27=INT($A19/'Whole Life Costs Summary'!$B$27),'Whole Life Costs Summary'!$C$27,0)) + IF('Whole Life Costs Summary'!$B$28=0,0,IF($A19/'Whole Life Costs Summary'!$B$28=INT($A19/'Whole Life Costs Summary'!$B$28),'Whole Life Costs Summary'!$C$28,0)) + IF('Whole Life Costs Summary'!$B$29=0,0,IF($A19/'Whole Life Costs Summary'!$B$29=INT($A19/'Whole Life Costs Summary'!$B$29),'Whole Life Costs Summary'!$C$29,0)) -> 0 | G19: 2335.786702 | H19: 2335.786702 | I19: =H19*$B19 -> 1660 | J19: 121535.2783 | K19: 118963.7576
A20: 8 | B20: 0.676839362 | C20: 1.477455444 | D20: 0 | E20: 1660 | F20: =IF('Whole Life Costs Summary'!$B$27=0,0,IF($A20/'Whole Life Costs Summary'!$B$27=INT($A20/'Whole Life Costs Summary'!$B$27),'Whole Life Costs Summary'!$C$27,0)) + IF('Whole Life Costs Summary'!$B$28=0,0,IF($A20/'Whole Life Costs Summary'!$B$28=INT($A20/'Whole Life Costs Summary'!$B$28),'Whole Life Costs Summary'!$C$28,0)) + IF('Whole Life Costs Summary'!$B$29=0,0,IF($A20/'Whole Life Costs Summary'!$B$29=INT($A20/'Whole Life Costs Summary'!$B$29),'Whole Life Costs Summary'!$C$29,0)) -> 6740 | G20: 12410.62573 | H20: 12410.62573 | I20: 8400 | J20: 133945.9041 | K20: 127363.7576
A21: 9 | B21: 0.6446089162 | C21: 1.551328216 | D21: 0 | E21: 1660 | F21: =IF('Whole Life Costs Summary'!$B$27=0,0,IF($A21/'Whole Life Costs Summary'!$B$27=INT($A21/'Whole Life Costs Summary'!$B$27),'Whole Life Costs Summary'!$C$27,0)) + IF('Whole Life Costs Summary'!$B$28=0,0,IF($A21/'Whole Life Costs Summary'!$B$28=INT($A21/'Whole Life Costs Summary'!$B$28),'Whole Life Costs Summary'!$C$28,0)) + IF('Whole Life Costs Summary'!$B$29=0,0,IF($A21/'Whole Life Costs Summary'!$B$29=INT($A21/'Whole Life Costs Summary'!$B$29),'Whole Life Costs Summary'!$C$29,0)) -> 0 | G21: 2575.204839 | H21: 2575.204839 | I21: 1660 | J21: 136521.1089 | K21: 129023.7576
A22: 10 | B22: 0.6139132535 | C22: 1.628894627 | D22: 0 | E22: 1660 | F22: =IF('Whole Life Costs Summary'!$B$27=0,0,IF($A22/'Whole Life Costs Summary'!$B$27=INT($A22/'Whole Life Costs Summary'!$B$27),'Whole Life Costs Summary'!$C$27,0)) + IF('Whole Life Costs Summary'!$B$28=0,0,IF($A22/'Whole Life Costs Summary'!$B$28=INT($A22/'Whole Life Costs Summary'!$B$28),'Whole Life Costs Summary'!$C$28,0)) + IF('Whole Life Costs Summary'!$B$29=0,0,IF($A22/'Whole Life Costs Summary'!$B$29=INT($A22/'Whole Life Costs Summary'!$B$29),'Whole Life Costs Summary'!$C$29,0)) -> 0 | G22: 2703.96508 | H22: 2703.96508 | I22: 1660 | J22: 139225.074 | K22: 130683.7576
A23: 11 | B23: 0.5846792891 | C23: 1.710339358 | D23: 0 | E23: 1660 | F23: =IF('Whole Life Costs Summary'!$B$27=0,0,IF($A23/'Whole Life Costs Summary'!$B$27=INT($A23/'Whole Life Costs Summary'!$B$27),'Whole Life Costs Summary'!$C$27,0)) + IF('Whole Life Costs Summary'!$B$28=0,0,IF($A23/'Whole Life Costs Summary'!$B$28=INT($A23/'Whole Life Costs Summary'!$B$28),'Whole Life Costs Summary'!$C$28,0)) + IF('Whole Life Costs Summary'!$B$29=0,0,IF($A23/'Whole Life Costs Summary'!$B$29=INT($A23/'Whole Life Costs Summary'!$B$29),'Whole Life Costs Summary'!$C$29,0)) -> 0 | G23: 2839.163334 | H23: 2839.163334 | I23: 1660 | J23: 142064.2373 | K23: 132343.7576
A24: 12 | B24: 0.5568374182 | C24: 1.795856326 | D24: 0 | E24: 1660 | F24: =IF('Whole Life Costs Summary'!$B$27=0,0,IF($A24/'Whole Life Costs Summary'!$B$27=INT($A24/'Whole Life Costs Summary'!$B$27),'Whole Life Costs Summary'!$C$27,0)) + IF('Whole Life Costs Summary'!$B$28=0,0,IF($A24/'Whole Life Costs Summary'!$B$28=INT($A24/'Whole Life Costs Summary'!$B$28),'Whole Life Costs Summary'!$C$28,0)) + IF('Whole Life Costs Summary'!$B$29=0,0,IF($A24/'Whole Life Costs Summary'!$B$29=INT($A24/'Whole Life Costs Summary'!$B$29),'Whole Life Costs Summary'!$C$29,0)) -> 0 | G24: 2981.121501 | H24: 2981.121501 | I24: 1660 | J24: 145045.3588 | K24: 134003.7576
A25: 13 | B25: 0.5303213506 | C25: 1.885649142 | D25: 0 | E25: 1660 | F25: =IF('Whole Life Costs Summary'!$B$27=0,0,IF($A25/'Whole Life Costs Summary'!$B$27=INT($A25/'Whole Life Costs Summary'!$B$27),'Whole Life Costs Summary'!$C$27,0)) + IF('Whole Life Costs Summary'!$B$28=0,0,IF($A25/'Whole Life Costs Summary'!$B$28=INT($A25/'Whole Life Costs Summary'!$B$28),'Whole Life Costs Summary'!$C$28,0)) + IF('Whole Life Costs Summary'!$B$29=0,0,IF($A25/'Whole Life Costs Summary'!$B$29=INT($A25/'Whole Life Costs Summary'!$B$29),'Whole Life Costs Summary'!$C$29,0)) -> 0 | G25: 3130.177576 | H25: 3130.177576 | I25: 1660 | J25: 148175.5364 | K25: 135663.7576
A26: 14 | B26: 0.505067953 | C26: 1.979931599 | D26: 0 | E26: 1660 | F26: =IF('Whole Life Costs Summary'!$B$27=0,0,IF($A26/'Whole Life Costs Summary'!$B$27=INT($A26/'Whole Life Costs Summary'!$B$27),'Whole Life Costs Summary'!$C$27,0)) + IF('Whole Life Costs Summary'!$B$28=0,0,IF($A26/'Whole Life Costs Summary'!$B$28=INT($A26/'Whole Life Costs Summary'!$B$28),'Whole Life Costs Summary'!$C$28,0)) + IF('Whole Life Costs Summary'!$B$29=0,0,IF($A26/'Whole Life Costs Summary'!$B$29=INT($A26/'Whole Life Costs Summary'!$B$29),'Whole Life Costs Summary'!$C$29,0)) -> 0 | G26: 3286.686455 | H26: 3286.686455 | I26: 1660 | J26: 151462.2228 | K26: 137323.7576
A27: 15 | B27: 0.4810170981 | C27: 2.078928179 | D27: 0 | E27: 1660 | F27: =IF('Whole Life Costs Summary'!$B$27=0,0,IF($A27/'Whole Life Costs Summary'!$B$27=INT($A27/'Whole Life Costs Summary'!$B$27),'Whole Life Costs Summary'!$C$27,0)) + IF('Whole Life Costs Summary'!$B$28=0,0,IF($A27/'Whole Life Costs Summary'!$B$28=INT($A27/'Whole Life Costs Summary'!$B$28),'Whole Life Costs Summary'!$C$28,0)) + IF('Whole Life Costs Summary'!$B$29=0,0,IF($A27/'Whole Life Costs Summary'!$B$29=INT($A27/'Whole Life Costs Summary'!$B$29),'Whole Life Costs Summary'!$C$29,0)) -> 0 | G27: 3451.020778 | H27: 3451.020778 | I27: 1660 | J27: 154913.2436 | K27: 138983.7576
A28: 16 | B28: 0.458111522 | C28: 2.182874588 | D28: 0 | E28: 1660 | F28: =IF('Whole Life Costs Summary'!$B$27=0,0,IF($A28/'Whole Life Costs Summary'!$B$27=INT($A28/'Whole Life Costs Summary'!$B$27),'Whole Life Costs Summary'!$C$27,0)) + IF('Whole Life Costs Summary'!$B$28=0,0,IF($A28/'Whole Life Costs Summary'!$B$28=INT($A28/'Whole Life Costs Summary'!$B$28),'Whole Life Costs Summary'!$C$28,0)) + IF('Whole Life Costs Summary'!$B$29=0,0,IF($A28/'Whole Life Costs Summary'!$B$29=INT($A28/'Whole Life Costs Summary'!$B$29),'Whole Life Costs Summary'!$C$29,0)) -> 6740 | G28: 18336.14654 | H28: 18336.14654 | I28: 8400 | J28: 173249.3902 | K28: 147383.7576
A29: 17 | B29: 0.4362966876 | C29: 2.292018318 | D29: 0 | E29: 1660 | F29: =IF('Whole Life Costs Summary'!$B$27=0,0,IF($A29/'Whole Life Costs Summary'!$B$27=INT($A29/'Whole Life Costs Summary'!$B$27),'Whole Life Costs Summary'!$C$27,0)) + IF('Whole Life Costs Summary'!$B$28=0,0,IF($A29/'Whole Life Costs Summary'!$B$28=INT($A29/'Whole Life Costs Summary'!$B$28),'Whole Life Costs Summary'!$C$28,0)) + IF('Whole Life Costs Summary'!$B$29=0,0,IF($A29/'Whole Life Costs Summary'!$B$29=INT($A29/'Whole Life Costs Summary'!$B$29),'Whole Life Costs Summary'!$C$29,0)) -> 0 | G29: 3804.750408 | H29: 3804.750408 | I29: 1660 | J29: 177054.1406 | K29: 149043.7576
A30: 18 | B30: 0.4155206549 | C30: 2.406619234 | D30: 0 | E30: 1660 | F30: =IF('Whole Life Costs Summary'!$B$27=0,0,IF($A30/'Whole Life Costs Summary'!$B$27=INT($A30/'Whole Life Costs Summary'!$B$27),'Whole Life Costs Summary'!$C$27,0)) + IF('Whole Life Costs Summary'!$B$28=0,0,IF($A30/'Whole Life Costs Summary'!$B$28=INT($A30/'Whole Life Costs Summary'!$B$28),'Whole Life Costs Summary'!$C$28,0)) + IF('Whole Life Costs Summary'!$B$29=0,0,IF($A30/'Whole Life Costs Summary'!$B$29=INT($A30/'Whole Life Costs Summary'!$B$29),'Whole Life Costs Summary'!$C$29,0)) -> 0 | G30: 3994.987928 | H30: 3994.987928 | I30: 1660 | J30: =J29+H30 -> 181049.1285 | K30: 150703.7576
A31: 19 | B31: 0.395733957 | C31: 2.526950195 | D31: 0 | E31: 1660 | F31: =IF('Whole Life Costs Summary'!$B$27=0,0,IF($A31/'Whole Life Costs Summary'!$B$27=INT($A31/'Whole Life Costs Summary'!$B$27),'Whole Life Costs Summary'!$C$27,0)) + IF('Whole Life Costs Summary'!$B$28=0,0,IF($A31/'Whole Life Costs Summary'!$B$28=INT($A31/'Whole Life Costs Summary'!$B$28),'Whole Life Costs Summary'!$C$28,0)) + IF('Whole Life Costs Summary'!$B$29=0,0,IF($A31/'Whole Life Costs Summary'!$B$29=INT($A31/'Whole Life Costs Summary'!$B$29),'Whole Life Costs Summary'!$C$29,0)) -> 0 | G31: 4194.737324 | H31: 4194.737324 | I31: 1660 | J31: 185243.8658 | K31: 152363.7576
A32: 20 | B32: 0.3768894829 | C32: 2.653297705 | D32: 0 | E32: 1660 | F32: =IF('Whole Life Costs Summary'!$B$27=0,0,IF($A32/'Whole Life Costs Summary'!$B$27=INT($A32/'Whole Life Costs Summary'!$B$27),'Whole Life Costs Summary'!$C$27,0)) + IF('Whole Life Costs Summary'!$B$28=0,0,IF($A32/'Whole Life Costs Summary'!$B$28=INT($A32/'Whole Life Costs Summary'!$B$28),'Whole Life Costs Summary'!$C$28,0)) + IF('Whole Life Costs Summary'!$B$29=0,0,IF($A32/'Whole Life Costs Summary'!$B$29=INT($A32/'Whole Life Costs Summary'!$B$29),'Whole Life Costs Summary'!$C$29,0)) -> 0 | G32: 4404.474191 | H32: 4404.474191 | I32: 1660 | J32: 189648.34 | K32: 154023.7576
A33: 21 | B33: 0.3589423646 | C33: 2.78596259 | D33: 0 | E33: 1660 | F33: =IF('Whole Life Costs Summary'!$B$27=0,0,IF($A33/'Whole Life Costs Summary'!$B$27=INT($A33/'Whole Life Costs Summary'!$B$27),'Whole Life Costs Summary'!$C$27,0)) + IF('Whole Life Costs Summary'!$B$28=0,0,IF($A33/'Whole Life Costs Summary'!$B$28=INT($A33/'Whole Life Costs Summary'!$B$28),'Whole Life Costs Summary'!$C$28,0)) + IF('Whole Life Costs Summary'!$B$29=0,0,IF($A33/'Whole Life Costs Summary'!$B$29=INT($A33/'Whole Life Costs Summary'!$B$29),'Whole Life Costs Summary'!$C$29,0)) -> 0 | G33: 4624.6979 | H33: 4624.6979 | I33: 1660 | J33: 194273.0379 | K33: 155683.7576
A34: 22 | B34: 0.3418498711 | C34: 2.92526072 | D34: 0 | E34: 1660 | F34: =IF('Whole Life Costs Summary'!$B$27=0,0,IF($A34/'Whole Life Costs Summary'!$B$27=INT($A34/'Whole Life Costs Summary'!$B$27),'Whole Life Costs Summary'!$C$27,0)) + IF('Whole Life Costs Summary'!$B$28=0,0,IF($A34/'Whole Life Costs Summary'!$B$28=INT($A34/'Whole Life Costs Summary'!$B$28),'Whole Life Costs Summary'!$C$28,0)) + IF('Whole Life Costs Summary'!$B$29=0,0,IF($A34/'Whole Life Costs Summary'!$B$29=INT($A34/'Whole Life Costs Summary'!$B$29),'Whole Life Costs Summary'!$C$29,0)) -> 0 | G34: 4855.932795 | H34: 4855.932795 | I34: 1660 | J34: 199128.9707 | K34: 157343.7576
A35: 23 | B35: 0.3255713058 | C35: 3.071523756 | D35: 0 | E35: 1660 | F35: =IF('Whole Life Costs Summary'!$B$27=0,0,IF($A35/'Whole Life Costs Summary'!$B$27=INT($A35/'Whole Life Costs Summary'!$B$27),'Whole Life Costs Summary'!$C$27,0)) + IF('Whole Life Costs Summary'!$B$28=0,0,IF($A35/'Whole Life Costs Summary'!$B$28=INT($A35/'Whole Life Costs Summary'!$B$28),'Whole Life Costs Summary'!$C$28,0)) + IF('Whole Life Costs Summary'!$B$29=0,0,IF($A35/'Whole Life Costs Summary'!$B$29=INT($A35/'Whole Life Costs Summary'!$B$29),'Whole Life Costs Summary'!$C$29,0)) -> 0 | G35: 5098.729435 | H35: 5098.729435 | I35: 1660 | J35: 204227.7001 | K35: 159003.7576
A36: 24 | B36: 0.3100679103 | C36: 3.225099944 | D36: 0 | E36: 1660 | F36: =IF('Whole Life Costs Summary'!$B$27=0,0,IF($A36/'Whole Life Costs Summary'!$B$27=INT($A36/'Whole Life Costs Summary'!$B$27),'Whole Life Costs Summary'!$C$27,0)) + IF('Whole Life Costs Summary'!$B$28=0,0,IF($A36/'Whole Life Costs Summary'!$B$28=INT($A36/'Whole Life Costs Summary'!$B$28),'Whole Life Costs Summary'!$C$28,0)) + IF('Whole Life Costs Summary'!$B$29=0,0,IF($A36/'Whole Life Costs Summary'!$B$29=INT($A36/'Whole Life Costs Summary'!$B$29),'Whole Life Costs Summary'!$C$29,0)) -> 6740 | G36: 27090.83953 | H36: 27090.83953 | I36: 8400 | J36: 231318.5397 | K36: 167403.7576
A37: 25 | B37: 0.2953027717 | C37: 3.386354941 | D37: 0 | E37: 1660 | F37: =IF('Whole Life Costs Summary'!$B$27=0,0,IF($A37/'Whole Life Costs Summary'!$B$27=INT($A37/'Whole Life Costs Summary'!$B$27),'Whole Life Costs Summary'!$C$27,0)) + IF('Whole Life Costs Summary'!$B$28=0,0,IF($A37/'Whole Life Costs Summary'!$B$28=INT($A37/'Whole Life Costs Summary'!$B$28),'Whole Life Costs Summary'!$C$28,0)) + IF('Whole Life Costs Summary'!$B$29=0,0,IF($A37/'Whole Life Costs Summary'!$B$29=INT($A37/'Whole Life Costs Summary'!$B$29),'Whole Life Costs Summary'!$C$29,0)) -> 2580 | G37: 14358.14495 | H37: 14358.14495 | I37: 4240 | J37: 245676.6846 | K37: 171643.7576
A38: 26 | B38: 0.281240735 | C38: 3.555672688 | D38: 0 | E38: 1660 | F38: =IF('Whole Life Costs Summary'!$B$27=0,0,IF($A38/'Whole Life Costs Summary'!$B$27=INT($A38/'Whole Life Costs Summary'!$B$27),'Whole Life Costs Summary'!$C$27,0)) + IF('Whole Life Costs Summary'!$B$28=0,0,IF($A38/'Whole Life Costs Summary'!$B$28=INT($A38/'Whole Life Costs Summary'!$B$28),'Whole Life Costs Summary'!$C$28,0)) + IF('Whole Life Costs Summary'!$B$29=0,0,IF($A38/'Whole Life Costs Summary'!$B$29=INT($A38/'Whole Life Costs Summary'!$B$29),'Whole Life Costs Summary'!$C$29,0)) -> 0 | G38: 5902.416662 | H38: 5902.416662 | I38: 1660 | J38: 251579.1013 | K38: 173303.7576
A39: 27 | B39: 0.267848319 | C39: 3.733456322 | D39: 0 | E39: 1660 | F39: =IF('Whole Life Costs Summary'!$B$27=0,0,IF($A39/'Whole Life Costs Summary'!$B$27=INT($A39/'Whole Life Costs Summary'!$B$27),'Whole Life Costs Summary'!$C$27,0)) + IF('Whole Life Costs Summary'!$B$28=0,0,IF($A39/'Whole Life Costs Summary'!$B$28=INT($A39/'Whole Life Costs Summary'!$B$28),'Whole Life Costs Summary'!$C$28,0)) + IF('Whole Life Costs Summary'!$B$29=0,0,IF($A39/'Whole Life Costs Summary'!$B$29=INT($A39/'Whole Life Costs Summary'!$B$29),'Whole Life Costs Summary'!$C$29,0)) -> 0 | G39: 6197.537495 | H39: 6197.537495 | I39: 1660 | J39: 257776.6388 | K39: 174963.7576
A40: 28 | B40: 0.2550936371 | C40: 3.920129138 | D40: 0 | E40: 1660 | F40: =IF('Whole Life Costs Summary'!$B$27=0,0,IF($A40/'Whole Life Costs Summary'!$B$27=INT($A40/'Whole Life Costs Summary'!$B$27),'Whole Life Costs Summary'!$C$27,0)) + IF('Whole Life Costs Summary'!$B$28=0,0,IF($A40/'Whole Life Costs Summary'!$B$28=INT($A40/'Whole Life Costs Summary'!$B$28),'Whole Life Costs Summary'!$C$28,0)) + IF('Whole Life Costs Summary'!$B$29=0,0,IF($A40/'Whole Life Costs Summary'!$B$29=INT($A40/'Whole Life Costs Summary'!$B$29),'Whole Life Costs Summary'!$C$29,0)) -> 0 | G40: 6507.41437 | H40: 6507.41437 | I40: 1660 | J40: 264284.0531 | K40: 176623.7576
A41: 29 | B41: 0.2429463211 | C41: 4.116135595 | D41: 0 | E41: 1660 | F41: =IF('Whole Life Costs Summary'!$B$27=0,0,IF($A41/'Whole Life Costs Summary'!$B$27=INT($A41/'Whole Life Costs Summary'!$B$27),'Whole Life Costs Summary'!$C$27,0)) + IF('Whole Life Costs Summary'!$B$28=0,0,IF($A41/'Whole Life Costs Summary'!$B$28=INT($A41/'Whole Life Costs Summary'!$B$28),'Whole Life Costs Summary'!$C$28,0)) + IF('Whole Life Costs Summary'!$B$29=0,0,IF($A41/'Whole Life Costs Summary'!$B$29=INT($A41/'Whole Life Costs Summary'!$B$29),'Whole Life Costs Summary'!$C$29,0)) -> 0 | G41: 6832.785088 | H41: 6832.785088 | I41: 1660 | J41: 271116.8382 | K41: 178283.7576
A42: 30 | B42: 0.2313774487 | C42: 4.321942375 | D42: 0 | E42: 1660 | F42: =IF('Whole Life Costs Summary'!$B$27=0,0,IF($A42/'Whole Life Costs Summary'!$B$27=INT($A42/'Whole Life Costs Summary'!$B$27),'Whole Life Costs Summary'!$C$27,0)) + IF('Whole Life Costs Summary'!$B$28=0,0,IF($A42/'Whole Life Costs Summary'!$B$28=INT($A42/'Whole Life Costs Summary'!$B$28),'Whole Life Costs Summary'!$C$28,0)) + IF('Whole Life Costs Summary'!$B$29=0,0,IF($A42/'Whole Life Costs Summary'!$B$29=INT($A42/'Whole Life Costs Summary'!$B$29),'Whole Life Costs Summary'!$C$29,0)) -> 0 | G42: 7174.424343 | H42: 7174.424343 | I42: 1660 | J42: 278291.2626 | K42: 179943.7576
A43: 31 | B43: 0.2203594749 | C43: 4.538039494 | D43: 0 | E43: 1660 | F43: =IF('Whole Life Costs Summary'!$B$27=0,0,IF($A43/'Whole Life Costs Summary'!$B$27=INT($A43/'Whole Life Costs Summary'!$B$27),'Whole Life Costs Summary'!$C$27,0)) + IF('Whole Life Costs Summary'!$B$28=0,0,IF($A43/'Whole Life Costs Summary'!$B$28=INT($A43/'Whole Life Costs Summary'!$B$28),'Whole Life Costs Summary'!$C$28,0)) + IF('Whole Life Costs Summary'!$B$29=0,0,IF($A43/'Whole Life Costs Summary'!$B$29=INT($A43/'Whole Life Costs Summary'!$B$29),'Whole Life Costs Summary'!$C$29,0)) -> 0 | G43: 7533.14556 | H43: 7533.14556 | I43: 1660 | J43: 285824.4081 | K43: 181603.7576
A44: 32 | B44: =1/((1+Discount/100)^A44) -> 0.2098661666 | C44: 4.764941469 | D44: 0 | E44: 1660 | F44: =IF('Whole Life Costs Summary'!$B$27=0,0,IF($A44/'Whole Life Costs Summary'!$B$27=INT($A44/'Whole Life Costs Summary'!$B$27),'Whole Life Costs Summary'!$C$27,0)) + IF('Whole Life Costs Summary'!$B$28=0,0,IF($A44/'Whole Life Costs Summary'!$B$28=INT($A44/'Whole Life Costs Summary'!$B$28),'Whole Life Costs Summary'!$C$28,0)) + IF('Whole Life Costs Summary'!$B$29=0,0,IF($A44/'Whole Life Costs Summary'!$B$29=INT($A44/'Whole Life Costs Summary'!$B$29),'Whole Life Costs Summary'!$C$29,0)) -> 6740 | G44: 40025.50834 | H44: 40025.50834 | I44: 8400 | J44: 325849.9165 | K44: 190003.7576
A45: 33 | B45: 0.1998725396 | C45: =(1+Escalation/100)^A45 -> 5.003188542 | D45: 0 | E45: 1660 | F45: =IF('Whole Life Costs Summary'!$B$27=0,0,IF($A45/'Whole Life Costs Summary'!$B$27=INT($A45/'Whole Life Costs Summary'!$B$27),'Whole Life Costs Summary'!$C$27,0)) + IF('Whole Life Costs Summary'!$B$28=0,0,IF($A45/'Whole Life Costs Summary'!$B$28=INT($A45/'Whole Life Costs Summary'!$B$28),'Whole Life Costs Summary'!$C$28,0)) + IF('Whole Life Costs Summary'!$B$29=0,0,IF($A45/'Whole Life Costs Summary'!$B$29=INT($A45/'Whole Life Costs Summary'!$B$29),'Whole Life Costs Summary'!$C$29,0)) -> 0 | G45: 8305.29298 | H45: 8305.29298 | I45: 1660 | J45: 334155.2095 | K45: 191663.7576
A46: 34 | B46: 0.1903547996 | C46: 5.253347969 | D46: 0 | E46: =$E$13 -> 1660 | F46: =IF('Whole Life Costs Summary'!$B$27=0,0,IF($A46/'Whole Life Costs Summary'!$B$27=INT($A46/'Whole Life Costs Summary'!$B$27),'Whole Life Costs Summary'!$C$27,0)) + IF('Whole Life Costs Summary'!$B$28=0,0,IF($A46/'Whole Life Costs Summary'!$B$28=INT($A46/'Whole Life Costs Summary'!$B$28),'Whole Life Costs Summary'!$C$28,0)) + IF('Whole Life Costs Summary'!$B$29=0,0,IF($A46/'Whole Life Costs Summary'!$B$29=INT($A46/'Whole Life Costs Summary'!$B$29),'Whole Life Costs Summary'!$C$29,0)) -> 0 | G46: 8720.557629 | H46: 8720.557629 | I46: 1660 | J46: =J45+H46 -> 342875.7671 | K46: 193323.7576
A47: 35 | B47: 0.1812902854 | C47: 5.516015368 | D47: 0 | E47: 1660 | F47: =IF('Whole Life Costs Summary'!$B$27=0,0,IF($A47/'Whole Life Costs Summary'!$B$27=INT($A47/'Whole Life Costs Summary'!$B$27),'Whole Life Costs Summary'!$C$27,0)) + IF('Whole Life Costs Summary'!$B$28=0,0,IF($A47/'Whole Life Costs Summary'!$B$28=INT($A47/'Whole Life Costs Summary'!$B$28),'Whole Life Costs Summary'!$C$28,0)) + IF('Whole Life Costs Summary'!$B$29=0,0,IF($A47/'Whole Life Costs Summary'!$B$29=INT($A47/'Whole Life Costs Summary'!$B$29),'Whole Life Costs Summary'!$C$29,0)) -> 0 | G47: 9156.58551 | H47: 9156.58551 | I47: 1660 | J47: 352032.3526 | K47: 194983.7576
A48: 36 | B48: 0.1726574146 | C48: 5.791816136 | D48: 0 | E48: 1660 | F48: =IF('Whole Life Costs Summary'!$B$27=0,0,IF($A48/'Whole Life Costs Summary'!$B$27=INT($A48/'Whole Life Costs Summary'!$B$27),'Whole Life Costs Summary'!$C$27,0)) + IF('Whole Life Costs Summary'!$B$28=0,0,IF($A48/'Whole Life Costs Summary'!$B$28=INT($A48/'Whole Life Costs Summary'!$B$28),'Whole Life Costs Summary'!$C$28,0)) + IF('Whole Life Costs Summary'!$B$29=0,0,IF($A48/'Whole Life Costs Summary'!$B$29=INT($A48/'Whole Life Costs Summary'!$B$29),'Whole Life Costs Summary'!$C$29,0)) -> 0 | G48: 9614.414786 | H48: 9614.414786 | I48: 1660 | J48: 361646.7674 | K48: 196643.7576
A49: 37 | B49: 0.164435633 | C49: 6.081406943 | D49: 0 | E49: 1660 | F49: =IF('Whole Life Costs Summary'!$B$27=0,0,IF($A49/'Whole Life Costs Summary'!$B$27=INT($A49/'Whole Life Costs Summary'!$B$27),'Whole Life Costs Summary'!$C$27,0)) + IF('Whole Life Costs Summary'!$B$28=0,0,IF($A49/'Whole Life Costs Summary'!$B$28=INT($A49/'Whole Life Costs Summary'!$B$28),'Whole Life Costs Summary'!$C$28,0)) + IF('Whole Life Costs Summary'!$B$29=0,0,IF($A49/'Whole Life Costs Summary'!$B$29=INT($A49/'Whole Life Costs Summary'!$B$29),'Whole Life Costs Summary'!$C$29,0)) -> 0 | G49: 10095.13552 | H49: 10095.13552 | I49: 1660 | J49: 371741.9029 | K49: 198303.7576
A50: 38 | B50: 0.1566053647 | C50: 6.38547729 | D50: 0 | E50: 1660 | F50: =IF('Whole Life Costs Summary'!$B$27=0,0,IF($A50/'Whole Life Costs Summary'!$B$27=INT($A50/'Whole Life Costs Summary'!$B$27),'Whole Life Costs Summary'!$C$27,0)) + IF('Whole Life Costs Summary'!$B$28=0,0,IF($A50/'Whole Life Costs Summary'!$B$28=INT($A50/'Whole Life Costs Summary'!$B$28),'Whole Life Costs Summary'!$C$28,0)) + IF('Whole Life Costs Summary'!$B$29=0,0,IF($A50/'Whole Life Costs Summary'!$B$29=INT($A50/'Whole Life Costs Summary'!$B$29),'Whole Life Costs Summary'!$C$29,0)) -> 0 | G50: 10599.8923 | H50: 10599.8923 | I50: 1660 | J50: 382341.7952 | K50: 199963.7576
A51: 39 | B51: 0.1491479664 | C51: 6.704751154 | D51: 0 | E51: 1660 | F51: =IF('Whole Life Costs Summary'!$B$27=0,0,IF($A51/'Whole Life Costs Summary'!$B$27=INT($A51/'Whole Life Costs Summary'!$B$27),'Whole Life Costs Summary'!$C$27,0)) + IF('Whole Life Costs Summary'!$B$28=0,0,IF($A51/'Whole Life Costs Summary'!$B$28=INT($A51/'Whole Life Costs Summary'!$B$28),'Whole Life Costs Summary'!$C$28,0)) + IF('Whole Life Costs Summary'!$B$29=0,0,IF($A51/'Whole Life Costs Summary'!$B$29=INT($A51/'Whole Life Costs Summary'!$B$29),'Whole Life Costs Summary'!$C$29,0)) -> 0 | G51: 11129.88692 | H51: 11129.88692 | I51: 1660 | J51: 393471.6821 | K51: 201623.7576
A52: 40 | B52: 0.1420456823 | C52: 7.039988712 | D52: 0 | E52: 1660 | F52: =IF('Whole Life Costs Summary'!$B$27=0,0,IF($A52/'Whole Life Costs Summary'!$B$27=INT($A52/'Whole Life Costs Summary'!$B$27),'Whole Life Costs Summary'!$C$27,0)) + IF('Whole Life Costs Summary'!$B$28=0,0,IF($A52/'Whole Life Costs Summary'!$B$28=INT($A52/'Whole Life Costs Summary'!$B$28),'Whole Life Costs Summary'!$C$28,0)) + IF('Whole Life Costs Summary'!$B$29=0,0,IF($A52/'Whole Life Costs Summary'!$B$29=INT($A52/'Whole Life Costs Summary'!$B$29),'Whole Life Costs Summary'!$C$29,0)) -> 6740 | G52: 59135.90518 | H52: 59135.90518 | I52: 8400 | J52: 452607.5873 | K52: 210023.7576
A53: 41 | B53: 0.1352816022 | C53: 7.391988148 | D53: 0 | E53: 1660 | F53: =IF('Whole Life Costs Summary'!$B$27=0,0,IF($A53/'Whole Life Costs Summary'!$B$27=INT($A53/'Whole Life Costs Summary'!$B$27),'Whole Life Costs Summary'!$C$27,0)) + IF('Whole Life Costs Summary'!$B$28=0,0,IF($A53/'Whole Life Costs Summary'!$B$28=INT($A53/'Whole Life Costs Summary'!$B$28),'Whole Life Costs Summary'!$C$28,0)) + IF('Whole Life Costs Summary'!$B$29=0,0,IF($A53/'Whole Life Costs Summary'!$B$29=INT($A53/'Whole Life Costs Summary'!$B$29),'Whole Life Costs Summary'!$C$29,0)) -> 0 | G53: 12270.70033 | H53: 12270.70033 | I53: 1660 | J53: 464878.2876 | K53: 211683.7576
A54: 42 | B54: 0.1288396211 | C54: 7.761587555 | D54: 0 | E54: 1660 | F54: =IF('Whole Life Costs Summary'!$B$27=0,0,IF($A54/'Whole Life Costs Summary'!$B$27=INT($A54/'Whole Life Costs Summary'!$B$27),'Whole Life Costs Summary'!$C$27,0)) + IF('Whole Life Costs Summary'!$B$28=0,0,IF($A54/'Whole Life Costs Summary'!$B$28=INT($A54/'Whole Life Costs Summary'!$B$28),'Whole Life Costs Summary'!$C$28,0)) + IF('Whole Life Costs Summary'!$B$29=0,0,IF($A54/'Whole Life Costs Summary'!$B$29=INT($A54/'Whole Life Costs Summary'!$B$29),'Whole Life Costs Summary'!$C$29,0)) -> 0 | G54: 12884.23534 | H54: 12884.23534 | I54: 1660 | J54: 477762.523 | K54: 213343.7576
A55: 43 | B55: 0.1227044011 | C55: 8.149666933 | D55: 0 | E55: 1660 | F55: =IF('Whole Life Costs Summary'!$B$27=0,0,IF($A55/'Whole Life Costs Summary'!$B$27=INT($A55/'Whole Life Costs Summary'!$B$27),'Whole Life Costs Summary'!$C$27,0)) + IF('Whole Life Costs Summary'!$B$28=0,0,IF($A55/'Whole Life Costs Summary'!$B$28=INT($A55/'Whole Life Costs Summary'!$B$28),'Whole Life Costs Summary'!$C$28,0)) + IF('Whole Life Costs Summary'!$B$29=0,0,IF($A55/'Whole Life Costs Summary'!$B$29=INT($A55/'Whole Life Costs Summary'!$B$29),'Whole Life Costs Summary'!$C$29,0)) -> 0 | G55: 13528.44711 | H55: 13528.44711 | I55: 1660 | J55: 491290.9701 | K55: 215003.7576
A56: 44 | B56: 0.1168613344 | C56: 8.55715028 | D56: 0 | E56: 1660 | F56: =IF('Whole Life Costs Summary'!$B$27=0,0,IF($A56/'Whole Life Costs Summary'!$B$27=INT($A56/'Whole Life Costs Summary'!$B$27),'Whole Life Costs Summary'!$C$27,0)) + IF('Whole Life Costs Summary'!$B$28=0,0,IF($A56/'Whole Life Costs Summary'!$B$28=INT($A56/'Whole Life Costs Summary'!$B$28),'Whole Life Costs Summary'!$C$28,0)) + IF('Whole Life Costs Summary'!$B$29=0,0,IF($A56/'Whole Life Costs Summary'!$B$29=INT($A56/'Whole Life Costs Summary'!$B$29),'Whole Life Costs Summary'!$C$29,0)) -> 0 | G56: 14204.86946 | H56: 14204.86946 | I56: 1660 | J56: 505495.8395 | K56: 216663.7576
A57: 45 | B57: 0.1112965089 | C57: 8.985007793 | D57: 0 | E57: 1660 | F57: =IF('Whole Life Costs Summary'!$B$27=0,0,IF($A57/'Whole Life Costs Summary'!$B$27=INT($A57/'Whole Life Costs Summary'!$B$27),'Whole Life Costs Summary'!$C$27,0)) + IF('Whole Life Costs Summary'!$B$28=0,0,IF($A57/'Whole Life Costs Summary'!$B$28=INT($A57/'Whole Life Costs Summary'!$B$28),'Whole Life Costs Summary'!$C$28,0)) + IF('Whole Life Costs Summary'!$B$29=0,0,IF($A57/'Whole Life Costs Summary'!$B$29=INT($A57/'Whole Life Costs Summary'!$B$29),'Whole Life Costs Summary'!$C$29,0)) -> 0 | G57: 14915.11294 | H57: 14915.11294 | I57: 1660 | J57: 520410.9525 | K57: 218323.7576
A58: 46 | B58: 0.1059966752 | C58: 9.434258183 | D58: 0 | E58: 1660 | F58: =IF('Whole Life Costs Summary'!$B$27=0,0,IF($A58/'Whole Life Costs Summary'!$B$27=INT($A58/'Whole Life Costs Summary'!$B$27),'Whole Life Costs Summary'!$C$27,0)) + IF('Whole Life Costs Summary'!$B$28=0,0,IF($A58/'Whole Life Costs Summary'!$B$28=INT($A58/'Whole Life Costs Summary'!$B$28),'Whole Life Costs Summary'!$C$28,0)) + IF('Whole Life Costs Summary'!$B$29=0,0,IF($A58/'Whole Life Costs Summary'!$B$29=INT($A58/'Whole Life Costs Summary'!$B$29),'Whole Life Costs Summary'!$C$29,0)) -> 0 | G58: 15660.86858 | H58: 15660.86858 | I58: 1660 | J58: 536071.8211 | K58: 219983.7576
A59: 47 | B59: 0.1009492144 | C59: 9.905971092 | D59: 0 | E59: 1660 | F59: =IF('Whole Life Costs Summary'!$B$27=0,0,IF($A59/'Whole Life Costs Summary'!$B$27=INT($A59/'Whole Life Costs Summary'!$B$27),'Whole Life Costs Summary'!$C$27,0)) + IF('Whole Life Costs Summary'!$B$28=0,0,IF($A59/'Whole Life Costs Summary'!$B$28=INT($A59/'Whole Life Costs Summary'!$B$28),'Whole Life Costs Summary'!$C$28,0)) + IF('Whole Life Costs Summary'!$B$29=0,0,IF($A59/'Whole Life Costs Summary'!$B$29=INT($A59/'Whole Life Costs Summary'!$B$29),'Whole Life Costs Summary'!$C$29,0)) -> 0 | G59: 16443.91201 | H59: 16443.91201 | I59: 1660 | J59: 552515.7331 | K59: 221643.7576
A60: 48 | B60: 0.09614210899 | C60: 10.40126965 | D60: 0 | E60: 1660 | F60: =IF('Whole Life Costs Summary'!$B$27=0,0,IF($A60/'Whole Life Costs Summary'!$B$27=INT($A60/'Whole Life Costs Summary'!$B$27),'Whole Life Costs Summary'!$C$27,0)) + IF('Whole Life Costs Summary'!$B$28=0,0,IF($A60/'Whole Life Costs Summary'!$B$28=INT($A60/'Whole Life Costs Summary'!$B$28),'Whole Life Costs Summary'!$C$28,0)) + IF('Whole Life Costs Summary'!$B$29=0,0,IF($A60/'Whole Life Costs Summary'!$B$29=INT($A60/'Whole Life Costs Summary'!$B$29),'Whole Life Costs Summary'!$C$29,0)) -> 6740 | G60: 87370.66503 | H60: 87370.66503 | I60: =H60*$B60 -> 8400 | J60: 639886.3981 | K60: 230043.7576
A61: 49 | B61: 0.09156391332 | C61: 10.92133313 | D61: 0 | E61: 1660 | F61: =IF('Whole Life Costs Summary'!$B$27=0,0,IF($A61/'Whole Life Costs Summary'!$B$27=INT($A61/'Whole Life Costs Summary'!$B$27),'Whole Life Costs Summary'!$C$27,0)) + IF('Whole Life Costs Summary'!$B$28=0,0,IF($A61/'Whole Life Costs Summary'!$B$28=INT($A61/'Whole Life Costs Summary'!$B$28),'Whole Life Costs Summary'!$C$28,0)) + IF('Whole Life Costs Summary'!$B$29=0,0,IF($A61/'Whole Life Costs Summary'!$B$29=INT($A61/'Whole Life Costs Summary'!$B$29),'Whole Life Costs Summary'!$C$29,0)) -> 0 | G61: 18129.41299 | H61: 18129.41299 | I61: =H61*$B61 -> 1660 | J61: =J60+H61 -> 658015.8111 | K61: =K60+I61 -> 231703.7576
A62: 50 | B62: 0.08720372697 | C62: 11.46739979 | D62: 1 | E62: 1660 | F62: =IF('Whole Life Costs Summary'!$B$27=0,0,IF($A62/'Whole Life Costs Summary'!$B$27=INT($A62/'Whole Life Costs Summary'!$B$27),'Whole Life Costs Summary'!$C$27,0)) + IF('Whole Life Costs Summary'!$B$28=0,0,IF($A62/'Whole Life Costs Summary'!$B$28=INT($A62/'Whole Life Costs Summary'!$B$28),'Whole Life Costs Summary'!$C$28,0)) + IF('Whole Life Costs Summary'!$B$29=0,0,IF($A62/'Whole Life Costs Summary'!$B$29=INT($A62/'Whole Life Costs Summary'!$B$29),'Whole Life Costs Summary'!$C$29,0)) -> 2580 | G62: 48621.77509 | H62: 48621.77509 | I62: =H62*$B62 -> 4240 | J62: =J61+H62 -> 706637.5862 | K62: =K61+I62 -> 235943.7576
